{"text_format":"3","workbook":"xlsx","n_sheets":12,"sheets":["STY","LUT","MAR","KWI","MAJ","CZE","LIP","SIE","WRZ","PAŹ","LIS","GRU"],"not_rendered":{"defined_names":40},"read":"whole","date_system":"1900"}

{"sheet":"STY","index":0,"n_rows":20,"n_cols":9,"rows_kept":20,"merged":[[16,2,17,2],[16,3,17,3],[17,4,19,8]]}
[null,"STY","NIEDZ",{"$f":"UPPER(TEXT(D3,\"aaa\"))","v":"PON"},"WT","ŚR","CZW","PT","SOB"]
[null,{"$f":"YEAR(TODAY())","v":2018}]
[null,null,{"$f":"Dni_i_tygodnie+DATE(Rok_kalendarzowy,1,1)-WEEKDAY(DATE(Rok_kalendarzowy,1,1),(Początek_tygodnia=\"PON\")+1)+1","v":"2017-12-31"},"2018-01-01","2018-01-02","2018-01-03","2018-01-04","2018-01-05","2018-01-06"]
[null,null,{"$f":"IF(DAY(Dzień_kalendarza)=1,CONCATENATE(\"Tydzień \",WEEKNUM(Dzień_kalendarza),\"/Dzień \",Dzień_kalendarza-DATE(YEAR(Dzień_kalendarza),1,0)),CONCATENATE(\"Dzień \",Dzień_kalendarza-DATE(YEAR(Dzień_kalendarza),1,0)))","v":"Dzień 365"},"Tydzień 1/Dzień 1","Dzień 2","Dzień 3","Dzień 4","Dzień 5","Dzień 6"]
[]
[null,null,{"$f":"Dni_i_tygodnie+DATE(Rok_kalendarzowy,1,1)-WEEKDAY(DATE(Rok_kalendarzowy,1,1),(Początek_tygodnia=\"PON\")+1)+8","v":"2018-01-07"},"2018-01-08","2018-01-09","2018-01-10","2018-01-11","2018-01-12","2018-01-13"]
[null,null,{"$f":"IF(WEEKDAY(Dzień_kalendarza)=Początek_tygodnia_wartość,CONCATENATE(\"Tydzień \",WEEKNUM(Dzień_kalendarza),\"/Dzień \",Dzień_kalendarza-DATE(YEAR(Dzień_kalendarza),1,0)),CONCATENATE(\"Dzień \",Dzień_kalendarza-DATE(YEAR(Dzień_kalendarza),1,0)))","v":"Tydzień 2/Dzień 7"},{"$f":"IF(WEEKDAY(Dzień_kalendarza)=Początek_tygodnia_wartość,CONCATENATE(\"Tydzień \",WEEKNUM(Dzień_kalendarza),\"/Dzień \",Dzień_kalendarza-DATE(YEAR(Dzień_kalendarza),1,0)),CONCATENATE(\"Dzień \",Dzień_kalendarza-DATE(YEAR(Dzień_kalendarza),1,0)))","v":"Dzień 8"},{"$f":"IF(WEEKDAY(Dzień_kalendarza)=Początek_tygodnia_wartość,CONCATENATE(\"Tydzień \",WEEKNUM(Dzień_kalendarza),\"/Dzień \",Dzień_kalendarza-DATE(YEAR(Dzień_kalendarza),1,0)),CONCATENATE(\"Dzień \",Dzień_kalendarza-DATE(YEAR(Dzień_kalendarza),1,0)))","v":"Dzień 9"},{"$f":"IF(WEEKDAY(Dzień_kalendarza)=Początek_tygodnia_wartość,CONCATENATE(\"Tydzień \",WEEKNUM(Dzień_kalendarza),\"/Dzień \",Dzień_kalendarza-DATE(YEAR(Dzień_kalendarza),1,0)),CONCATENATE(\"Dzień \",Dzień_kalendarza-DATE(YEAR(Dzień_kalendarza),1,0)))","v":"Dzień 10"},{"$f":"IF(WEEKDAY(Dzień_kalendarza)=Początek_tygodnia_wartość,CONCATENATE(\"Tydzień \",WEEKNUM(Dzień_kalendarza),\"/Dzień \",Dzień_kalendarza-DATE(YEAR(Dzień_kalendarza),1,0)),CONCATENATE(\"Dzień \",Dzień_kalendarza-DATE(YEAR(Dzień_kalendarza),1,0)))","v":"Dzień 11"},{"$f":"IF(WEEKDAY(Dzień_kalendarza)=Początek_tygodnia_wartość,CONCATENATE(\"Tydzień \",WEEKNUM(Dzień_kalendarza),\"/Dzień \",Dzień_kalendarza-DATE(YEAR(Dzień_kalendarza),1,0)),CONCATENATE(\"Dzień \",Dzień_kalendarza-DATE(YEAR(Dzień_kalendarza),1,0)))","v":"Dzień 12"},{"$f":"IF(WEEKDAY(Dzień_kalendarza)=Początek_tygodnia_wartość,CONCATENATE(\"Tydzień \",WEEKNUM(Dzień_kalendarza),\"/Dzień \",Dzień_kalendarza-DATE(YEAR(Dzień_kalendarza),1,0)),CONCATENATE(\"Dzień \",Dzień_kalendarza-DATE(YEAR(Dzień_kalendarza),1,0)))","v":"Dzień 13"}]
[]
[null,null,{"$f":"Dni_i_tygodnie+DATE(Rok_kalendarzowy,1,1)-WEEKDAY(DATE(Rok_kalendarzowy,1,1),(Początek_tygodnia=\"PON\")+1)+15","v":"2018-01-14"},"2018-01-15","2018-01-16","2018-01-17","2018-01-18","2018-01-19","2018-01-20"]
[null,null,{"$f":"IF(WEEKDAY(Dzień_kalendarza)=Początek_tygodnia_wartość,CONCATENATE(\"Tydzień \",WEEKNUM(Dzień_kalendarza),\"/Dzień \",Dzień_kalendarza-DATE(YEAR(Dzień_kalendarza),1,0)),CONCATENATE(\"Dzień \",Dzień_kalendarza-DATE(YEAR(Dzień_kalendarza),1,0)))","v":"Tydzień 3/Dzień 14"},{"$f":"IF(WEEKDAY(Dzień_kalendarza)=Początek_tygodnia_wartość,CONCATENATE(\"Tydzień \",WEEKNUM(Dzień_kalendarza),\"/Dzień \",Dzień_kalendarza-DATE(YEAR(Dzień_kalendarza),1,0)),CONCATENATE(\"Dzień \",Dzień_kalendarza-DATE(YEAR(Dzień_kalendarza),1,0)))","v":"Dzień 15"},{"$f":"IF(WEEKDAY(Dzień_kalendarza)=Początek_tygodnia_wartość,CONCATENATE(\"Tydzień \",WEEKNUM(Dzień_kalendarza),\"/Dzień \",Dzień_kalendarza-DATE(YEAR(Dzień_kalendarza),1,0)),CONCATENATE(\"Dzień \",Dzień_kalendarza-DATE(YEAR(Dzień_kalendarza),1,0)))","v":"Dzień 16"},{"$f":"IF(WEEKDAY(Dzień_kalendarza)=Początek_tygodnia_wartość,CONCATENATE(\"Tydzień \",WEEKNUM(Dzień_kalendarza),\"/Dzień \",Dzień_kalendarza-DATE(YEAR(Dzień_kalendarza),1,0)),CONCATENATE(\"Dzień \",Dzień_kalendarza-DATE(YEAR(Dzień_kalendarza),1,0)))","v":"Dzień 17"},{"$f":"IF(WEEKDAY(Dzień_kalendarza)=Początek_tygodnia_wartość,CONCATENATE(\"Tydzień \",WEEKNUM(Dzień_kalendarza),\"/Dzień \",Dzień_kalendarza-DATE(YEAR(Dzień_kalendarza),1,0)),CONCATENATE(\"Dzień \",Dzień_kalendarza-DATE(YEAR(Dzień_kalendarza),1,0)))","v":"Dzień 18"},{"$f":"IF(WEEKDAY(Dzień_kalendarza)=Początek_tygodnia_wartość,CONCATENATE(\"Tydzień \",WEEKNUM(Dzień_kalendarza),\"/Dzień \",Dzień_kalendarza-DATE(YEAR(Dzień_kalendarza),1,0)),CONCATENATE(\"Dzień \",Dzień_kalendarza-DATE(YEAR(Dzień_kalendarza),1,0)))","v":"Dzień 19"},{"$f":"IF(WEEKDAY(Dzień_kalendarza)=Początek_tygodnia_wartość,CONCATENATE(\"Tydzień \",WEEKNUM(Dzień_kalendarza),\"/Dzień \",Dzień_kalendarza-DATE(YEAR(Dzień_kalendarza),1,0)),CONCATENATE(\"Dzień \",Dzień_kalendarza-DATE(YEAR(Dzień_kalendarza),1,0)))","v":"Dzień 20"}]
[]
[null,null,{"$f":"Dni_i_tygodnie+DATE(Rok_kalendarzowy,1,1)-WEEKDAY(DATE(Rok_kalendarzowy,1,1),(Początek_tygodnia=\"PON\")+1)+22","v":"2018-01-21"},"2018-01-22","2018-01-23","2018-01-24","2018-01-25","2018-01-26","2018-01-27"]
[null,null,{"$f":"IF(WEEKDAY(Dzień_kalendarza)=Początek_tygodnia_wartość,CONCATENATE(\"Tydzień \",WEEKNUM(Dzień_kalendarza),\"/Dzień \",Dzień_kalendarza-DATE(YEAR(Dzień_kalendarza),1,0)),CONCATENATE(\"Dzień \",Dzień_kalendarza-DATE(YEAR(Dzień_kalendarza),1,0)))","v":"Tydzień 4/Dzień 21"},{"$f":"IF(WEEKDAY(Dzień_kalendarza)=Początek_tygodnia_wartość,CONCATENATE(\"Tydzień \",WEEKNUM(Dzień_kalendarza),\"/Dzień \",Dzień_kalendarza-DATE(YEAR(Dzień_kalendarza),1,0)),CONCATENATE(\"Dzień \",Dzień_kalendarza-DATE(YEAR(Dzień_kalendarza),1,0)))","v":"Dzień 22"},{"$f":"IF(WEEKDAY(Dzień_kalendarza)=Początek_tygodnia_wartość,CONCATENATE(\"Tydzień \",WEEKNUM(Dzień_kalendarza),\"/Dzień \",Dzień_kalendarza-DATE(YEAR(Dzień_kalendarza),1,0)),CONCATENATE(\"Dzień \",Dzień_kalendarza-DATE(YEAR(Dzień_kalendarza),1,0)))","v":"Dzień 23"},{"$f":"IF(WEEKDAY(Dzień_kalendarza)=Początek_tygodnia_wartość,CONCATENATE(\"Tydzień \",WEEKNUM(Dzień_kalendarza),\"/Dzień \",Dzień_kalendarza-DATE(YEAR(Dzień_kalendarza),1,0)),CONCATENATE(\"Dzień \",Dzień_kalendarza-DATE(YEAR(Dzień_kalendarza),1,0)))","v":"Dzień 24"},{"$f":"IF(WEEKDAY(Dzień_kalendarza)=Początek_tygodnia_wartość,CONCATENATE(\"Tydzień \",WEEKNUM(Dzień_kalendarza),\"/Dzień \",Dzień_kalendarza-DATE(YEAR(Dzień_kalendarza),1,0)),CONCATENATE(\"Dzień \",Dzień_kalendarza-DATE(YEAR(Dzień_kalendarza),1,0)))","v":"Dzień 25"},{"$f":"IF(WEEKDAY(Dzień_kalendarza)=Początek_tygodnia_wartość,CONCATENATE(\"Tydzień \",WEEKNUM(Dzień_kalendarza),\"/Dzień \",Dzień_kalendarza-DATE(YEAR(Dzień_kalendarza),1,0)),CONCATENATE(\"Dzień \",Dzień_kalendarza-DATE(YEAR(Dzień_kalendarza),1,0)))","v":"Dzień 26"},{"$f":"IF(WEEKDAY(Dzień_kalendarza)=Początek_tygodnia_wartość,CONCATENATE(\"Tydzień \",WEEKNUM(Dzień_kalendarza),\"/Dzień \",Dzień_kalendarza-DATE(YEAR(Dzień_kalendarza),1,0)),CONCATENATE(\"Dzień \",Dzień_kalendarza-DATE(YEAR(Dzień_kalendarza),1,0)))","v":"Dzień 27"}]
[]
[null,null,{"$f":"Dni_i_tygodnie+DATE(Rok_kalendarzowy,1,1)-WEEKDAY(DATE(Rok_kalendarzowy,1,1),(Początek_tygodnia=\"PON\")+1)+29","v":"2018-01-28"},"2018-01-29","2018-01-30","2018-01-31","2018-02-01","2018-02-02","2018-02-03"]
[null,null,{"$f":"IF(WEEKDAY(Dzień_kalendarza)=Początek_tygodnia_wartość,CONCATENATE(\"Tydzień \",WEEKNUM(Dzień_kalendarza),\"/Dzień \",Dzień_kalendarza-DATE(YEAR(Dzień_kalendarza),1,0)),CONCATENATE(\"Dzień \",Dzień_kalendarza-DATE(YEAR(Dzień_kalendarza),1,0)))","v":"Tydzień 5/Dzień 28"},{"$f":"IF(WEEKDAY(Dzień_kalendarza)=Początek_tygodnia_wartość,CONCATENATE(\"Tydzień \",WEEKNUM(Dzień_kalendarza),\"/Dzień \",Dzień_kalendarza-DATE(YEAR(Dzień_kalendarza),1,0)),CONCATENATE(\"Dzień \",Dzień_kalendarza-DATE(YEAR(Dzień_kalendarza),1,0)))","v":"Dzień 29"},{"$f":"IF(WEEKDAY(Dzień_kalendarza)=Początek_tygodnia_wartość,CONCATENATE(\"Tydzień \",WEEKNUM(Dzień_kalendarza),\"/Dzień \",Dzień_kalendarza-DATE(YEAR(Dzień_kalendarza),1,0)),CONCATENATE(\"Dzień \",Dzień_kalendarza-DATE(YEAR(Dzień_kalendarza),1,0)))","v":"Dzień 30"},{"$f":"IF(WEEKDAY(Dzień_kalendarza)=Początek_tygodnia_wartość,CONCATENATE(\"Tydzień \",WEEKNUM(Dzień_kalendarza),\"/Dzień \",Dzień_kalendarza-DATE(YEAR(Dzień_kalendarza),1,0)),CONCATENATE(\"Dzień \",Dzień_kalendarza-DATE(YEAR(Dzień_kalendarza),1,0)))","v":"Dzień 31"},{"$f":"IF(WEEKDAY(Dzień_kalendarza)=Początek_tygodnia_wartość,CONCATENATE(\"Tydzień \",WEEKNUM(Dzień_kalendarza),\"/Dzień \",Dzień_kalendarza-DATE(YEAR(Dzień_kalendarza),1,0)),CONCATENATE(\"Dzień \",Dzień_kalendarza-DATE(YEAR(Dzień_kalendarza),1,0)))","v":"Dzień 32"},{"$f":"IF(WEEKDAY(Dzień_kalendarza)=Początek_tygodnia_wartość,CONCATENATE(\"Tydzień \",WEEKNUM(Dzień_kalendarza),\"/Dzień \",Dzień_kalendarza-DATE(YEAR(Dzień_kalendarza),1,0)),CONCATENATE(\"Dzień \",Dzień_kalendarza-DATE(YEAR(Dzień_kalendarza),1,0)))","v":"Dzień 33"},{"$f":"IF(WEEKDAY(Dzień_kalendarza)=Początek_tygodnia_wartość,CONCATENATE(\"Tydzień \",WEEKNUM(Dzień_kalendarza),\"/Dzień \",Dzień_kalendarza-DATE(YEAR(Dzień_kalendarza),1,0)),CONCATENATE(\"Dzień \",Dzień_kalendarza-DATE(YEAR(Dzień_kalendarza),1,0)))","v":"Dzień 34"}]
[{"$nulls":4},"NOTATKI"]
[]
[null,null,{"$f":"Dni_i_tygodnie+DATE(Rok_kalendarzowy,1,1)-WEEKDAY(DATE(Rok_kalendarzowy,1,1),(Początek_tygodnia=\"PON\")+1)+36","v":"2018-02-04"},"2018-02-05"]
[null,null,{"$f":"IF(WEEKDAY(Dzień_kalendarza)=Początek_tygodnia_wartość,CONCATENATE(\"Tydzień \",WEEKNUM(Dzień_kalendarza),\"/Dzień \",Dzień_kalendarza-DATE(YEAR(Dzień_kalendarza),1,0)),CONCATENATE(\"Dzień \",Dzień_kalendarza-DATE(YEAR(Dzień_kalendarza),1,0)))","v":"Tydzień 6/Dzień 35"},{"$f":"IF(WEEKDAY(Dzień_kalendarza)=Początek_tygodnia_wartość,CONCATENATE(\"Tydzień \",WEEKNUM(Dzień_kalendarza),\"/Dzień \",Dzień_kalendarza-DATE(YEAR(Dzień_kalendarza),1,0)),CONCATENATE(\"Dzień \",Dzień_kalendarza-DATE(YEAR(Dzień_kalendarza),1,0)))","v":"Dzień 36"}]

{"sheet":"LUT","index":1,"n_rows":20,"n_cols":9,"rows_kept":20,"merged":[[16,2,17,2],[17,4,19,8]]}
[null,"LUT",{"$f":"UPPER(TEXT(Początek_tygodnia,\"ddd\"))","v":"NIEDZ"},{"$f":"UPPER(TEXT(D3,\"aaa\"))","v":"PON"},"WT","ŚR","CZW","PT","SOB"]
[null,{"$f":"Rok_kalendarzowy","v":2018}]
[null,null,{"$f":"Dni_i_tygodnie+DATE(Rok_kalendarzowy,2,1)-WEEKDAY(DATE(Rok_kalendarzowy,2,1),(Początek_tygodnia=\"PON\")+1)+1","v":"2018-01-28"},"2018-01-29","2018-01-30","2018-01-31","2018-02-01","2018-02-02","2018-02-03"]
[null,null,{"$f":"IF(DAY(Dzień_kalendarza)=1,CONCATENATE(\"Tydzień \",WEEKNUM(Dzień_kalendarza),\"/Dzień \",Dzień_kalendarza-DATE(YEAR(Dzień_kalendarza),1,0)),CONCATENATE(\"Dzień \",Dzień_kalendarza-DATE(YEAR(Dzień_kalendarza),1,0)))","v":"Dzień 28"},"Dzień 29","Dzień 30","Dzień 31","Tydzień 5/Dzień 32","Dzień 33","Dzień 34"]
[]
[null,null,{"$f":"Dni_i_tygodnie+DATE(Rok_kalendarzowy,2,1)-WEEKDAY(DATE(Rok_kalendarzowy,2,1),(Początek_tygodnia=\"PON\")+1)+8","v":"2018-02-04"},"2018-02-05","2018-02-06","2018-02-07","2018-02-08","2018-02-09","2018-02-10"]
[null,null,{"$f":"IF(WEEKDAY(Dzień_kalendarza)=Początek_tygodnia_wartość,CONCATENATE(\"Tydzień \",WEEKNUM(Dzień_kalendarza),\"/Dzień \",Dzień_kalendarza-DATE(YEAR(Dzień_kalendarza),1,0)),CONCATENATE(\"Dzień \",Dzień_kalendarza-DATE(YEAR(Dzień_kalendarza),1,0)))","v":"Tydzień 6/Dzień 35"},{"$f":"IF(WEEKDAY(Dzień_kalendarza)=Początek_tygodnia_wartość,CONCATENATE(\"Tydzień \",WEEKNUM(Dzień_kalendarza),\"/Dzień \",Dzień_kalendarza-DATE(YEAR(Dzień_kalendarza),1,0)),CONCATENATE(\"Dzień \",Dzień_kalendarza-DATE(YEAR(Dzień_kalendarza),1,0)))","v":"Dzień 36"},{"$f":"IF(WEEKDAY(Dzień_kalendarza)=Początek_tygodnia_wartość,CONCATENATE(\"Tydzień \",WEEKNUM(Dzień_kalendarza),\"/Dzień \",Dzień_kalendarza-DATE(YEAR(Dzień_kalendarza),1,0)),CONCATENATE(\"Dzień \",Dzień_kalendarza-DATE(YEAR(Dzień_kalendarza),1,0)))","v":"Dzień 37"},{"$f":"IF(WEEKDAY(Dzień_kalendarza)=Początek_tygodnia_wartość,CONCATENATE(\"Tydzień \",WEEKNUM(Dzień_kalendarza),\"/Dzień \",Dzień_kalendarza-DATE(YEAR(Dzień_kalendarza),1,0)),CONCATENATE(\"Dzień \",Dzień_kalendarza-DATE(YEAR(Dzień_kalendarza),1,0)))","v":"Dzień 38"},{"$f":"IF(WEEKDAY(Dzień_kalendarza)=Początek_tygodnia_wartość,CONCATENATE(\"Tydzień \",WEEKNUM(Dzień_kalendarza),\"/Dzień \",Dzień_kalendarza-DATE(YEAR(Dzień_kalendarza),1,0)),CONCATENATE(\"Dzień \",Dzień_kalendarza-DATE(YEAR(Dzień_kalendarza),1,0)))","v":"Dzień 39"},{"$f":"IF(WEEKDAY(Dzień_kalendarza)=Początek_tygodnia_wartość,CONCATENATE(\"Tydzień \",WEEKNUM(Dzień_kalendarza),\"/Dzień \",Dzień_kalendarza-DATE(YEAR(Dzień_kalendarza),1,0)),CONCATENATE(\"Dzień \",Dzień_kalendarza-DATE(YEAR(Dzień_kalendarza),1,0)))","v":"Dzień 40"},{"$f":"IF(WEEKDAY(Dzień_kalendarza)=Początek_tygodnia_wartość,CONCATENATE(\"Tydzień \",WEEKNUM(Dzień_kalendarza),\"/Dzień \",Dzień_kalendarza-DATE(YEAR(Dzień_kalendarza),1,0)),CONCATENATE(\"Dzień \",Dzień_kalendarza-DATE(YEAR(Dzień_kalendarza),1,0)))","v":"Dzień 41"}]
[]
[null,null,{"$f":"Dni_i_tygodnie+DATE(Rok_kalendarzowy,2,1)-WEEKDAY(DATE(Rok_kalendarzowy,2,1),(Początek_tygodnia=\"PON\")+1)+15","v":"2018-02-11"},"2018-02-12","2018-02-13","2018-02-14","2018-02-15","2018-02-16","2018-02-17"]
[null,null,{"$f":"IF(WEEKDAY(Dzień_kalendarza)=Początek_tygodnia_wartość,CONCATENATE(\"Tydzień \",WEEKNUM(Dzień_kalendarza),\"/Dzień \",Dzień_kalendarza-DATE(YEAR(Dzień_kalendarza),1,0)),CONCATENATE(\"Dzień \",Dzień_kalendarza-DATE(YEAR(Dzień_kalendarza),1,0)))","v":"Tydzień 7/Dzień 42"},{"$f":"IF(WEEKDAY(Dzień_kalendarza)=Początek_tygodnia_wartość,CONCATENATE(\"Tydzień \",WEEKNUM(Dzień_kalendarza),\"/Dzień \",Dzień_kalendarza-DATE(YEAR(Dzień_kalendarza),1,0)),CONCATENATE(\"Dzień \",Dzień_kalendarza-DATE(YEAR(Dzień_kalendarza),1,0)))","v":"Dzień 43"},{"$f":"IF(WEEKDAY(Dzień_kalendarza)=Początek_tygodnia_wartość,CONCATENATE(\"Tydzień \",WEEKNUM(Dzień_kalendarza),\"/Dzień \",Dzień_kalendarza-DATE(YEAR(Dzień_kalendarza),1,0)),CONCATENATE(\"Dzień \",Dzień_kalendarza-DATE(YEAR(Dzień_kalendarza),1,0)))","v":"Dzień 44"},{"$f":"IF(WEEKDAY(Dzień_kalendarza)=Początek_tygodnia_wartość,CONCATENATE(\"Tydzień \",WEEKNUM(Dzień_kalendarza),\"/Dzień \",Dzień_kalendarza-DATE(YEAR(Dzień_kalendarza),1,0)),CONCATENATE(\"Dzień \",Dzień_kalendarza-DATE(YEAR(Dzień_kalendarza),1,0)))","v":"Dzień 45"},{"$f":"IF(WEEKDAY(Dzień_kalendarza)=Początek_tygodnia_wartość,CONCATENATE(\"Tydzień \",WEEKNUM(Dzień_kalendarza),\"/Dzień \",Dzień_kalendarza-DATE(YEAR(Dzień_kalendarza),1,0)),CONCATENATE(\"Dzień \",Dzień_kalendarza-DATE(YEAR(Dzień_kalendarza),1,0)))","v":"Dzień 46"},{"$f":"IF(WEEKDAY(Dzień_kalendarza)=Początek_tygodnia_wartość,CONCATENATE(\"Tydzień \",WEEKNUM(Dzień_kalendarza),\"/Dzień \",Dzień_kalendarza-DATE(YEAR(Dzień_kalendarza),1,0)),CONCATENATE(\"Dzień \",Dzień_kalendarza-DATE(YEAR(Dzień_kalendarza),1,0)))","v":"Dzień 47"},{"$f":"IF(WEEKDAY(Dzień_kalendarza)=Początek_tygodnia_wartość,CONCATENATE(\"Tydzień \",WEEKNUM(Dzień_kalendarza),\"/Dzień \",Dzień_kalendarza-DATE(YEAR(Dzień_kalendarza),1,0)),CONCATENATE(\"Dzień \",Dzień_kalendarza-DATE(YEAR(Dzień_kalendarza),1,0)))","v":"Dzień 48"}]
[]
[null,null,{"$f":"Dni_i_tygodnie+DATE(Rok_kalendarzowy,2,1)-WEEKDAY(DATE(Rok_kalendarzowy,2,1),(Początek_tygodnia=\"PON\")+1)+22","v":"2018-02-18"},"2018-02-19","2018-02-20","2018-02-21","2018-02-22","2018-02-23","2018-02-24"]
[null,null,{"$f":"IF(WEEKDAY(Dzień_kalendarza)=Początek_tygodnia_wartość,CONCATENATE(\"Tydzień \",WEEKNUM(Dzień_kalendarza),\"/Dzień \",Dzień_kalendarza-DATE(YEAR(Dzień_kalendarza),1,0)),CONCATENATE(\"Dzień \",Dzień_kalendarza-DATE(YEAR(Dzień_kalendarza),1,0)))","v":"Tydzień 8/Dzień 49"},{"$f":"IF(WEEKDAY(Dzień_kalendarza)=Początek_tygodnia_wartość,CONCATENATE(\"Tydzień \",WEEKNUM(Dzień_kalendarza),\"/Dzień \",Dzień_kalendarza-DATE(YEAR(Dzień_kalendarza),1,0)),CONCATENATE(\"Dzień \",Dzień_kalendarza-DATE(YEAR(Dzień_kalendarza),1,0)))","v":"Dzień 50"},{"$f":"IF(WEEKDAY(Dzień_kalendarza)=Początek_tygodnia_wartość,CONCATENATE(\"Tydzień \",WEEKNUM(Dzień_kalendarza),\"/Dzień \",Dzień_kalendarza-DATE(YEAR(Dzień_kalendarza),1,0)),CONCATENATE(\"Dzień \",Dzień_kalendarza-DATE(YEAR(Dzień_kalendarza),1,0)))","v":"Dzień 51"},{"$f":"IF(WEEKDAY(Dzień_kalendarza)=Początek_tygodnia_wartość,CONCATENATE(\"Tydzień \",WEEKNUM(Dzień_kalendarza),\"/Dzień \",Dzień_kalendarza-DATE(YEAR(Dzień_kalendarza),1,0)),CONCATENATE(\"Dzień \",Dzień_kalendarza-DATE(YEAR(Dzień_kalendarza),1,0)))","v":"Dzień 52"},{"$f":"IF(WEEKDAY(Dzień_kalendarza)=Początek_tygodnia_wartość,CONCATENATE(\"Tydzień \",WEEKNUM(Dzień_kalendarza),\"/Dzień \",Dzień_kalendarza-DATE(YEAR(Dzień_kalendarza),1,0)),CONCATENATE(\"Dzień \",Dzień_kalendarza-DATE(YEAR(Dzień_kalendarza),1,0)))","v":"Dzień 53"},{"$f":"IF(WEEKDAY(Dzień_kalendarza)=Początek_tygodnia_wartość,CONCATENATE(\"Tydzień \",WEEKNUM(Dzień_kalendarza),\"/Dzień \",Dzień_kalendarza-DATE(YEAR(Dzień_kalendarza),1,0)),CONCATENATE(\"Dzień \",Dzień_kalendarza-DATE(YEAR(Dzień_kalendarza),1,0)))","v":"Dzień 54"},{"$f":"IF(WEEKDAY(Dzień_kalendarza)=Początek_tygodnia_wartość,CONCATENATE(\"Tydzień \",WEEKNUM(Dzień_kalendarza),\"/Dzień \",Dzień_kalendarza-DATE(YEAR(Dzień_kalendarza),1,0)),CONCATENATE(\"Dzień \",Dzień_kalendarza-DATE(YEAR(Dzień_kalendarza),1,0)))","v":"Dzień 55"}]
[]
[null,null,{"$f":"Dni_i_tygodnie+DATE(Rok_kalendarzowy,2,1)-WEEKDAY(DATE(Rok_kalendarzowy,2,1),(Początek_tygodnia=\"PON\")+1)+29","v":"2018-02-25"},"2018-02-26","2018-02-27","2018-02-28","2018-03-01","2018-03-02","2018-03-03"]
[null,null,{"$f":"IF(WEEKDAY(Dzień_kalendarza)=Początek_tygodnia_wartość,CONCATENATE(\"Tydzień \",WEEKNUM(Dzień_kalendarza),\"/Dzień \",Dzień_kalendarza-DATE(YEAR(Dzień_kalendarza),1,0)),CONCATENATE(\"Dzień \",Dzień_kalendarza-DATE(YEAR(Dzień_kalendarza),1,0)))","v":"Tydzień 9/Dzień 56"},{"$f":"IF(WEEKDAY(Dzień_kalendarza)=Początek_tygodnia_wartość,CONCATENATE(\"Tydzień \",WEEKNUM(Dzień_kalendarza),\"/Dzień \",Dzień_kalendarza-DATE(YEAR(Dzień_kalendarza),1,0)),CONCATENATE(\"Dzień \",Dzień_kalendarza-DATE(YEAR(Dzień_kalendarza),1,0)))","v":"Dzień 57"},{"$f":"IF(WEEKDAY(Dzień_kalendarza)=Początek_tygodnia_wartość,CONCATENATE(\"Tydzień \",WEEKNUM(Dzień_kalendarza),\"/Dzień \",Dzień_kalendarza-DATE(YEAR(Dzień_kalendarza),1,0)),CONCATENATE(\"Dzień \",Dzień_kalendarza-DATE(YEAR(Dzień_kalendarza),1,0)))","v":"Dzień 58"},{"$f":"IF(WEEKDAY(Dzień_kalendarza)=Początek_tygodnia_wartość,CONCATENATE(\"Tydzień \",WEEKNUM(Dzień_kalendarza),\"/Dzień \",Dzień_kalendarza-DATE(YEAR(Dzień_kalendarza),1,0)),CONCATENATE(\"Dzień \",Dzień_kalendarza-DATE(YEAR(Dzień_kalendarza),1,0)))","v":"Dzień 59"},{"$f":"IF(WEEKDAY(Dzień_kalendarza)=Początek_tygodnia_wartość,CONCATENATE(\"Tydzień \",WEEKNUM(Dzień_kalendarza),\"/Dzień \",Dzień_kalendarza-DATE(YEAR(Dzień_kalendarza),1,0)),CONCATENATE(\"Dzień \",Dzień_kalendarza-DATE(YEAR(Dzień_kalendarza),1,0)))","v":"Dzień 60"},{"$f":"IF(WEEKDAY(Dzień_kalendarza)=Początek_tygodnia_wartość,CONCATENATE(\"Tydzień \",WEEKNUM(Dzień_kalendarza),\"/Dzień \",Dzień_kalendarza-DATE(YEAR(Dzień_kalendarza),1,0)),CONCATENATE(\"Dzień \",Dzień_kalendarza-DATE(YEAR(Dzień_kalendarza),1,0)))","v":"Dzień 61"},{"$f":"IF(WEEKDAY(Dzień_kalendarza)=Początek_tygodnia_wartość,CONCATENATE(\"Tydzień \",WEEKNUM(Dzień_kalendarza),\"/Dzień \",Dzień_kalendarza-DATE(YEAR(Dzień_kalendarza),1,0)),CONCATENATE(\"Dzień \",Dzień_kalendarza-DATE(YEAR(Dzień_kalendarza),1,0)))","v":"Dzień 62"}]
[{"$nulls":4},"NOTATKI"]
[]
[null,null,{"$f":"Dni_i_tygodnie+DATE(Rok_kalendarzowy,2,1)-WEEKDAY(DATE(Rok_kalendarzowy,2,1),(Początek_tygodnia=\"PON\")+1)+36","v":"2018-03-04"},"2018-03-05"]
[null,null,{"$f":"IF(WEEKDAY(Dzień_kalendarza)=Początek_tygodnia_wartość,CONCATENATE(\"Tydzień \",WEEKNUM(Dzień_kalendarza),\"/Dzień \",Dzień_kalendarza-DATE(YEAR(Dzień_kalendarza),1,0)),CONCATENATE(\"Dzień \",Dzień_kalendarza-DATE(YEAR(Dzień_kalendarza),1,0)))","v":"Tydzień 10/Dzień 63"},{"$f":"IF(WEEKDAY(Dzień_kalendarza)=Początek_tygodnia_wartość,CONCATENATE(\"Tydzień \",WEEKNUM(Dzień_kalendarza),\"/Dzień \",Dzień_kalendarza-DATE(YEAR(Dzień_kalendarza),1,0)),CONCATENATE(\"Dzień \",Dzień_kalendarza-DATE(YEAR(Dzień_kalendarza),1,0)))","v":"Dzień 64"}]

{"sheet":"MAR","index":2,"n_rows":20,"n_cols":9,"rows_kept":20,"merged":[[16,2,17,2],[17,4,19,8]]}
[null,"MAR",{"$f":"UPPER(TEXT(Początek_tygodnia,\"ddd\"))","v":"NIEDZ"},{"$f":"UPPER(TEXT(D3,\"aaa\"))","v":"PON"},"WT","ŚR","CZW","PT","SOB"]
[null,{"$f":"Rok_kalendarzowy","v":2018}]
[null,null,{"$f":"Dni_i_tygodnie+DATE(Rok_kalendarzowy,3,1)-WEEKDAY(DATE(Rok_kalendarzowy,3,1),(Początek_tygodnia=\"PON\")+1)+1","v":"2018-02-25"},"2018-02-26","2018-02-27","2018-02-28","2018-03-01","2018-03-02","2018-03-03"]
[null,null,{"$f":"IF(DAY(Dzień_kalendarza)=1,CONCATENATE(\"Tydzień \",WEEKNUM(Dzień_kalendarza),\"/Dzień \",Dzień_kalendarza-DATE(YEAR(Dzień_kalendarza),1,0)),CONCATENATE(\"Dzień \",Dzień_kalendarza-DATE(YEAR(Dzień_kalendarza),1,0)))","v":"Dzień 56"},"Dzień 57","Dzień 58","Dzień 59","Tydzień 9/Dzień 60","Dzień 61","Dzień 62"]
[]
[null,null,{"$f":"Dni_i_tygodnie+DATE(Rok_kalendarzowy,3,1)-WEEKDAY(DATE(Rok_kalendarzowy,3,1),(Początek_tygodnia=\"PON\")+1)+8","v":"2018-03-04"},"2018-03-05","2018-03-06","2018-03-07","2018-03-08","2018-03-09","2018-03-10"]
[null,null,{"$f":"IF(WEEKDAY(Dzień_kalendarza)=Początek_tygodnia_wartość,CONCATENATE(\"Tydzień \",WEEKNUM(Dzień_kalendarza),\"/Dzień \",Dzień_kalendarza-DATE(YEAR(Dzień_kalendarza),1,0)),CONCATENATE(\"Dzień \",Dzień_kalendarza-DATE(YEAR(Dzień_kalendarza),1,0)))","v":"Tydzień 10/Dzień 63"},{"$f":"IF(WEEKDAY(Dzień_kalendarza)=Początek_tygodnia_wartość,CONCATENATE(\"Tydzień \",WEEKNUM(Dzień_kalendarza),\"/Dzień \",Dzień_kalendarza-DATE(YEAR(Dzień_kalendarza),1,0)),CONCATENATE(\"Dzień \",Dzień_kalendarza-DATE(YEAR(Dzień_kalendarza),1,0)))","v":"Dzień 64"},{"$f":"IF(WEEKDAY(Dzień_kalendarza)=Początek_tygodnia_wartość,CONCATENATE(\"Tydzień \",WEEKNUM(Dzień_kalendarza),\"/Dzień \",Dzień_kalendarza-DATE(YEAR(Dzień_kalendarza),1,0)),CONCATENATE(\"Dzień \",Dzień_kalendarza-DATE(YEAR(Dzień_kalendarza),1,0)))","v":"Dzień 65"},{"$f":"IF(WEEKDAY(Dzień_kalendarza)=Początek_tygodnia_wartość,CONCATENATE(\"Tydzień \",WEEKNUM(Dzień_kalendarza),\"/Dzień \",Dzień_kalendarza-DATE(YEAR(Dzień_kalendarza),1,0)),CONCATENATE(\"Dzień \",Dzień_kalendarza-DATE(YEAR(Dzień_kalendarza),1,0)))","v":"Dzień 66"},{"$f":"IF(WEEKDAY(Dzień_kalendarza)=Początek_tygodnia_wartość,CONCATENATE(\"Tydzień \",WEEKNUM(Dzień_kalendarza),\"/Dzień \",Dzień_kalendarza-DATE(YEAR(Dzień_kalendarza),1,0)),CONCATENATE(\"Dzień \",Dzień_kalendarza-DATE(YEAR(Dzień_kalendarza),1,0)))","v":"Dzień 67"},{"$f":"IF(WEEKDAY(Dzień_kalendarza)=Początek_tygodnia_wartość,CONCATENATE(\"Tydzień \",WEEKNUM(Dzień_kalendarza),\"/Dzień \",Dzień_kalendarza-DATE(YEAR(Dzień_kalendarza),1,0)),CONCATENATE(\"Dzień \",Dzień_kalendarza-DATE(YEAR(Dzień_kalendarza),1,0)))","v":"Dzień 68"},{"$f":"IF(WEEKDAY(Dzień_kalendarza)=Początek_tygodnia_wartość,CONCATENATE(\"Tydzień \",WEEKNUM(Dzień_kalendarza),\"/Dzień \",Dzień_kalendarza-DATE(YEAR(Dzień_kalendarza),1,0)),CONCATENATE(\"Dzień \",Dzień_kalendarza-DATE(YEAR(Dzień_kalendarza),1,0)))","v":"Dzień 69"}]
[]
[null,null,{"$f":"Dni_i_tygodnie+DATE(Rok_kalendarzowy,3,1)-WEEKDAY(DATE(Rok_kalendarzowy,3,1),(Początek_tygodnia=\"PON\")+1)+15","v":"2018-03-11"},"2018-03-12","2018-03-13","2018-03-14","2018-03-15","2018-03-16","2018-03-17"]
[null,null,{"$f":"IF(WEEKDAY(Dzień_kalendarza)=Początek_tygodnia_wartość,CONCATENATE(\"Tydzień \",WEEKNUM(Dzień_kalendarza),\"/Dzień \",Dzień_kalendarza-DATE(YEAR(Dzień_kalendarza),1,0)),CONCATENATE(\"Dzień \",Dzień_kalendarza-DATE(YEAR(Dzień_kalendarza),1,0)))","v":"Tydzień 11/Dzień 70"},{"$f":"IF(WEEKDAY(Dzień_kalendarza)=Początek_tygodnia_wartość,CONCATENATE(\"Tydzień \",WEEKNUM(Dzień_kalendarza),\"/Dzień \",Dzień_kalendarza-DATE(YEAR(Dzień_kalendarza),1,0)),CONCATENATE(\"Dzień \",Dzień_kalendarza-DATE(YEAR(Dzień_kalendarza),1,0)))","v":"Dzień 71"},{"$f":"IF(WEEKDAY(Dzień_kalendarza)=Początek_tygodnia_wartość,CONCATENATE(\"Tydzień \",WEEKNUM(Dzień_kalendarza),\"/Dzień \",Dzień_kalendarza-DATE(YEAR(Dzień_kalendarza),1,0)),CONCATENATE(\"Dzień \",Dzień_kalendarza-DATE(YEAR(Dzień_kalendarza),1,0)))","v":"Dzień 72"},{"$f":"IF(WEEKDAY(Dzień_kalendarza)=Początek_tygodnia_wartość,CONCATENATE(\"Tydzień \",WEEKNUM(Dzień_kalendarza),\"/Dzień \",Dzień_kalendarza-DATE(YEAR(Dzień_kalendarza),1,0)),CONCATENATE(\"Dzień \",Dzień_kalendarza-DATE(YEAR(Dzień_kalendarza),1,0)))","v":"Dzień 73"},{"$f":"IF(WEEKDAY(Dzień_kalendarza)=Początek_tygodnia_wartość,CONCATENATE(\"Tydzień \",WEEKNUM(Dzień_kalendarza),\"/Dzień \",Dzień_kalendarza-DATE(YEAR(Dzień_kalendarza),1,0)),CONCATENATE(\"Dzień \",Dzień_kalendarza-DATE(YEAR(Dzień_kalendarza),1,0)))","v":"Dzień 74"},{"$f":"IF(WEEKDAY(Dzień_kalendarza)=Początek_tygodnia_wartość,CONCATENATE(\"Tydzień \",WEEKNUM(Dzień_kalendarza),\"/Dzień \",Dzień_kalendarza-DATE(YEAR(Dzień_kalendarza),1,0)),CONCATENATE(\"Dzień \",Dzień_kalendarza-DATE(YEAR(Dzień_kalendarza),1,0)))","v":"Dzień 75"},{"$f":"IF(WEEKDAY(Dzień_kalendarza)=Początek_tygodnia_wartość,CONCATENATE(\"Tydzień \",WEEKNUM(Dzień_kalendarza),\"/Dzień \",Dzień_kalendarza-DATE(YEAR(Dzień_kalendarza),1,0)),CONCATENATE(\"Dzień \",Dzień_kalendarza-DATE(YEAR(Dzień_kalendarza),1,0)))","v":"Dzień 76"}]
[]
[null,null,{"$f":"Dni_i_tygodnie+DATE(Rok_kalendarzowy,3,1)-WEEKDAY(DATE(Rok_kalendarzowy,3,1),(Początek_tygodnia=\"PON\")+1)+22","v":"2018-03-18"},"2018-03-19","2018-03-20","2018-03-21","2018-03-22","2018-03-23","2018-03-24"]
[null,null,{"$f":"IF(WEEKDAY(Dzień_kalendarza)=Początek_tygodnia_wartość,CONCATENATE(\"Tydzień \",WEEKNUM(Dzień_kalendarza),\"/Dzień \",Dzień_kalendarza-DATE(YEAR(Dzień_kalendarza),1,0)),CONCATENATE(\"Dzień \",Dzień_kalendarza-DATE(YEAR(Dzień_kalendarza),1,0)))","v":"Tydzień 12/Dzień 77"},{"$f":"IF(WEEKDAY(Dzień_kalendarza)=Początek_tygodnia_wartość,CONCATENATE(\"Tydzień \",WEEKNUM(Dzień_kalendarza),\"/Dzień \",Dzień_kalendarza-DATE(YEAR(Dzień_kalendarza),1,0)),CONCATENATE(\"Dzień \",Dzień_kalendarza-DATE(YEAR(Dzień_kalendarza),1,0)))","v":"Dzień 78"},{"$f":"IF(WEEKDAY(Dzień_kalendarza)=Początek_tygodnia_wartość,CONCATENATE(\"Tydzień \",WEEKNUM(Dzień_kalendarza),\"/Dzień \",Dzień_kalendarza-DATE(YEAR(Dzień_kalendarza),1,0)),CONCATENATE(\"Dzień \",Dzień_kalendarza-DATE(YEAR(Dzień_kalendarza),1,0)))","v":"Dzień 79"},{"$f":"IF(WEEKDAY(Dzień_kalendarza)=Początek_tygodnia_wartość,CONCATENATE(\"Tydzień \",WEEKNUM(Dzień_kalendarza),\"/Dzień \",Dzień_kalendarza-DATE(YEAR(Dzień_kalendarza),1,0)),CONCATENATE(\"Dzień \",Dzień_kalendarza-DATE(YEAR(Dzień_kalendarza),1,0)))","v":"Dzień 80"},{"$f":"IF(WEEKDAY(Dzień_kalendarza)=Początek_tygodnia_wartość,CONCATENATE(\"Tydzień \",WEEKNUM(Dzień_kalendarza),\"/Dzień \",Dzień_kalendarza-DATE(YEAR(Dzień_kalendarza),1,0)),CONCATENATE(\"Dzień \",Dzień_kalendarza-DATE(YEAR(Dzień_kalendarza),1,0)))","v":"Dzień 81"},{"$f":"IF(WEEKDAY(Dzień_kalendarza)=Początek_tygodnia_wartość,CONCATENATE(\"Tydzień \",WEEKNUM(Dzień_kalendarza),\"/Dzień \",Dzień_kalendarza-DATE(YEAR(Dzień_kalendarza),1,0)),CONCATENATE(\"Dzień \",Dzień_kalendarza-DATE(YEAR(Dzień_kalendarza),1,0)))","v":"Dzień 82"},{"$f":"IF(WEEKDAY(Dzień_kalendarza)=Początek_tygodnia_wartość,CONCATENATE(\"Tydzień \",WEEKNUM(Dzień_kalendarza),\"/Dzień \",Dzień_kalendarza-DATE(YEAR(Dzień_kalendarza),1,0)),CONCATENATE(\"Dzień \",Dzień_kalendarza-DATE(YEAR(Dzień_kalendarza),1,0)))","v":"Dzień 83"}]
[]
[null,null,{"$f":"Dni_i_tygodnie+DATE(Rok_kalendarzowy,3,1)-WEEKDAY(DATE(Rok_kalendarzowy,3,1),(Początek_tygodnia=\"PON\")+1)+29","v":"2018-03-25"},"2018-03-26","2018-03-27","2018-03-28","2018-03-29","2018-03-30","2018-03-31"]
[null,null,{"$f":"IF(WEEKDAY(Dzień_kalendarza)=Początek_tygodnia_wartość,CONCATENATE(\"Tydzień \",WEEKNUM(Dzień_kalendarza),\"/Dzień \",Dzień_kalendarza-DATE(YEAR(Dzień_kalendarza),1,0)),CONCATENATE(\"Dzień \",Dzień_kalendarza-DATE(YEAR(Dzień_kalendarza),1,0)))","v":"Tydzień 13/Dzień 84"},{"$f":"IF(WEEKDAY(Dzień_kalendarza)=Początek_tygodnia_wartość,CONCATENATE(\"Tydzień \",WEEKNUM(Dzień_kalendarza),\"/Dzień \",Dzień_kalendarza-DATE(YEAR(Dzień_kalendarza),1,0)),CONCATENATE(\"Dzień \",Dzień_kalendarza-DATE(YEAR(Dzień_kalendarza),1,0)))","v":"Dzień 85"},{"$f":"IF(WEEKDAY(Dzień_kalendarza)=Początek_tygodnia_wartość,CONCATENATE(\"Tydzień \",WEEKNUM(Dzień_kalendarza),\"/Dzień \",Dzień_kalendarza-DATE(YEAR(Dzień_kalendarza),1,0)),CONCATENATE(\"Dzień \",Dzień_kalendarza-DATE(YEAR(Dzień_kalendarza),1,0)))","v":"Dzień 86"},{"$f":"IF(WEEKDAY(Dzień_kalendarza)=Początek_tygodnia_wartość,CONCATENATE(\"Tydzień \",WEEKNUM(Dzień_kalendarza),\"/Dzień \",Dzień_kalendarza-DATE(YEAR(Dzień_kalendarza),1,0)),CONCATENATE(\"Dzień \",Dzień_kalendarza-DATE(YEAR(Dzień_kalendarza),1,0)))","v":"Dzień 87"},{"$f":"IF(WEEKDAY(Dzień_kalendarza)=Początek_tygodnia_wartość,CONCATENATE(\"Tydzień \",WEEKNUM(Dzień_kalendarza),\"/Dzień \",Dzień_kalendarza-DATE(YEAR(Dzień_kalendarza),1,0)),CONCATENATE(\"Dzień \",Dzień_kalendarza-DATE(YEAR(Dzień_kalendarza),1,0)))","v":"Dzień 88"},{"$f":"IF(WEEKDAY(Dzień_kalendarza)=Początek_tygodnia_wartość,CONCATENATE(\"Tydzień \",WEEKNUM(Dzień_kalendarza),\"/Dzień \",Dzień_kalendarza-DATE(YEAR(Dzień_kalendarza),1,0)),CONCATENATE(\"Dzień \",Dzień_kalendarza-DATE(YEAR(Dzień_kalendarza),1,0)))","v":"Dzień 89"},{"$f":"IF(WEEKDAY(Dzień_kalendarza)=Początek_tygodnia_wartość,CONCATENATE(\"Tydzień \",WEEKNUM(Dzień_kalendarza),\"/Dzień \",Dzień_kalendarza-DATE(YEAR(Dzień_kalendarza),1,0)),CONCATENATE(\"Dzień \",Dzień_kalendarza-DATE(YEAR(Dzień_kalendarza),1,0)))","v":"Dzień 90"}]
[{"$nulls":4},"NOTATKI"]
[]
[null,null,{"$f":"Dni_i_tygodnie+DATE(Rok_kalendarzowy,3,1)-WEEKDAY(DATE(Rok_kalendarzowy,3,1),(Początek_tygodnia=\"PON\")+1)+36","v":"2018-04-01"},"2018-04-02"]
[null,null,{"$f":"IF(WEEKDAY(Dzień_kalendarza)=Początek_tygodnia_wartość,CONCATENATE(\"Tydzień \",WEEKNUM(Dzień_kalendarza),\"/Dzień \",Dzień_kalendarza-DATE(YEAR(Dzień_kalendarza),1,0)),CONCATENATE(\"Dzień \",Dzień_kalendarza-DATE(YEAR(Dzień_kalendarza),1,0)))","v":"Tydzień 14/Dzień 91"},{"$f":"IF(WEEKDAY(Dzień_kalendarza)=Początek_tygodnia_wartość,CONCATENATE(\"Tydzień \",WEEKNUM(Dzień_kalendarza),\"/Dzień \",Dzień_kalendarza-DATE(YEAR(Dzień_kalendarza),1,0)),CONCATENATE(\"Dzień \",Dzień_kalendarza-DATE(YEAR(Dzień_kalendarza),1,0)))","v":"Dzień 92"}]

{"sheet":"KWI","index":3,"n_rows":20,"n_cols":9,"rows_kept":20,"merged":[[16,2,17,2],[17,4,19,8]]}
[null,"KWI",{"$f":"UPPER(TEXT(Początek_tygodnia,\"ddd\"))","v":"NIEDZ"},{"$f":"UPPER(TEXT(D3,\"aaa\"))","v":"PON"},"WT","ŚR","CZW","PT","SOB"]
[null,{"$f":"Rok_kalendarzowy","v":2018}]
[null,null,{"$f":"Dni_i_tygodnie+DATE(Rok_kalendarzowy,4,1)-WEEKDAY(DATE(Rok_kalendarzowy,4,1),(Początek_tygodnia=\"PON\")+1)+1","v":"2018-04-01"},"2018-04-02","2018-04-03","2018-04-04","2018-04-05","2018-04-06","2018-04-07"]
[null,null,{"$f":"IF(DAY(Dzień_kalendarza)=1,CONCATENATE(\"Tydzień \",WEEKNUM(Dzień_kalendarza),\"/Dzień \",Dzień_kalendarza-DATE(YEAR(Dzień_kalendarza),1,0)),CONCATENATE(\"Dzień \",Dzień_kalendarza-DATE(YEAR(Dzień_kalendarza),1,0)))","v":"Tydzień 14/Dzień 91"},"Dzień 92","Dzień 93","Dzień 94","Dzień 95","Dzień 96","Dzień 97"]
[]
[null,null,{"$f":"Dni_i_tygodnie+DATE(Rok_kalendarzowy,4,1)-WEEKDAY(DATE(Rok_kalendarzowy,4,1),(Początek_tygodnia=\"PON\")+1)+8","v":"2018-04-08"},"2018-04-09","2018-04-10","2018-04-11","2018-04-12","2018-04-13","2018-04-14"]
[null,null,{"$f":"IF(WEEKDAY(Dzień_kalendarza)=Początek_tygodnia_wartość,CONCATENATE(\"Tydzień \",WEEKNUM(Dzień_kalendarza),\"/Dzień \",Dzień_kalendarza-DATE(YEAR(Dzień_kalendarza),1,0)),CONCATENATE(\"Dzień \",Dzień_kalendarza-DATE(YEAR(Dzień_kalendarza),1,0)))","v":"Tydzień 15/Dzień 98"},{"$f":"IF(WEEKDAY(Dzień_kalendarza)=Początek_tygodnia_wartość,CONCATENATE(\"Tydzień \",WEEKNUM(Dzień_kalendarza),\"/Dzień \",Dzień_kalendarza-DATE(YEAR(Dzień_kalendarza),1,0)),CONCATENATE(\"Dzień \",Dzień_kalendarza-DATE(YEAR(Dzień_kalendarza),1,0)))","v":"Dzień 99"},{"$f":"IF(WEEKDAY(Dzień_kalendarza)=Początek_tygodnia_wartość,CONCATENATE(\"Tydzień \",WEEKNUM(Dzień_kalendarza),\"/Dzień \",Dzień_kalendarza-DATE(YEAR(Dzień_kalendarza),1,0)),CONCATENATE(\"Dzień \",Dzień_kalendarza-DATE(YEAR(Dzień_kalendarza),1,0)))","v":"Dzień 100"},{"$f":"IF(WEEKDAY(Dzień_kalendarza)=Początek_tygodnia_wartość,CONCATENATE(\"Tydzień \",WEEKNUM(Dzień_kalendarza),\"/Dzień \",Dzień_kalendarza-DATE(YEAR(Dzień_kalendarza),1,0)),CONCATENATE(\"Dzień \",Dzień_kalendarza-DATE(YEAR(Dzień_kalendarza),1,0)))","v":"Dzień 101"},{"$f":"IF(WEEKDAY(Dzień_kalendarza)=Początek_tygodnia_wartość,CONCATENATE(\"Tydzień \",WEEKNUM(Dzień_kalendarza),\"/Dzień \",Dzień_kalendarza-DATE(YEAR(Dzień_kalendarza),1,0)),CONCATENATE(\"Dzień \",Dzień_kalendarza-DATE(YEAR(Dzień_kalendarza),1,0)))","v":"Dzień 102"},{"$f":"IF(WEEKDAY(Dzień_kalendarza)=Początek_tygodnia_wartość,CONCATENATE(\"Tydzień \",WEEKNUM(Dzień_kalendarza),\"/Dzień \",Dzień_kalendarza-DATE(YEAR(Dzień_kalendarza),1,0)),CONCATENATE(\"Dzień \",Dzień_kalendarza-DATE(YEAR(Dzień_kalendarza),1,0)))","v":"Dzień 103"},{"$f":"IF(WEEKDAY(Dzień_kalendarza)=Początek_tygodnia_wartość,CONCATENATE(\"Tydzień \",WEEKNUM(Dzień_kalendarza),\"/Dzień \",Dzień_kalendarza-DATE(YEAR(Dzień_kalendarza),1,0)),CONCATENATE(\"Dzień \",Dzień_kalendarza-DATE(YEAR(Dzień_kalendarza),1,0)))","v":"Dzień 104"}]
[]
[null,null,{"$f":"Dni_i_tygodnie+DATE(Rok_kalendarzowy,4,1)-WEEKDAY(DATE(Rok_kalendarzowy,4,1),(Początek_tygodnia=\"PON\")+1)+15","v":"2018-04-15"},"2018-04-16","2018-04-17","2018-04-18","2018-04-19","2018-04-20","2018-04-21"]
[null,null,{"$f":"IF(WEEKDAY(Dzień_kalendarza)=Początek_tygodnia_wartość,CONCATENATE(\"Tydzień \",WEEKNUM(Dzień_kalendarza),\"/Dzień \",Dzień_kalendarza-DATE(YEAR(Dzień_kalendarza),1,0)),CONCATENATE(\"Dzień \",Dzień_kalendarza-DATE(YEAR(Dzień_kalendarza),1,0)))","v":"Tydzień 16/Dzień 105"},{"$f":"IF(WEEKDAY(Dzień_kalendarza)=Początek_tygodnia_wartość,CONCATENATE(\"Tydzień \",WEEKNUM(Dzień_kalendarza),\"/Dzień \",Dzień_kalendarza-DATE(YEAR(Dzień_kalendarza),1,0)),CONCATENATE(\"Dzień \",Dzień_kalendarza-DATE(YEAR(Dzień_kalendarza),1,0)))","v":"Dzień 106"},{"$f":"IF(WEEKDAY(Dzień_kalendarza)=Początek_tygodnia_wartość,CONCATENATE(\"Tydzień \",WEEKNUM(Dzień_kalendarza),\"/Dzień \",Dzień_kalendarza-DATE(YEAR(Dzień_kalendarza),1,0)),CONCATENATE(\"Dzień \",Dzień_kalendarza-DATE(YEAR(Dzień_kalendarza),1,0)))","v":"Dzień 107"},{"$f":"IF(WEEKDAY(Dzień_kalendarza)=Początek_tygodnia_wartość,CONCATENATE(\"Tydzień \",WEEKNUM(Dzień_kalendarza),\"/Dzień \",Dzień_kalendarza-DATE(YEAR(Dzień_kalendarza),1,0)),CONCATENATE(\"Dzień \",Dzień_kalendarza-DATE(YEAR(Dzień_kalendarza),1,0)))","v":"Dzień 108"},{"$f":"IF(WEEKDAY(Dzień_kalendarza)=Początek_tygodnia_wartość,CONCATENATE(\"Tydzień \",WEEKNUM(Dzień_kalendarza),\"/Dzień \",Dzień_kalendarza-DATE(YEAR(Dzień_kalendarza),1,0)),CONCATENATE(\"Dzień \",Dzień_kalendarza-DATE(YEAR(Dzień_kalendarza),1,0)))","v":"Dzień 109"},{"$f":"IF(WEEKDAY(Dzień_kalendarza)=Początek_tygodnia_wartość,CONCATENATE(\"Tydzień \",WEEKNUM(Dzień_kalendarza),\"/Dzień \",Dzień_kalendarza-DATE(YEAR(Dzień_kalendarza),1,0)),CONCATENATE(\"Dzień \",Dzień_kalendarza-DATE(YEAR(Dzień_kalendarza),1,0)))","v":"Dzień 110"},{"$f":"IF(WEEKDAY(Dzień_kalendarza)=Początek_tygodnia_wartość,CONCATENATE(\"Tydzień \",WEEKNUM(Dzień_kalendarza),\"/Dzień \",Dzień_kalendarza-DATE(YEAR(Dzień_kalendarza),1,0)),CONCATENATE(\"Dzień \",Dzień_kalendarza-DATE(YEAR(Dzień_kalendarza),1,0)))","v":"Dzień 111"}]
[]
[null,null,{"$f":"Dni_i_tygodnie+DATE(Rok_kalendarzowy,4,1)-WEEKDAY(DATE(Rok_kalendarzowy,4,1),(Początek_tygodnia=\"PON\")+1)+22","v":"2018-04-22"},"2018-04-23","2018-04-24","2018-04-25","2018-04-26","2018-04-27","2018-04-28"]
[null,null,{"$f":"IF(WEEKDAY(Dzień_kalendarza)=Początek_tygodnia_wartość,CONCATENATE(\"Tydzień \",WEEKNUM(Dzień_kalendarza),\"/Dzień \",Dzień_kalendarza-DATE(YEAR(Dzień_kalendarza),1,0)),CONCATENATE(\"Dzień \",Dzień_kalendarza-DATE(YEAR(Dzień_kalendarza),1,0)))","v":"Tydzień 17/Dzień 112"},{"$f":"IF(WEEKDAY(Dzień_kalendarza)=Początek_tygodnia_wartość,CONCATENATE(\"Tydzień \",WEEKNUM(Dzień_kalendarza),\"/Dzień \",Dzień_kalendarza-DATE(YEAR(Dzień_kalendarza),1,0)),CONCATENATE(\"Dzień \",Dzień_kalendarza-DATE(YEAR(Dzień_kalendarza),1,0)))","v":"Dzień 113"},{"$f":"IF(WEEKDAY(Dzień_kalendarza)=Początek_tygodnia_wartość,CONCATENATE(\"Tydzień \",WEEKNUM(Dzień_kalendarza),\"/Dzień \",Dzień_kalendarza-DATE(YEAR(Dzień_kalendarza),1,0)),CONCATENATE(\"Dzień \",Dzień_kalendarza-DATE(YEAR(Dzień_kalendarza),1,0)))","v":"Dzień 114"},{"$f":"IF(WEEKDAY(Dzień_kalendarza)=Początek_tygodnia_wartość,CONCATENATE(\"Tydzień \",WEEKNUM(Dzień_kalendarza),\"/Dzień \",Dzień_kalendarza-DATE(YEAR(Dzień_kalendarza),1,0)),CONCATENATE(\"Dzień \",Dzień_kalendarza-DATE(YEAR(Dzień_kalendarza),1,0)))","v":"Dzień 115"},{"$f":"IF(WEEKDAY(Dzień_kalendarza)=Początek_tygodnia_wartość,CONCATENATE(\"Tydzień \",WEEKNUM(Dzień_kalendarza),\"/Dzień \",Dzień_kalendarza-DATE(YEAR(Dzień_kalendarza),1,0)),CONCATENATE(\"Dzień \",Dzień_kalendarza-DATE(YEAR(Dzień_kalendarza),1,0)))","v":"Dzień 116"},{"$f":"IF(WEEKDAY(Dzień_kalendarza)=Początek_tygodnia_wartość,CONCATENATE(\"Tydzień \",WEEKNUM(Dzień_kalendarza),\"/Dzień \",Dzień_kalendarza-DATE(YEAR(Dzień_kalendarza),1,0)),CONCATENATE(\"Dzień \",Dzień_kalendarza-DATE(YEAR(Dzień_kalendarza),1,0)))","v":"Dzień 117"},{"$f":"IF(WEEKDAY(Dzień_kalendarza)=Początek_tygodnia_wartość,CONCATENATE(\"Tydzień \",WEEKNUM(Dzień_kalendarza),\"/Dzień \",Dzień_kalendarza-DATE(YEAR(Dzień_kalendarza),1,0)),CONCATENATE(\"Dzień \",Dzień_kalendarza-DATE(YEAR(Dzień_kalendarza),1,0)))","v":"Dzień 118"}]
[]
[null,null,{"$f":"Dni_i_tygodnie+DATE(Rok_kalendarzowy,4,1)-WEEKDAY(DATE(Rok_kalendarzowy,4,1),(Początek_tygodnia=\"PON\")+1)+29","v":"2018-04-29"},"2018-04-30","2018-05-01","2018-05-02","2018-05-03","2018-05-04","2018-05-05"]
[null,null,{"$f":"IF(WEEKDAY(Dzień_kalendarza)=Początek_tygodnia_wartość,CONCATENATE(\"Tydzień \",WEEKNUM(Dzień_kalendarza),\"/Dzień \",Dzień_kalendarza-DATE(YEAR(Dzień_kalendarza),1,0)),CONCATENATE(\"Dzień \",Dzień_kalendarza-DATE(YEAR(Dzień_kalendarza),1,0)))","v":"Tydzień 18/Dzień 119"},{"$f":"IF(WEEKDAY(Dzień_kalendarza)=Początek_tygodnia_wartość,CONCATENATE(\"Tydzień \",WEEKNUM(Dzień_kalendarza),\"/Dzień \",Dzień_kalendarza-DATE(YEAR(Dzień_kalendarza),1,0)),CONCATENATE(\"Dzień \",Dzień_kalendarza-DATE(YEAR(Dzień_kalendarza),1,0)))","v":"Dzień 120"},{"$f":"IF(WEEKDAY(Dzień_kalendarza)=Początek_tygodnia_wartość,CONCATENATE(\"Tydzień \",WEEKNUM(Dzień_kalendarza),\"/Dzień \",Dzień_kalendarza-DATE(YEAR(Dzień_kalendarza),1,0)),CONCATENATE(\"Dzień \",Dzień_kalendarza-DATE(YEAR(Dzień_kalendarza),1,0)))","v":"Dzień 121"},{"$f":"IF(WEEKDAY(Dzień_kalendarza)=Początek_tygodnia_wartość,CONCATENATE(\"Tydzień \",WEEKNUM(Dzień_kalendarza),\"/Dzień \",Dzień_kalendarza-DATE(YEAR(Dzień_kalendarza),1,0)),CONCATENATE(\"Dzień \",Dzień_kalendarza-DATE(YEAR(Dzień_kalendarza),1,0)))","v":"Dzień 122"},{"$f":"IF(WEEKDAY(Dzień_kalendarza)=Początek_tygodnia_wartość,CONCATENATE(\"Tydzień \",WEEKNUM(Dzień_kalendarza),\"/Dzień \",Dzień_kalendarza-DATE(YEAR(Dzień_kalendarza),1,0)),CONCATENATE(\"Dzień \",Dzień_kalendarza-DATE(YEAR(Dzień_kalendarza),1,0)))","v":"Dzień 123"},{"$f":"IF(WEEKDAY(Dzień_kalendarza)=Początek_tygodnia_wartość,CONCATENATE(\"Tydzień \",WEEKNUM(Dzień_kalendarza),\"/Dzień \",Dzień_kalendarza-DATE(YEAR(Dzień_kalendarza),1,0)),CONCATENATE(\"Dzień \",Dzień_kalendarza-DATE(YEAR(Dzień_kalendarza),1,0)))","v":"Dzień 124"},{"$f":"IF(WEEKDAY(Dzień_kalendarza)=Początek_tygodnia_wartość,CONCATENATE(\"Tydzień \",WEEKNUM(Dzień_kalendarza),\"/Dzień \",Dzień_kalendarza-DATE(YEAR(Dzień_kalendarza),1,0)),CONCATENATE(\"Dzień \",Dzień_kalendarza-DATE(YEAR(Dzień_kalendarza),1,0)))","v":"Dzień 125"}]
[{"$nulls":4},"NOTATKI"]
[]
[null,null,{"$f":"Dni_i_tygodnie+DATE(Rok_kalendarzowy,4,1)-WEEKDAY(DATE(Rok_kalendarzowy,4,1),(Początek_tygodnia=\"PON\")+1)+36","v":"2018-05-06"},"2018-05-07"]
[null,null,{"$f":"IF(WEEKDAY(Dzień_kalendarza)=Początek_tygodnia_wartość,CONCATENATE(\"Tydzień \",WEEKNUM(Dzień_kalendarza),\"/Dzień \",Dzień_kalendarza-DATE(YEAR(Dzień_kalendarza),1,0)),CONCATENATE(\"Dzień \",Dzień_kalendarza-DATE(YEAR(Dzień_kalendarza),1,0)))","v":"Tydzień 19/Dzień 126"},{"$f":"IF(WEEKDAY(Dzień_kalendarza)=Początek_tygodnia_wartość,CONCATENATE(\"Tydzień \",WEEKNUM(Dzień_kalendarza),\"/Dzień \",Dzień_kalendarza-DATE(YEAR(Dzień_kalendarza),1,0)),CONCATENATE(\"Dzień \",Dzień_kalendarza-DATE(YEAR(Dzień_kalendarza),1,0)))","v":"Dzień 127"}]

{"sheet":"MAJ","index":4,"n_rows":20,"n_cols":9,"rows_kept":20,"merged":[[16,2,17,2],[17,4,19,8]]}
[null,"MAJ",{"$f":"UPPER(TEXT(Początek_tygodnia,\"ddd\"))","v":"NIEDZ"},{"$f":"UPPER(TEXT(D3,\"aaa\"))","v":"PON"},"WT","ŚR","CZW","PT","SOB"]
[null,{"$f":"Rok_kalendarzowy","v":2018}]
[null,null,{"$f":"Dni_i_tygodnie+DATE(Rok_kalendarzowy,5,1)-WEEKDAY(DATE(Rok_kalendarzowy,5,1),(Początek_tygodnia=\"PON\")+1)+1","v":"2018-04-29"},"2018-04-30","2018-05-01","2018-05-02","2018-05-03","2018-05-04","2018-05-05"]
[null,null,{"$f":"IF(DAY(Dzień_kalendarza)=1,CONCATENATE(\"Tydzień \",WEEKNUM(Dzień_kalendarza),\"/Dzień \",Dzień_kalendarza-DATE(YEAR(Dzień_kalendarza),1,0)),CONCATENATE(\"Dzień \",Dzień_kalendarza-DATE(YEAR(Dzień_kalendarza),1,0)))","v":"Dzień 119"},"Dzień 120","Tydzień 18/Dzień 121","Dzień 122","Dzień 123","Dzień 124","Dzień 125"]
[]
[null,null,{"$f":"Dni_i_tygodnie+DATE(Rok_kalendarzowy,5,1)-WEEKDAY(DATE(Rok_kalendarzowy,5,1),(Początek_tygodnia=\"PON\")+1)+8","v":"2018-05-06"},"2018-05-07","2018-05-08","2018-05-09","2018-05-10","2018-05-11","2018-05-12"]
[null,null,{"$f":"IF(WEEKDAY(Dzień_kalendarza)=Początek_tygodnia_wartość,CONCATENATE(\"Tydzień \",WEEKNUM(Dzień_kalendarza),\"/Dzień \",Dzień_kalendarza-DATE(YEAR(Dzień_kalendarza),1,0)),CONCATENATE(\"Dzień \",Dzień_kalendarza-DATE(YEAR(Dzień_kalendarza),1,0)))","v":"Tydzień 19/Dzień 126"},{"$f":"IF(WEEKDAY(Dzień_kalendarza)=Początek_tygodnia_wartość,CONCATENATE(\"Tydzień \",WEEKNUM(Dzień_kalendarza),\"/Dzień \",Dzień_kalendarza-DATE(YEAR(Dzień_kalendarza),1,0)),CONCATENATE(\"Dzień \",Dzień_kalendarza-DATE(YEAR(Dzień_kalendarza),1,0)))","v":"Dzień 127"},{"$f":"IF(WEEKDAY(Dzień_kalendarza)=Początek_tygodnia_wartość,CONCATENATE(\"Tydzień \",WEEKNUM(Dzień_kalendarza),\"/Dzień \",Dzień_kalendarza-DATE(YEAR(Dzień_kalendarza),1,0)),CONCATENATE(\"Dzień \",Dzień_kalendarza-DATE(YEAR(Dzień_kalendarza),1,0)))","v":"Dzień 128"},{"$f":"IF(WEEKDAY(Dzień_kalendarza)=Początek_tygodnia_wartość,CONCATENATE(\"Tydzień \",WEEKNUM(Dzień_kalendarza),\"/Dzień \",Dzień_kalendarza-DATE(YEAR(Dzień_kalendarza),1,0)),CONCATENATE(\"Dzień \",Dzień_kalendarza-DATE(YEAR(Dzień_kalendarza),1,0)))","v":"Dzień 129"},{"$f":"IF(WEEKDAY(Dzień_kalendarza)=Początek_tygodnia_wartość,CONCATENATE(\"Tydzień \",WEEKNUM(Dzień_kalendarza),\"/Dzień \",Dzień_kalendarza-DATE(YEAR(Dzień_kalendarza),1,0)),CONCATENATE(\"Dzień \",Dzień_kalendarza-DATE(YEAR(Dzień_kalendarza),1,0)))","v":"Dzień 130"},{"$f":"IF(WEEKDAY(Dzień_kalendarza)=Początek_tygodnia_wartość,CONCATENATE(\"Tydzień \",WEEKNUM(Dzień_kalendarza),\"/Dzień \",Dzień_kalendarza-DATE(YEAR(Dzień_kalendarza),1,0)),CONCATENATE(\"Dzień \",Dzień_kalendarza-DATE(YEAR(Dzień_kalendarza),1,0)))","v":"Dzień 131"},{"$f":"IF(WEEKDAY(Dzień_kalendarza)=Początek_tygodnia_wartość,CONCATENATE(\"Tydzień \",WEEKNUM(Dzień_kalendarza),\"/Dzień \",Dzień_kalendarza-DATE(YEAR(Dzień_kalendarza),1,0)),CONCATENATE(\"Dzień \",Dzień_kalendarza-DATE(YEAR(Dzień_kalendarza),1,0)))","v":"Dzień 132"}]
[]
[null,null,{"$f":"Dni_i_tygodnie+DATE(Rok_kalendarzowy,5,1)-WEEKDAY(DATE(Rok_kalendarzowy,5,1),(Początek_tygodnia=\"PON\")+1)+15","v":"2018-05-13"},"2018-05-14","2018-05-15","2018-05-16","2018-05-17","2018-05-18","2018-05-19"]
[null,null,{"$f":"IF(WEEKDAY(Dzień_kalendarza)=Początek_tygodnia_wartość,CONCATENATE(\"Tydzień \",WEEKNUM(Dzień_kalendarza),\"/Dzień \",Dzień_kalendarza-DATE(YEAR(Dzień_kalendarza),1,0)),CONCATENATE(\"Dzień \",Dzień_kalendarza-DATE(YEAR(Dzień_kalendarza),1,0)))","v":"Tydzień 20/Dzień 133"},{"$f":"IF(WEEKDAY(Dzień_kalendarza)=Początek_tygodnia_wartość,CONCATENATE(\"Tydzień \",WEEKNUM(Dzień_kalendarza),\"/Dzień \",Dzień_kalendarza-DATE(YEAR(Dzień_kalendarza),1,0)),CONCATENATE(\"Dzień \",Dzień_kalendarza-DATE(YEAR(Dzień_kalendarza),1,0)))","v":"Dzień 134"},{"$f":"IF(WEEKDAY(Dzień_kalendarza)=Początek_tygodnia_wartość,CONCATENATE(\"Tydzień \",WEEKNUM(Dzień_kalendarza),\"/Dzień \",Dzień_kalendarza-DATE(YEAR(Dzień_kalendarza),1,0)),CONCATENATE(\"Dzień \",Dzień_kalendarza-DATE(YEAR(Dzień_kalendarza),1,0)))","v":"Dzień 135"},{"$f":"IF(WEEKDAY(Dzień_kalendarza)=Początek_tygodnia_wartość,CONCATENATE(\"Tydzień \",WEEKNUM(Dzień_kalendarza),\"/Dzień \",Dzień_kalendarza-DATE(YEAR(Dzień_kalendarza),1,0)),CONCATENATE(\"Dzień \",Dzień_kalendarza-DATE(YEAR(Dzień_kalendarza),1,0)))","v":"Dzień 136"},{"$f":"IF(WEEKDAY(Dzień_kalendarza)=Początek_tygodnia_wartość,CONCATENATE(\"Tydzień \",WEEKNUM(Dzień_kalendarza),\"/Dzień \",Dzień_kalendarza-DATE(YEAR(Dzień_kalendarza),1,0)),CONCATENATE(\"Dzień \",Dzień_kalendarza-DATE(YEAR(Dzień_kalendarza),1,0)))","v":"Dzień 137"},{"$f":"IF(WEEKDAY(Dzień_kalendarza)=Początek_tygodnia_wartość,CONCATENATE(\"Tydzień \",WEEKNUM(Dzień_kalendarza),\"/Dzień \",Dzień_kalendarza-DATE(YEAR(Dzień_kalendarza),1,0)),CONCATENATE(\"Dzień \",Dzień_kalendarza-DATE(YEAR(Dzień_kalendarza),1,0)))","v":"Dzień 138"},{"$f":"IF(WEEKDAY(Dzień_kalendarza)=Początek_tygodnia_wartość,CONCATENATE(\"Tydzień \",WEEKNUM(Dzień_kalendarza),\"/Dzień \",Dzień_kalendarza-DATE(YEAR(Dzień_kalendarza),1,0)),CONCATENATE(\"Dzień \",Dzień_kalendarza-DATE(YEAR(Dzień_kalendarza),1,0)))","v":"Dzień 139"}]
[]
[null,null,{"$f":"Dni_i_tygodnie+DATE(Rok_kalendarzowy,5,1)-WEEKDAY(DATE(Rok_kalendarzowy,5,1),(Początek_tygodnia=\"PON\")+1)+22","v":"2018-05-20"},"2018-05-21","2018-05-22","2018-05-23","2018-05-24","2018-05-25","2018-05-26"]
[null,null,{"$f":"IF(WEEKDAY(Dzień_kalendarza)=Początek_tygodnia_wartość,CONCATENATE(\"Tydzień \",WEEKNUM(Dzień_kalendarza),\"/Dzień \",Dzień_kalendarza-DATE(YEAR(Dzień_kalendarza),1,0)),CONCATENATE(\"Dzień \",Dzień_kalendarza-DATE(YEAR(Dzień_kalendarza),1,0)))","v":"Tydzień 21/Dzień 140"},{"$f":"IF(WEEKDAY(Dzień_kalendarza)=Początek_tygodnia_wartość,CONCATENATE(\"Tydzień \",WEEKNUM(Dzień_kalendarza),\"/Dzień \",Dzień_kalendarza-DATE(YEAR(Dzień_kalendarza),1,0)),CONCATENATE(\"Dzień \",Dzień_kalendarza-DATE(YEAR(Dzień_kalendarza),1,0)))","v":"Dzień 141"},{"$f":"IF(WEEKDAY(Dzień_kalendarza)=Początek_tygodnia_wartość,CONCATENATE(\"Tydzień \",WEEKNUM(Dzień_kalendarza),\"/Dzień \",Dzień_kalendarza-DATE(YEAR(Dzień_kalendarza),1,0)),CONCATENATE(\"Dzień \",Dzień_kalendarza-DATE(YEAR(Dzień_kalendarza),1,0)))","v":"Dzień 142"},{"$f":"IF(WEEKDAY(Dzień_kalendarza)=Początek_tygodnia_wartość,CONCATENATE(\"Tydzień \",WEEKNUM(Dzień_kalendarza),\"/Dzień \",Dzień_kalendarza-DATE(YEAR(Dzień_kalendarza),1,0)),CONCATENATE(\"Dzień \",Dzień_kalendarza-DATE(YEAR(Dzień_kalendarza),1,0)))","v":"Dzień 143"},{"$f":"IF(WEEKDAY(Dzień_kalendarza)=Początek_tygodnia_wartość,CONCATENATE(\"Tydzień \",WEEKNUM(Dzień_kalendarza),\"/Dzień \",Dzień_kalendarza-DATE(YEAR(Dzień_kalendarza),1,0)),CONCATENATE(\"Dzień \",Dzień_kalendarza-DATE(YEAR(Dzień_kalendarza),1,0)))","v":"Dzień 144"},{"$f":"IF(WEEKDAY(Dzień_kalendarza)=Początek_tygodnia_wartość,CONCATENATE(\"Tydzień \",WEEKNUM(Dzień_kalendarza),\"/Dzień \",Dzień_kalendarza-DATE(YEAR(Dzień_kalendarza),1,0)),CONCATENATE(\"Dzień \",Dzień_kalendarza-DATE(YEAR(Dzień_kalendarza),1,0)))","v":"Dzień 145"},{"$f":"IF(WEEKDAY(Dzień_kalendarza)=Początek_tygodnia_wartość,CONCATENATE(\"Tydzień \",WEEKNUM(Dzień_kalendarza),\"/Dzień \",Dzień_kalendarza-DATE(YEAR(Dzień_kalendarza),1,0)),CONCATENATE(\"Dzień \",Dzień_kalendarza-DATE(YEAR(Dzień_kalendarza),1,0)))","v":"Dzień 146"}]
[]
[null,null,{"$f":"Dni_i_tygodnie+DATE(Rok_kalendarzowy,5,1)-WEEKDAY(DATE(Rok_kalendarzowy,5,1),(Początek_tygodnia=\"PON\")+1)+29","v":"2018-05-27"},"2018-05-28","2018-05-29","2018-05-30","2018-05-31","2018-06-01","2018-06-02"]
[null,null,{"$f":"IF(WEEKDAY(Dzień_kalendarza)=Początek_tygodnia_wartość,CONCATENATE(\"Tydzień \",WEEKNUM(Dzień_kalendarza),\"/Dzień \",Dzień_kalendarza-DATE(YEAR(Dzień_kalendarza),1,0)),CONCATENATE(\"Dzień \",Dzień_kalendarza-DATE(YEAR(Dzień_kalendarza),1,0)))","v":"Tydzień 22/Dzień 147"},{"$f":"IF(WEEKDAY(Dzień_kalendarza)=Początek_tygodnia_wartość,CONCATENATE(\"Tydzień \",WEEKNUM(Dzień_kalendarza),\"/Dzień \",Dzień_kalendarza-DATE(YEAR(Dzień_kalendarza),1,0)),CONCATENATE(\"Dzień \",Dzień_kalendarza-DATE(YEAR(Dzień_kalendarza),1,0)))","v":"Dzień 148"},{"$f":"IF(WEEKDAY(Dzień_kalendarza)=Początek_tygodnia_wartość,CONCATENATE(\"Tydzień \",WEEKNUM(Dzień_kalendarza),\"/Dzień \",Dzień_kalendarza-DATE(YEAR(Dzień_kalendarza),1,0)),CONCATENATE(\"Dzień \",Dzień_kalendarza-DATE(YEAR(Dzień_kalendarza),1,0)))","v":"Dzień 149"},{"$f":"IF(WEEKDAY(Dzień_kalendarza)=Początek_tygodnia_wartość,CONCATENATE(\"Tydzień \",WEEKNUM(Dzień_kalendarza),\"/Dzień \",Dzień_kalendarza-DATE(YEAR(Dzień_kalendarza),1,0)),CONCATENATE(\"Dzień \",Dzień_kalendarza-DATE(YEAR(Dzień_kalendarza),1,0)))","v":"Dzień 150"},{"$f":"IF(WEEKDAY(Dzień_kalendarza)=Początek_tygodnia_wartość,CONCATENATE(\"Tydzień \",WEEKNUM(Dzień_kalendarza),\"/Dzień \",Dzień_kalendarza-DATE(YEAR(Dzień_kalendarza),1,0)),CONCATENATE(\"Dzień \",Dzień_kalendarza-DATE(YEAR(Dzień_kalendarza),1,0)))","v":"Dzień 151"},{"$f":"IF(WEEKDAY(Dzień_kalendarza)=Początek_tygodnia_wartość,CONCATENATE(\"Tydzień \",WEEKNUM(Dzień_kalendarza),\"/Dzień \",Dzień_kalendarza-DATE(YEAR(Dzień_kalendarza),1,0)),CONCATENATE(\"Dzień \",Dzień_kalendarza-DATE(YEAR(Dzień_kalendarza),1,0)))","v":"Dzień 152"},{"$f":"IF(WEEKDAY(Dzień_kalendarza)=Początek_tygodnia_wartość,CONCATENATE(\"Tydzień \",WEEKNUM(Dzień_kalendarza),\"/Dzień \",Dzień_kalendarza-DATE(YEAR(Dzień_kalendarza),1,0)),CONCATENATE(\"Dzień \",Dzień_kalendarza-DATE(YEAR(Dzień_kalendarza),1,0)))","v":"Dzień 153"}]
[{"$nulls":4},"NOTATKI"]
[]
[null,null,{"$f":"Dni_i_tygodnie+DATE(Rok_kalendarzowy,5,1)-WEEKDAY(DATE(Rok_kalendarzowy,5,1),(Początek_tygodnia=\"PON\")+1)+36","v":"2018-06-03"},"2018-06-04"]
[null,null,{"$f":"IF(WEEKDAY(Dzień_kalendarza)=Początek_tygodnia_wartość,CONCATENATE(\"Tydzień \",WEEKNUM(Dzień_kalendarza),\"/Dzień \",Dzień_kalendarza-DATE(YEAR(Dzień_kalendarza),1,0)),CONCATENATE(\"Dzień \",Dzień_kalendarza-DATE(YEAR(Dzień_kalendarza),1,0)))","v":"Tydzień 23/Dzień 154"},{"$f":"IF(WEEKDAY(Dzień_kalendarza)=Początek_tygodnia_wartość,CONCATENATE(\"Tydzień \",WEEKNUM(Dzień_kalendarza),\"/Dzień \",Dzień_kalendarza-DATE(YEAR(Dzień_kalendarza),1,0)),CONCATENATE(\"Dzień \",Dzień_kalendarza-DATE(YEAR(Dzień_kalendarza),1,0)))","v":"Dzień 155"}]

{"sheet":"CZE","index":5,"n_rows":20,"n_cols":9,"rows_kept":20,"merged":[[16,2,17,2],[17,4,19,8]]}
[null,"CZE",{"$f":"UPPER(TEXT(Początek_tygodnia,\"ddd\"))","v":"NIEDZ"},{"$f":"UPPER(TEXT(D3,\"aaa\"))","v":"PON"},"WT","ŚR","CZW","PT","SOB"]
[null,{"$f":"Rok_kalendarzowy","v":2018}]
[null,null,{"$f":"Dni_i_tygodnie+DATE(Rok_kalendarzowy,6,1)-WEEKDAY(DATE(Rok_kalendarzowy,6,1),(Początek_tygodnia=\"PON\")+1)+1","v":"2018-05-27"},"2018-05-28","2018-05-29","2018-05-30","2018-05-31","2018-06-01","2018-06-02"]
[null,null,{"$f":"IF(DAY(Dzień_kalendarza)=1,CONCATENATE(\"Tydzień \",WEEKNUM(Dzień_kalendarza),\"/Dzień \",Dzień_kalendarza-DATE(YEAR(Dzień_kalendarza),1,0)),CONCATENATE(\"Dzień \",Dzień_kalendarza-DATE(YEAR(Dzień_kalendarza),1,0)))","v":"Dzień 147"},"Dzień 148","Dzień 149","Dzień 150","Dzień 151","Tydzień 22/Dzień 152","Dzień 153"]
[]
[null,null,{"$f":"Dni_i_tygodnie+DATE(Rok_kalendarzowy,6,1)-WEEKDAY(DATE(Rok_kalendarzowy,6,1),(Początek_tygodnia=\"PON\")+1)+8","v":"2018-06-03"},"2018-06-04","2018-06-05","2018-06-06","2018-06-07","2018-06-08","2018-06-09"]
[null,null,{"$f":"IF(WEEKDAY(Dzień_kalendarza)=Początek_tygodnia_wartość,CONCATENATE(\"Tydzień \",WEEKNUM(Dzień_kalendarza),\"/Dzień \",Dzień_kalendarza-DATE(YEAR(Dzień_kalendarza),1,0)),CONCATENATE(\"Dzień \",Dzień_kalendarza-DATE(YEAR(Dzień_kalendarza),1,0)))","v":"Tydzień 23/Dzień 154"},{"$f":"IF(WEEKDAY(Dzień_kalendarza)=Początek_tygodnia_wartość,CONCATENATE(\"Tydzień \",WEEKNUM(Dzień_kalendarza),\"/Dzień \",Dzień_kalendarza-DATE(YEAR(Dzień_kalendarza),1,0)),CONCATENATE(\"Dzień \",Dzień_kalendarza-DATE(YEAR(Dzień_kalendarza),1,0)))","v":"Dzień 155"},{"$f":"IF(WEEKDAY(Dzień_kalendarza)=Początek_tygodnia_wartość,CONCATENATE(\"Tydzień \",WEEKNUM(Dzień_kalendarza),\"/Dzień \",Dzień_kalendarza-DATE(YEAR(Dzień_kalendarza),1,0)),CONCATENATE(\"Dzień \",Dzień_kalendarza-DATE(YEAR(Dzień_kalendarza),1,0)))","v":"Dzień 156"},{"$f":"IF(WEEKDAY(Dzień_kalendarza)=Początek_tygodnia_wartość,CONCATENATE(\"Tydzień \",WEEKNUM(Dzień_kalendarza),\"/Dzień \",Dzień_kalendarza-DATE(YEAR(Dzień_kalendarza),1,0)),CONCATENATE(\"Dzień \",Dzień_kalendarza-DATE(YEAR(Dzień_kalendarza),1,0)))","v":"Dzień 157"},{"$f":"IF(WEEKDAY(Dzień_kalendarza)=Początek_tygodnia_wartość,CONCATENATE(\"Tydzień \",WEEKNUM(Dzień_kalendarza),\"/Dzień \",Dzień_kalendarza-DATE(YEAR(Dzień_kalendarza),1,0)),CONCATENATE(\"Dzień \",Dzień_kalendarza-DATE(YEAR(Dzień_kalendarza),1,0)))","v":"Dzień 158"},{"$f":"IF(WEEKDAY(Dzień_kalendarza)=Początek_tygodnia_wartość,CONCATENATE(\"Tydzień \",WEEKNUM(Dzień_kalendarza),\"/Dzień \",Dzień_kalendarza-DATE(YEAR(Dzień_kalendarza),1,0)),CONCATENATE(\"Dzień \",Dzień_kalendarza-DATE(YEAR(Dzień_kalendarza),1,0)))","v":"Dzień 159"},{"$f":"IF(WEEKDAY(Dzień_kalendarza)=Początek_tygodnia_wartość,CONCATENATE(\"Tydzień \",WEEKNUM(Dzień_kalendarza),\"/Dzień \",Dzień_kalendarza-DATE(YEAR(Dzień_kalendarza),1,0)),CONCATENATE(\"Dzień \",Dzień_kalendarza-DATE(YEAR(Dzień_kalendarza),1,0)))","v":"Dzień 160"}]
[]
[null,null,{"$f":"Dni_i_tygodnie+DATE(Rok_kalendarzowy,6,1)-WEEKDAY(DATE(Rok_kalendarzowy,6,1),(Początek_tygodnia=\"PON\")+1)+15","v":"2018-06-10"},"2018-06-11","2018-06-12","2018-06-13","2018-06-14","2018-06-15","2018-06-16"]
[null,null,{"$f":"IF(WEEKDAY(Dzień_kalendarza)=Początek_tygodnia_wartość,CONCATENATE(\"Tydzień \",WEEKNUM(Dzień_kalendarza),\"/Dzień \",Dzień_kalendarza-DATE(YEAR(Dzień_kalendarza),1,0)),CONCATENATE(\"Dzień \",Dzień_kalendarza-DATE(YEAR(Dzień_kalendarza),1,0)))","v":"Tydzień 24/Dzień 161"},{"$f":"IF(WEEKDAY(Dzień_kalendarza)=Początek_tygodnia_wartość,CONCATENATE(\"Tydzień \",WEEKNUM(Dzień_kalendarza),\"/Dzień \",Dzień_kalendarza-DATE(YEAR(Dzień_kalendarza),1,0)),CONCATENATE(\"Dzień \",Dzień_kalendarza-DATE(YEAR(Dzień_kalendarza),1,0)))","v":"Dzień 162"},{"$f":"IF(WEEKDAY(Dzień_kalendarza)=Początek_tygodnia_wartość,CONCATENATE(\"Tydzień \",WEEKNUM(Dzień_kalendarza),\"/Dzień \",Dzień_kalendarza-DATE(YEAR(Dzień_kalendarza),1,0)),CONCATENATE(\"Dzień \",Dzień_kalendarza-DATE(YEAR(Dzień_kalendarza),1,0)))","v":"Dzień 163"},{"$f":"IF(WEEKDAY(Dzień_kalendarza)=Początek_tygodnia_wartość,CONCATENATE(\"Tydzień \",WEEKNUM(Dzień_kalendarza),\"/Dzień \",Dzień_kalendarza-DATE(YEAR(Dzień_kalendarza),1,0)),CONCATENATE(\"Dzień \",Dzień_kalendarza-DATE(YEAR(Dzień_kalendarza),1,0)))","v":"Dzień 164"},{"$f":"IF(WEEKDAY(Dzień_kalendarza)=Początek_tygodnia_wartość,CONCATENATE(\"Tydzień \",WEEKNUM(Dzień_kalendarza),\"/Dzień \",Dzień_kalendarza-DATE(YEAR(Dzień_kalendarza),1,0)),CONCATENATE(\"Dzień \",Dzień_kalendarza-DATE(YEAR(Dzień_kalendarza),1,0)))","v":"Dzień 165"},{"$f":"IF(WEEKDAY(Dzień_kalendarza)=Początek_tygodnia_wartość,CONCATENATE(\"Tydzień \",WEEKNUM(Dzień_kalendarza),\"/Dzień \",Dzień_kalendarza-DATE(YEAR(Dzień_kalendarza),1,0)),CONCATENATE(\"Dzień \",Dzień_kalendarza-DATE(YEAR(Dzień_kalendarza),1,0)))","v":"Dzień 166"},{"$f":"IF(WEEKDAY(Dzień_kalendarza)=Początek_tygodnia_wartość,CONCATENATE(\"Tydzień \",WEEKNUM(Dzień_kalendarza),\"/Dzień \",Dzień_kalendarza-DATE(YEAR(Dzień_kalendarza),1,0)),CONCATENATE(\"Dzień \",Dzień_kalendarza-DATE(YEAR(Dzień_kalendarza),1,0)))","v":"Dzień 167"}]
[]
[null,null,{"$f":"Dni_i_tygodnie+DATE(Rok_kalendarzowy,6,1)-WEEKDAY(DATE(Rok_kalendarzowy,6,1),(Początek_tygodnia=\"PON\")+1)+22","v":"2018-06-17"},"2018-06-18","2018-06-19","2018-06-20","2018-06-21","2018-06-22","2018-06-23"]
[null,null,{"$f":"IF(WEEKDAY(Dzień_kalendarza)=Początek_tygodnia_wartość,CONCATENATE(\"Tydzień \",WEEKNUM(Dzień_kalendarza),\"/Dzień \",Dzień_kalendarza-DATE(YEAR(Dzień_kalendarza),1,0)),CONCATENATE(\"Dzień \",Dzień_kalendarza-DATE(YEAR(Dzień_kalendarza),1,0)))","v":"Tydzień 25/Dzień 168"},{"$f":"IF(WEEKDAY(Dzień_kalendarza)=Początek_tygodnia_wartość,CONCATENATE(\"Tydzień \",WEEKNUM(Dzień_kalendarza),\"/Dzień \",Dzień_kalendarza-DATE(YEAR(Dzień_kalendarza),1,0)),CONCATENATE(\"Dzień \",Dzień_kalendarza-DATE(YEAR(Dzień_kalendarza),1,0)))","v":"Dzień 169"},{"$f":"IF(WEEKDAY(Dzień_kalendarza)=Początek_tygodnia_wartość,CONCATENATE(\"Tydzień \",WEEKNUM(Dzień_kalendarza),\"/Dzień \",Dzień_kalendarza-DATE(YEAR(Dzień_kalendarza),1,0)),CONCATENATE(\"Dzień \",Dzień_kalendarza-DATE(YEAR(Dzień_kalendarza),1,0)))","v":"Dzień 170"},{"$f":"IF(WEEKDAY(Dzień_kalendarza)=Początek_tygodnia_wartość,CONCATENATE(\"Tydzień \",WEEKNUM(Dzień_kalendarza),\"/Dzień \",Dzień_kalendarza-DATE(YEAR(Dzień_kalendarza),1,0)),CONCATENATE(\"Dzień \",Dzień_kalendarza-DATE(YEAR(Dzień_kalendarza),1,0)))","v":"Dzień 171"},{"$f":"IF(WEEKDAY(Dzień_kalendarza)=Początek_tygodnia_wartość,CONCATENATE(\"Tydzień \",WEEKNUM(Dzień_kalendarza),\"/Dzień \",Dzień_kalendarza-DATE(YEAR(Dzień_kalendarza),1,0)),CONCATENATE(\"Dzień \",Dzień_kalendarza-DATE(YEAR(Dzień_kalendarza),1,0)))","v":"Dzień 172"},{"$f":"IF(WEEKDAY(Dzień_kalendarza)=Początek_tygodnia_wartość,CONCATENATE(\"Tydzień \",WEEKNUM(Dzień_kalendarza),\"/Dzień \",Dzień_kalendarza-DATE(YEAR(Dzień_kalendarza),1,0)),CONCATENATE(\"Dzień \",Dzień_kalendarza-DATE(YEAR(Dzień_kalendarza),1,0)))","v":"Dzień 173"},{"$f":"IF(WEEKDAY(Dzień_kalendarza)=Początek_tygodnia_wartość,CONCATENATE(\"Tydzień \",WEEKNUM(Dzień_kalendarza),\"/Dzień \",Dzień_kalendarza-DATE(YEAR(Dzień_kalendarza),1,0)),CONCATENATE(\"Dzień \",Dzień_kalendarza-DATE(YEAR(Dzień_kalendarza),1,0)))","v":"Dzień 174"}]
[]
[null,null,{"$f":"Dni_i_tygodnie+DATE(Rok_kalendarzowy,6,1)-WEEKDAY(DATE(Rok_kalendarzowy,6,1),(Początek_tygodnia=\"PON\")+1)+29","v":"2018-06-24"},"2018-06-25","2018-06-26","2018-06-27","2018-06-28","2018-06-29","2018-06-30"]
[null,null,{"$f":"IF(WEEKDAY(Dzień_kalendarza)=Początek_tygodnia_wartość,CONCATENATE(\"Tydzień \",WEEKNUM(Dzień_kalendarza),\"/Dzień \",Dzień_kalendarza-DATE(YEAR(Dzień_kalendarza),1,0)),CONCATENATE(\"Dzień \",Dzień_kalendarza-DATE(YEAR(Dzień_kalendarza),1,0)))","v":"Tydzień 26/Dzień 175"},{"$f":"IF(WEEKDAY(Dzień_kalendarza)=Początek_tygodnia_wartość,CONCATENATE(\"Tydzień \",WEEKNUM(Dzień_kalendarza),\"/Dzień \",Dzień_kalendarza-DATE(YEAR(Dzień_kalendarza),1,0)),CONCATENATE(\"Dzień \",Dzień_kalendarza-DATE(YEAR(Dzień_kalendarza),1,0)))","v":"Dzień 176"},{"$f":"IF(WEEKDAY(Dzień_kalendarza)=Początek_tygodnia_wartość,CONCATENATE(\"Tydzień \",WEEKNUM(Dzień_kalendarza),\"/Dzień \",Dzień_kalendarza-DATE(YEAR(Dzień_kalendarza),1,0)),CONCATENATE(\"Dzień \",Dzień_kalendarza-DATE(YEAR(Dzień_kalendarza),1,0)))","v":"Dzień 177"},{"$f":"IF(WEEKDAY(Dzień_kalendarza)=Początek_tygodnia_wartość,CONCATENATE(\"Tydzień \",WEEKNUM(Dzień_kalendarza),\"/Dzień \",Dzień_kalendarza-DATE(YEAR(Dzień_kalendarza),1,0)),CONCATENATE(\"Dzień \",Dzień_kalendarza-DATE(YEAR(Dzień_kalendarza),1,0)))","v":"Dzień 178"},{"$f":"IF(WEEKDAY(Dzień_kalendarza)=Początek_tygodnia_wartość,CONCATENATE(\"Tydzień \",WEEKNUM(Dzień_kalendarza),\"/Dzień \",Dzień_kalendarza-DATE(YEAR(Dzień_kalendarza),1,0)),CONCATENATE(\"Dzień \",Dzień_kalendarza-DATE(YEAR(Dzień_kalendarza),1,0)))","v":"Dzień 179"},{"$f":"IF(WEEKDAY(Dzień_kalendarza)=Początek_tygodnia_wartość,CONCATENATE(\"Tydzień \",WEEKNUM(Dzień_kalendarza),\"/Dzień \",Dzień_kalendarza-DATE(YEAR(Dzień_kalendarza),1,0)),CONCATENATE(\"Dzień \",Dzień_kalendarza-DATE(YEAR(Dzień_kalendarza),1,0)))","v":"Dzień 180"},{"$f":"IF(WEEKDAY(Dzień_kalendarza)=Początek_tygodnia_wartość,CONCATENATE(\"Tydzień \",WEEKNUM(Dzień_kalendarza),\"/Dzień \",Dzień_kalendarza-DATE(YEAR(Dzień_kalendarza),1,0)),CONCATENATE(\"Dzień \",Dzień_kalendarza-DATE(YEAR(Dzień_kalendarza),1,0)))","v":"Dzień 181"}]
[{"$nulls":4},"NOTATKI"]
[]
[null,null,{"$f":"Dni_i_tygodnie+DATE(Rok_kalendarzowy,6,1)-WEEKDAY(DATE(Rok_kalendarzowy,6,1),(Początek_tygodnia=\"PON\")+1)+36","v":"2018-07-01"},"2018-07-02"]
[null,null,{"$f":"IF(WEEKDAY(Dzień_kalendarza)=Początek_tygodnia_wartość,CONCATENATE(\"Tydzień \",WEEKNUM(Dzień_kalendarza),\"/Dzień \",Dzień_kalendarza-DATE(YEAR(Dzień_kalendarza),1,0)),CONCATENATE(\"Dzień \",Dzień_kalendarza-DATE(YEAR(Dzień_kalendarza),1,0)))","v":"Tydzień 27/Dzień 182"},{"$f":"IF(WEEKDAY(Dzień_kalendarza)=Początek_tygodnia_wartość,CONCATENATE(\"Tydzień \",WEEKNUM(Dzień_kalendarza),\"/Dzień \",Dzień_kalendarza-DATE(YEAR(Dzień_kalendarza),1,0)),CONCATENATE(\"Dzień \",Dzień_kalendarza-DATE(YEAR(Dzień_kalendarza),1,0)))","v":"Dzień 183"}]

{"sheet":"LIP","index":6,"n_rows":20,"n_cols":9,"rows_kept":20,"merged":[[16,2,17,2],[17,4,19,8]]}
[null,"LIP",{"$f":"UPPER(TEXT(Początek_tygodnia,\"ddd\"))","v":"NIEDZ"},{"$f":"UPPER(TEXT(D3,\"aaa\"))","v":"PON"},"WT","ŚR","CZW","PT","SOB"]
[null,{"$f":"Rok_kalendarzowy","v":2018}]
[null,null,{"$f":"Dni_i_tygodnie+DATE(Rok_kalendarzowy,7,1)-WEEKDAY(DATE(Rok_kalendarzowy,7,1),(Początek_tygodnia=\"PON\")+1)+1","v":"2018-07-01"},"2018-07-02","2018-07-03","2018-07-04","2018-07-05","2018-07-06","2018-07-07"]
[null,null,{"$f":"IF(DAY(Dzień_kalendarza)=1,CONCATENATE(\"Tydzień \",WEEKNUM(Dzień_kalendarza),\"/Dzień \",Dzień_kalendarza-DATE(YEAR(Dzień_kalendarza),1,0)),CONCATENATE(\"Dzień \",Dzień_kalendarza-DATE(YEAR(Dzień_kalendarza),1,0)))","v":"Tydzień 27/Dzień 182"},"Dzień 183","Dzień 184","Dzień 185","Dzień 186","Dzień 187","Dzień 188"]
[]
[null,null,{"$f":"Dni_i_tygodnie+DATE(Rok_kalendarzowy,7,1)-WEEKDAY(DATE(Rok_kalendarzowy,7,1),(Początek_tygodnia=\"PON\")+1)+8","v":"2018-07-08"},"2018-07-09","2018-07-10","2018-07-11","2018-07-12","2018-07-13","2018-07-14"]
[null,null,{"$f":"IF(WEEKDAY(Dzień_kalendarza)=Początek_tygodnia_wartość,CONCATENATE(\"Tydzień \",WEEKNUM(Dzień_kalendarza),\"/Dzień \",Dzień_kalendarza-DATE(YEAR(Dzień_kalendarza),1,0)),CONCATENATE(\"Dzień \",Dzień_kalendarza-DATE(YEAR(Dzień_kalendarza),1,0)))","v":"Tydzień 28/Dzień 189"},{"$f":"IF(WEEKDAY(Dzień_kalendarza)=Początek_tygodnia_wartość,CONCATENATE(\"Tydzień \",WEEKNUM(Dzień_kalendarza),\"/Dzień \",Dzień_kalendarza-DATE(YEAR(Dzień_kalendarza),1,0)),CONCATENATE(\"Dzień \",Dzień_kalendarza-DATE(YEAR(Dzień_kalendarza),1,0)))","v":"Dzień 190"},{"$f":"IF(WEEKDAY(Dzień_kalendarza)=Początek_tygodnia_wartość,CONCATENATE(\"Tydzień \",WEEKNUM(Dzień_kalendarza),\"/Dzień \",Dzień_kalendarza-DATE(YEAR(Dzień_kalendarza),1,0)),CONCATENATE(\"Dzień \",Dzień_kalendarza-DATE(YEAR(Dzień_kalendarza),1,0)))","v":"Dzień 191"},{"$f":"IF(WEEKDAY(Dzień_kalendarza)=Początek_tygodnia_wartość,CONCATENATE(\"Tydzień \",WEEKNUM(Dzień_kalendarza),\"/Dzień \",Dzień_kalendarza-DATE(YEAR(Dzień_kalendarza),1,0)),CONCATENATE(\"Dzień \",Dzień_kalendarza-DATE(YEAR(Dzień_kalendarza),1,0)))","v":"Dzień 192"},{"$f":"IF(WEEKDAY(Dzień_kalendarza)=Początek_tygodnia_wartość,CONCATENATE(\"Tydzień \",WEEKNUM(Dzień_kalendarza),\"/Dzień \",Dzień_kalendarza-DATE(YEAR(Dzień_kalendarza),1,0)),CONCATENATE(\"Dzień \",Dzień_kalendarza-DATE(YEAR(Dzień_kalendarza),1,0)))","v":"Dzień 193"},{"$f":"IF(WEEKDAY(Dzień_kalendarza)=Początek_tygodnia_wartość,CONCATENATE(\"Tydzień \",WEEKNUM(Dzień_kalendarza),\"/Dzień \",Dzień_kalendarza-DATE(YEAR(Dzień_kalendarza),1,0)),CONCATENATE(\"Dzień \",Dzień_kalendarza-DATE(YEAR(Dzień_kalendarza),1,0)))","v":"Dzień 194"},{"$f":"IF(WEEKDAY(Dzień_kalendarza)=Początek_tygodnia_wartość,CONCATENATE(\"Tydzień \",WEEKNUM(Dzień_kalendarza),\"/Dzień \",Dzień_kalendarza-DATE(YEAR(Dzień_kalendarza),1,0)),CONCATENATE(\"Dzień \",Dzień_kalendarza-DATE(YEAR(Dzień_kalendarza),1,0)))","v":"Dzień 195"}]
[]
[null,null,{"$f":"Dni_i_tygodnie+DATE(Rok_kalendarzowy,7,1)-WEEKDAY(DATE(Rok_kalendarzowy,7,1),(Początek_tygodnia=\"PON\")+1)+15","v":"2018-07-15"},"2018-07-16","2018-07-17","2018-07-18","2018-07-19","2018-07-20","2018-07-21"]
[null,null,{"$f":"IF(WEEKDAY(Dzień_kalendarza)=Początek_tygodnia_wartość,CONCATENATE(\"Tydzień \",WEEKNUM(Dzień_kalendarza),\"/Dzień \",Dzień_kalendarza-DATE(YEAR(Dzień_kalendarza),1,0)),CONCATENATE(\"Dzień \",Dzień_kalendarza-DATE(YEAR(Dzień_kalendarza),1,0)))","v":"Tydzień 29/Dzień 196"},{"$f":"IF(WEEKDAY(Dzień_kalendarza)=Początek_tygodnia_wartość,CONCATENATE(\"Tydzień \",WEEKNUM(Dzień_kalendarza),\"/Dzień \",Dzień_kalendarza-DATE(YEAR(Dzień_kalendarza),1,0)),CONCATENATE(\"Dzień \",Dzień_kalendarza-DATE(YEAR(Dzień_kalendarza),1,0)))","v":"Dzień 197"},{"$f":"IF(WEEKDAY(Dzień_kalendarza)=Początek_tygodnia_wartość,CONCATENATE(\"Tydzień \",WEEKNUM(Dzień_kalendarza),\"/Dzień \",Dzień_kalendarza-DATE(YEAR(Dzień_kalendarza),1,0)),CONCATENATE(\"Dzień \",Dzień_kalendarza-DATE(YEAR(Dzień_kalendarza),1,0)))","v":"Dzień 198"},{"$f":"IF(WEEKDAY(Dzień_kalendarza)=Początek_tygodnia_wartość,CONCATENATE(\"Tydzień \",WEEKNUM(Dzień_kalendarza),\"/Dzień \",Dzień_kalendarza-DATE(YEAR(Dzień_kalendarza),1,0)),CONCATENATE(\"Dzień \",Dzień_kalendarza-DATE(YEAR(Dzień_kalendarza),1,0)))","v":"Dzień 199"},{"$f":"IF(WEEKDAY(Dzień_kalendarza)=Początek_tygodnia_wartość,CONCATENATE(\"Tydzień \",WEEKNUM(Dzień_kalendarza),\"/Dzień \",Dzień_kalendarza-DATE(YEAR(Dzień_kalendarza),1,0)),CONCATENATE(\"Dzień \",Dzień_kalendarza-DATE(YEAR(Dzień_kalendarza),1,0)))","v":"Dzień 200"},{"$f":"IF(WEEKDAY(Dzień_kalendarza)=Początek_tygodnia_wartość,CONCATENATE(\"Tydzień \",WEEKNUM(Dzień_kalendarza),\"/Dzień \",Dzień_kalendarza-DATE(YEAR(Dzień_kalendarza),1,0)),CONCATENATE(\"Dzień \",Dzień_kalendarza-DATE(YEAR(Dzień_kalendarza),1,0)))","v":"Dzień 201"},{"$f":"IF(WEEKDAY(Dzień_kalendarza)=Początek_tygodnia_wartość,CONCATENATE(\"Tydzień \",WEEKNUM(Dzień_kalendarza),\"/Dzień \",Dzień_kalendarza-DATE(YEAR(Dzień_kalendarza),1,0)),CONCATENATE(\"Dzień \",Dzień_kalendarza-DATE(YEAR(Dzień_kalendarza),1,0)))","v":"Dzień 202"}]
[]
[null,null,{"$f":"Dni_i_tygodnie+DATE(Rok_kalendarzowy,7,1)-WEEKDAY(DATE(Rok_kalendarzowy,7,1),(Początek_tygodnia=\"PON\")+1)+22","v":"2018-07-22"},"2018-07-23","2018-07-24","2018-07-25","2018-07-26","2018-07-27","2018-07-28"]
[null,null,{"$f":"IF(WEEKDAY(Dzień_kalendarza)=Początek_tygodnia_wartość,CONCATENATE(\"Tydzień \",WEEKNUM(Dzień_kalendarza),\"/Dzień \",Dzień_kalendarza-DATE(YEAR(Dzień_kalendarza),1,0)),CONCATENATE(\"Dzień \",Dzień_kalendarza-DATE(YEAR(Dzień_kalendarza),1,0)))","v":"Tydzień 30/Dzień 203"},{"$f":"IF(WEEKDAY(Dzień_kalendarza)=Początek_tygodnia_wartość,CONCATENATE(\"Tydzień \",WEEKNUM(Dzień_kalendarza),\"/Dzień \",Dzień_kalendarza-DATE(YEAR(Dzień_kalendarza),1,0)),CONCATENATE(\"Dzień \",Dzień_kalendarza-DATE(YEAR(Dzień_kalendarza),1,0)))","v":"Dzień 204"},{"$f":"IF(WEEKDAY(Dzień_kalendarza)=Początek_tygodnia_wartość,CONCATENATE(\"Tydzień \",WEEKNUM(Dzień_kalendarza),\"/Dzień \",Dzień_kalendarza-DATE(YEAR(Dzień_kalendarza),1,0)),CONCATENATE(\"Dzień \",Dzień_kalendarza-DATE(YEAR(Dzień_kalendarza),1,0)))","v":"Dzień 205"},{"$f":"IF(WEEKDAY(Dzień_kalendarza)=Początek_tygodnia_wartość,CONCATENATE(\"Tydzień \",WEEKNUM(Dzień_kalendarza),\"/Dzień \",Dzień_kalendarza-DATE(YEAR(Dzień_kalendarza),1,0)),CONCATENATE(\"Dzień \",Dzień_kalendarza-DATE(YEAR(Dzień_kalendarza),1,0)))","v":"Dzień 206"},{"$f":"IF(WEEKDAY(Dzień_kalendarza)=Początek_tygodnia_wartość,CONCATENATE(\"Tydzień \",WEEKNUM(Dzień_kalendarza),\"/Dzień \",Dzień_kalendarza-DATE(YEAR(Dzień_kalendarza),1,0)),CONCATENATE(\"Dzień \",Dzień_kalendarza-DATE(YEAR(Dzień_kalendarza),1,0)))","v":"Dzień 207"},{"$f":"IF(WEEKDAY(Dzień_kalendarza)=Początek_tygodnia_wartość,CONCATENATE(\"Tydzień \",WEEKNUM(Dzień_kalendarza),\"/Dzień \",Dzień_kalendarza-DATE(YEAR(Dzień_kalendarza),1,0)),CONCATENATE(\"Dzień \",Dzień_kalendarza-DATE(YEAR(Dzień_kalendarza),1,0)))","v":"Dzień 208"},{"$f":"IF(WEEKDAY(Dzień_kalendarza)=Początek_tygodnia_wartość,CONCATENATE(\"Tydzień \",WEEKNUM(Dzień_kalendarza),\"/Dzień \",Dzień_kalendarza-DATE(YEAR(Dzień_kalendarza),1,0)),CONCATENATE(\"Dzień \",Dzień_kalendarza-DATE(YEAR(Dzień_kalendarza),1,0)))","v":"Dzień 209"}]
[]
[null,null,{"$f":"Dni_i_tygodnie+DATE(Rok_kalendarzowy,7,1)-WEEKDAY(DATE(Rok_kalendarzowy,7,1),(Początek_tygodnia=\"PON\")+1)+29","v":"2018-07-29"},"2018-07-30","2018-07-31","2018-08-01","2018-08-02","2018-08-03","2018-08-04"]
[null,null,{"$f":"IF(WEEKDAY(Dzień_kalendarza)=Początek_tygodnia_wartość,CONCATENATE(\"Tydzień \",WEEKNUM(Dzień_kalendarza),\"/Dzień \",Dzień_kalendarza-DATE(YEAR(Dzień_kalendarza),1,0)),CONCATENATE(\"Dzień \",Dzień_kalendarza-DATE(YEAR(Dzień_kalendarza),1,0)))","v":"Tydzień 31/Dzień 210"},{"$f":"IF(WEEKDAY(Dzień_kalendarza)=Początek_tygodnia_wartość,CONCATENATE(\"Tydzień \",WEEKNUM(Dzień_kalendarza),\"/Dzień \",Dzień_kalendarza-DATE(YEAR(Dzień_kalendarza),1,0)),CONCATENATE(\"Dzień \",Dzień_kalendarza-DATE(YEAR(Dzień_kalendarza),1,0)))","v":"Dzień 211"},{"$f":"IF(WEEKDAY(Dzień_kalendarza)=Początek_tygodnia_wartość,CONCATENATE(\"Tydzień \",WEEKNUM(Dzień_kalendarza),\"/Dzień \",Dzień_kalendarza-DATE(YEAR(Dzień_kalendarza),1,0)),CONCATENATE(\"Dzień \",Dzień_kalendarza-DATE(YEAR(Dzień_kalendarza),1,0)))","v":"Dzień 212"},{"$f":"IF(WEEKDAY(Dzień_kalendarza)=Początek_tygodnia_wartość,CONCATENATE(\"Tydzień \",WEEKNUM(Dzień_kalendarza),\"/Dzień \",Dzień_kalendarza-DATE(YEAR(Dzień_kalendarza),1,0)),CONCATENATE(\"Dzień \",Dzień_kalendarza-DATE(YEAR(Dzień_kalendarza),1,0)))","v":"Dzień 213"},{"$f":"IF(WEEKDAY(Dzień_kalendarza)=Początek_tygodnia_wartość,CONCATENATE(\"Tydzień \",WEEKNUM(Dzień_kalendarza),\"/Dzień \",Dzień_kalendarza-DATE(YEAR(Dzień_kalendarza),1,0)),CONCATENATE(\"Dzień \",Dzień_kalendarza-DATE(YEAR(Dzień_kalendarza),1,0)))","v":"Dzień 214"},{"$f":"IF(WEEKDAY(Dzień_kalendarza)=Początek_tygodnia_wartość,CONCATENATE(\"Tydzień \",WEEKNUM(Dzień_kalendarza),\"/Dzień \",Dzień_kalendarza-DATE(YEAR(Dzień_kalendarza),1,0)),CONCATENATE(\"Dzień \",Dzień_kalendarza-DATE(YEAR(Dzień_kalendarza),1,0)))","v":"Dzień 215"},{"$f":"IF(WEEKDAY(Dzień_kalendarza)=Początek_tygodnia_wartość,CONCATENATE(\"Tydzień \",WEEKNUM(Dzień_kalendarza),\"/Dzień \",Dzień_kalendarza-DATE(YEAR(Dzień_kalendarza),1,0)),CONCATENATE(\"Dzień \",Dzień_kalendarza-DATE(YEAR(Dzień_kalendarza),1,0)))","v":"Dzień 216"}]
[{"$nulls":4},"NOTATKI"]
[]
[null,null,{"$f":"Dni_i_tygodnie+DATE(Rok_kalendarzowy,7,1)-WEEKDAY(DATE(Rok_kalendarzowy,7,1),(Początek_tygodnia=\"PON\")+1)+36","v":"2018-08-05"},"2018-08-06"]
[null,null,{"$f":"IF(WEEKDAY(Dzień_kalendarza)=Początek_tygodnia_wartość,CONCATENATE(\"Tydzień \",WEEKNUM(Dzień_kalendarza),\"/Dzień \",Dzień_kalendarza-DATE(YEAR(Dzień_kalendarza),1,0)),CONCATENATE(\"Dzień \",Dzień_kalendarza-DATE(YEAR(Dzień_kalendarza),1,0)))","v":"Tydzień 32/Dzień 217"},{"$f":"IF(WEEKDAY(Dzień_kalendarza)=Początek_tygodnia_wartość,CONCATENATE(\"Tydzień \",WEEKNUM(Dzień_kalendarza),\"/Dzień \",Dzień_kalendarza-DATE(YEAR(Dzień_kalendarza),1,0)),CONCATENATE(\"Dzień \",Dzień_kalendarza-DATE(YEAR(Dzień_kalendarza),1,0)))","v":"Dzień 218"}]

{"sheet":"SIE","index":7,"n_rows":20,"n_cols":9,"rows_kept":20,"merged":[[16,2,17,2],[17,4,19,8]]}
[null,"SIE",{"$f":"UPPER(TEXT(Początek_tygodnia,\"ddd\"))","v":"NIEDZ"},{"$f":"UPPER(TEXT(D3,\"aaa\"))","v":"PON"},"WT","ŚR","CZW","PT","SOB"]
[null,{"$f":"Rok_kalendarzowy","v":2018}]
[null,null,{"$f":"Dni_i_tygodnie+DATE(Rok_kalendarzowy,8,1)-WEEKDAY(DATE(Rok_kalendarzowy,8,1),(Początek_tygodnia=\"PON\")+1)+1","v":"2018-07-29"},"2018-07-30","2018-07-31","2018-08-01","2018-08-02","2018-08-03","2018-08-04"]
[null,null,{"$f":"IF(DAY(Dzień_kalendarza)=1,CONCATENATE(\"Tydzień \",WEEKNUM(Dzień_kalendarza),\"/Dzień \",Dzień_kalendarza-DATE(YEAR(Dzień_kalendarza),1,0)),CONCATENATE(\"Dzień \",Dzień_kalendarza-DATE(YEAR(Dzień_kalendarza),1,0)))","v":"Dzień 210"},"Dzień 211","Dzień 212","Tydzień 31/Dzień 213","Dzień 214","Dzień 215","Dzień 216"]
[]
[null,null,{"$f":"Dni_i_tygodnie+DATE(Rok_kalendarzowy,8,1)-WEEKDAY(DATE(Rok_kalendarzowy,8,1),(Początek_tygodnia=\"PON\")+1)+8","v":"2018-08-05"},"2018-08-06","2018-08-07","2018-08-08","2018-08-09","2018-08-10","2018-08-11"]
[null,null,{"$f":"IF(WEEKDAY(Dzień_kalendarza)=Początek_tygodnia_wartość,CONCATENATE(\"Tydzień \",WEEKNUM(Dzień_kalendarza),\"/Dzień \",Dzień_kalendarza-DATE(YEAR(Dzień_kalendarza),1,0)),CONCATENATE(\"Dzień \",Dzień_kalendarza-DATE(YEAR(Dzień_kalendarza),1,0)))","v":"Tydzień 32/Dzień 217"},{"$f":"IF(WEEKDAY(Dzień_kalendarza)=Początek_tygodnia_wartość,CONCATENATE(\"Tydzień \",WEEKNUM(Dzień_kalendarza),\"/Dzień \",Dzień_kalendarza-DATE(YEAR(Dzień_kalendarza),1,0)),CONCATENATE(\"Dzień \",Dzień_kalendarza-DATE(YEAR(Dzień_kalendarza),1,0)))","v":"Dzień 218"},{"$f":"IF(WEEKDAY(Dzień_kalendarza)=Początek_tygodnia_wartość,CONCATENATE(\"Tydzień \",WEEKNUM(Dzień_kalendarza),\"/Dzień \",Dzień_kalendarza-DATE(YEAR(Dzień_kalendarza),1,0)),CONCATENATE(\"Dzień \",Dzień_kalendarza-DATE(YEAR(Dzień_kalendarza),1,0)))","v":"Dzień 219"},{"$f":"IF(WEEKDAY(Dzień_kalendarza)=Początek_tygodnia_wartość,CONCATENATE(\"Tydzień \",WEEKNUM(Dzień_kalendarza),\"/Dzień \",Dzień_kalendarza-DATE(YEAR(Dzień_kalendarza),1,0)),CONCATENATE(\"Dzień \",Dzień_kalendarza-DATE(YEAR(Dzień_kalendarza),1,0)))","v":"Dzień 220"},{"$f":"IF(WEEKDAY(Dzień_kalendarza)=Początek_tygodnia_wartość,CONCATENATE(\"Tydzień \",WEEKNUM(Dzień_kalendarza),\"/Dzień \",Dzień_kalendarza-DATE(YEAR(Dzień_kalendarza),1,0)),CONCATENATE(\"Dzień \",Dzień_kalendarza-DATE(YEAR(Dzień_kalendarza),1,0)))","v":"Dzień 221"},{"$f":"IF(WEEKDAY(Dzień_kalendarza)=Początek_tygodnia_wartość,CONCATENATE(\"Tydzień \",WEEKNUM(Dzień_kalendarza),\"/Dzień \",Dzień_kalendarza-DATE(YEAR(Dzień_kalendarza),1,0)),CONCATENATE(\"Dzień \",Dzień_kalendarza-DATE(YEAR(Dzień_kalendarza),1,0)))","v":"Dzień 222"},{"$f":"IF(WEEKDAY(Dzień_kalendarza)=Początek_tygodnia_wartość,CONCATENATE(\"Tydzień \",WEEKNUM(Dzień_kalendarza),\"/Dzień \",Dzień_kalendarza-DATE(YEAR(Dzień_kalendarza),1,0)),CONCATENATE(\"Dzień \",Dzień_kalendarza-DATE(YEAR(Dzień_kalendarza),1,0)))","v":"Dzień 223"}]
[]
[null,null,{"$f":"Dni_i_tygodnie+DATE(Rok_kalendarzowy,8,1)-WEEKDAY(DATE(Rok_kalendarzowy,8,1),(Początek_tygodnia=\"PON\")+1)+15","v":"2018-08-12"},"2018-08-13","2018-08-14","2018-08-15","2018-08-16","2018-08-17","2018-08-18"]
[null,null,{"$f":"IF(WEEKDAY(Dzień_kalendarza)=Początek_tygodnia_wartość,CONCATENATE(\"Tydzień \",WEEKNUM(Dzień_kalendarza),\"/Dzień \",Dzień_kalendarza-DATE(YEAR(Dzień_kalendarza),1,0)),CONCATENATE(\"Dzień \",Dzień_kalendarza-DATE(YEAR(Dzień_kalendarza),1,0)))","v":"Tydzień 33/Dzień 224"},{"$f":"IF(WEEKDAY(Dzień_kalendarza)=Początek_tygodnia_wartość,CONCATENATE(\"Tydzień \",WEEKNUM(Dzień_kalendarza),\"/Dzień \",Dzień_kalendarza-DATE(YEAR(Dzień_kalendarza),1,0)),CONCATENATE(\"Dzień \",Dzień_kalendarza-DATE(YEAR(Dzień_kalendarza),1,0)))","v":"Dzień 225"},{"$f":"IF(WEEKDAY(Dzień_kalendarza)=Początek_tygodnia_wartość,CONCATENATE(\"Tydzień \",WEEKNUM(Dzień_kalendarza),\"/Dzień \",Dzień_kalendarza-DATE(YEAR(Dzień_kalendarza),1,0)),CONCATENATE(\"Dzień \",Dzień_kalendarza-DATE(YEAR(Dzień_kalendarza),1,0)))","v":"Dzień 226"},{"$f":"IF(WEEKDAY(Dzień_kalendarza)=Początek_tygodnia_wartość,CONCATENATE(\"Tydzień \",WEEKNUM(Dzień_kalendarza),\"/Dzień \",Dzień_kalendarza-DATE(YEAR(Dzień_kalendarza),1,0)),CONCATENATE(\"Dzień \",Dzień_kalendarza-DATE(YEAR(Dzień_kalendarza),1,0)))","v":"Dzień 227"},{"$f":"IF(WEEKDAY(Dzień_kalendarza)=Początek_tygodnia_wartość,CONCATENATE(\"Tydzień \",WEEKNUM(Dzień_kalendarza),\"/Dzień \",Dzień_kalendarza-DATE(YEAR(Dzień_kalendarza),1,0)),CONCATENATE(\"Dzień \",Dzień_kalendarza-DATE(YEAR(Dzień_kalendarza),1,0)))","v":"Dzień 228"},{"$f":"IF(WEEKDAY(Dzień_kalendarza)=Początek_tygodnia_wartość,CONCATENATE(\"Tydzień \",WEEKNUM(Dzień_kalendarza),\"/Dzień \",Dzień_kalendarza-DATE(YEAR(Dzień_kalendarza),1,0)),CONCATENATE(\"Dzień \",Dzień_kalendarza-DATE(YEAR(Dzień_kalendarza),1,0)))","v":"Dzień 229"},{"$f":"IF(WEEKDAY(Dzień_kalendarza)=Początek_tygodnia_wartość,CONCATENATE(\"Tydzień \",WEEKNUM(Dzień_kalendarza),\"/Dzień \",Dzień_kalendarza-DATE(YEAR(Dzień_kalendarza),1,0)),CONCATENATE(\"Dzień \",Dzień_kalendarza-DATE(YEAR(Dzień_kalendarza),1,0)))","v":"Dzień 230"}]
[]
[null,null,{"$f":"Dni_i_tygodnie+DATE(Rok_kalendarzowy,8,1)-WEEKDAY(DATE(Rok_kalendarzowy,8,1),(Początek_tygodnia=\"PON\")+1)+22","v":"2018-08-19"},"2018-08-20","2018-08-21","2018-08-22","2018-08-23","2018-08-24","2018-08-25"]
[null,null,{"$f":"IF(WEEKDAY(Dzień_kalendarza)=Początek_tygodnia_wartość,CONCATENATE(\"Tydzień \",WEEKNUM(Dzień_kalendarza),\"/Dzień \",Dzień_kalendarza-DATE(YEAR(Dzień_kalendarza),1,0)),CONCATENATE(\"Dzień \",Dzień_kalendarza-DATE(YEAR(Dzień_kalendarza),1,0)))","v":"Tydzień 34/Dzień 231"},{"$f":"IF(WEEKDAY(Dzień_kalendarza)=Początek_tygodnia_wartość,CONCATENATE(\"Tydzień \",WEEKNUM(Dzień_kalendarza),\"/Dzień \",Dzień_kalendarza-DATE(YEAR(Dzień_kalendarza),1,0)),CONCATENATE(\"Dzień \",Dzień_kalendarza-DATE(YEAR(Dzień_kalendarza),1,0)))","v":"Dzień 232"},{"$f":"IF(WEEKDAY(Dzień_kalendarza)=Początek_tygodnia_wartość,CONCATENATE(\"Tydzień \",WEEKNUM(Dzień_kalendarza),\"/Dzień \",Dzień_kalendarza-DATE(YEAR(Dzień_kalendarza),1,0)),CONCATENATE(\"Dzień \",Dzień_kalendarza-DATE(YEAR(Dzień_kalendarza),1,0)))","v":"Dzień 233"},{"$f":"IF(WEEKDAY(Dzień_kalendarza)=Początek_tygodnia_wartość,CONCATENATE(\"Tydzień \",WEEKNUM(Dzień_kalendarza),\"/Dzień \",Dzień_kalendarza-DATE(YEAR(Dzień_kalendarza),1,0)),CONCATENATE(\"Dzień \",Dzień_kalendarza-DATE(YEAR(Dzień_kalendarza),1,0)))","v":"Dzień 234"},{"$f":"IF(WEEKDAY(Dzień_kalendarza)=Początek_tygodnia_wartość,CONCATENATE(\"Tydzień \",WEEKNUM(Dzień_kalendarza),\"/Dzień \",Dzień_kalendarza-DATE(YEAR(Dzień_kalendarza),1,0)),CONCATENATE(\"Dzień \",Dzień_kalendarza-DATE(YEAR(Dzień_kalendarza),1,0)))","v":"Dzień 235"},{"$f":"IF(WEEKDAY(Dzień_kalendarza)=Początek_tygodnia_wartość,CONCATENATE(\"Tydzień \",WEEKNUM(Dzień_kalendarza),\"/Dzień \",Dzień_kalendarza-DATE(YEAR(Dzień_kalendarza),1,0)),CONCATENATE(\"Dzień \",Dzień_kalendarza-DATE(YEAR(Dzień_kalendarza),1,0)))","v":"Dzień 236"},{"$f":"IF(WEEKDAY(Dzień_kalendarza)=Początek_tygodnia_wartość,CONCATENATE(\"Tydzień \",WEEKNUM(Dzień_kalendarza),\"/Dzień \",Dzień_kalendarza-DATE(YEAR(Dzień_kalendarza),1,0)),CONCATENATE(\"Dzień \",Dzień_kalendarza-DATE(YEAR(Dzień_kalendarza),1,0)))","v":"Dzień 237"}]
[]
[null,null,{"$f":"Dni_i_tygodnie+DATE(Rok_kalendarzowy,8,1)-WEEKDAY(DATE(Rok_kalendarzowy,8,1),(Początek_tygodnia=\"PON\")+1)+29","v":"2018-08-26"},"2018-08-27","2018-08-28","2018-08-29","2018-08-30","2018-08-31","2018-09-01"]
[null,null,{"$f":"IF(WEEKDAY(Dzień_kalendarza)=Początek_tygodnia_wartość,CONCATENATE(\"Tydzień \",WEEKNUM(Dzień_kalendarza),\"/Dzień \",Dzień_kalendarza-DATE(YEAR(Dzień_kalendarza),1,0)),CONCATENATE(\"Dzień \",Dzień_kalendarza-DATE(YEAR(Dzień_kalendarza),1,0)))","v":"Tydzień 35/Dzień 238"},{"$f":"IF(WEEKDAY(Dzień_kalendarza)=Początek_tygodnia_wartość,CONCATENATE(\"Tydzień \",WEEKNUM(Dzień_kalendarza),\"/Dzień \",Dzień_kalendarza-DATE(YEAR(Dzień_kalendarza),1,0)),CONCATENATE(\"Dzień \",Dzień_kalendarza-DATE(YEAR(Dzień_kalendarza),1,0)))","v":"Dzień 239"},{"$f":"IF(WEEKDAY(Dzień_kalendarza)=Początek_tygodnia_wartość,CONCATENATE(\"Tydzień \",WEEKNUM(Dzień_kalendarza),\"/Dzień \",Dzień_kalendarza-DATE(YEAR(Dzień_kalendarza),1,0)),CONCATENATE(\"Dzień \",Dzień_kalendarza-DATE(YEAR(Dzień_kalendarza),1,0)))","v":"Dzień 240"},{"$f":"IF(WEEKDAY(Dzień_kalendarza)=Początek_tygodnia_wartość,CONCATENATE(\"Tydzień \",WEEKNUM(Dzień_kalendarza),\"/Dzień \",Dzień_kalendarza-DATE(YEAR(Dzień_kalendarza),1,0)),CONCATENATE(\"Dzień \",Dzień_kalendarza-DATE(YEAR(Dzień_kalendarza),1,0)))","v":"Dzień 241"},{"$f":"IF(WEEKDAY(Dzień_kalendarza)=Początek_tygodnia_wartość,CONCATENATE(\"Tydzień \",WEEKNUM(Dzień_kalendarza),\"/Dzień \",Dzień_kalendarza-DATE(YEAR(Dzień_kalendarza),1,0)),CONCATENATE(\"Dzień \",Dzień_kalendarza-DATE(YEAR(Dzień_kalendarza),1,0)))","v":"Dzień 242"},{"$f":"IF(WEEKDAY(Dzień_kalendarza)=Początek_tygodnia_wartość,CONCATENATE(\"Tydzień \",WEEKNUM(Dzień_kalendarza),\"/Dzień \",Dzień_kalendarza-DATE(YEAR(Dzień_kalendarza),1,0)),CONCATENATE(\"Dzień \",Dzień_kalendarza-DATE(YEAR(Dzień_kalendarza),1,0)))","v":"Dzień 243"},{"$f":"IF(WEEKDAY(Dzień_kalendarza)=Początek_tygodnia_wartość,CONCATENATE(\"Tydzień \",WEEKNUM(Dzień_kalendarza),\"/Dzień \",Dzień_kalendarza-DATE(YEAR(Dzień_kalendarza),1,0)),CONCATENATE(\"Dzień \",Dzień_kalendarza-DATE(YEAR(Dzień_kalendarza),1,0)))","v":"Dzień 244"}]
[{"$nulls":4},"NOTATKI"]
[]
[null,null,{"$f":"Dni_i_tygodnie+DATE(Rok_kalendarzowy,8,1)-WEEKDAY(DATE(Rok_kalendarzowy,8,1),(Początek_tygodnia=\"PON\")+1)+36","v":"2018-09-02"},"2018-09-03"]
[null,null,{"$f":"IF(WEEKDAY(Dzień_kalendarza)=Początek_tygodnia_wartość,CONCATENATE(\"Tydzień \",WEEKNUM(Dzień_kalendarza),\"/Dzień \",Dzień_kalendarza-DATE(YEAR(Dzień_kalendarza),1,0)),CONCATENATE(\"Dzień \",Dzień_kalendarza-DATE(YEAR(Dzień_kalendarza),1,0)))","v":"Tydzień 36/Dzień 245"},{"$f":"IF(WEEKDAY(Dzień_kalendarza)=Początek_tygodnia_wartość,CONCATENATE(\"Tydzień \",WEEKNUM(Dzień_kalendarza),\"/Dzień \",Dzień_kalendarza-DATE(YEAR(Dzień_kalendarza),1,0)),CONCATENATE(\"Dzień \",Dzień_kalendarza-DATE(YEAR(Dzień_kalendarza),1,0)))","v":"Dzień 246"}]

{"sheet":"WRZ","index":8,"n_rows":20,"n_cols":9,"rows_kept":20,"merged":[[16,2,17,2],[17,4,19,8]]}
[null,"WRZ",{"$f":"UPPER(TEXT(Początek_tygodnia,\"ddd\"))","v":"NIEDZ"},{"$f":"UPPER(TEXT(D3,\"aaa\"))","v":"PON"},"WT","ŚR","CZW","PT","SOB"]
[null,{"$f":"Rok_kalendarzowy","v":2018}]
[null,null,{"$f":"Dni_i_tygodnie+DATE(Rok_kalendarzowy,9,1)-WEEKDAY(DATE(Rok_kalendarzowy,9,1),(Początek_tygodnia=\"PON\")+1)+1","v":"2018-08-26"},"2018-08-27","2018-08-28","2018-08-29","2018-08-30","2018-08-31","2018-09-01"]
[null,null,{"$f":"IF(DAY(Dzień_kalendarza)=1,CONCATENATE(\"Tydzień \",WEEKNUM(Dzień_kalendarza),\"/Dzień \",Dzień_kalendarza-DATE(YEAR(Dzień_kalendarza),1,0)),CONCATENATE(\"Dzień \",Dzień_kalendarza-DATE(YEAR(Dzień_kalendarza),1,0)))","v":"Dzień 238"},"Dzień 239","Dzień 240","Dzień 241","Dzień 242","Dzień 243","Tydzień 35/Dzień 244"]
[]
[null,null,{"$f":"Dni_i_tygodnie+DATE(Rok_kalendarzowy,9,1)-WEEKDAY(DATE(Rok_kalendarzowy,9,1),(Początek_tygodnia=\"PON\")+1)+8","v":"2018-09-02"},"2018-09-03","2018-09-04","2018-09-05","2018-09-06","2018-09-07","2018-09-08"]
[null,null,{"$f":"IF(WEEKDAY(Dzień_kalendarza)=Początek_tygodnia_wartość,CONCATENATE(\"Tydzień \",WEEKNUM(Dzień_kalendarza),\"/Dzień \",Dzień_kalendarza-DATE(YEAR(Dzień_kalendarza),1,0)),CONCATENATE(\"Dzień \",Dzień_kalendarza-DATE(YEAR(Dzień_kalendarza),1,0)))","v":"Tydzień 36/Dzień 245"},{"$f":"IF(WEEKDAY(Dzień_kalendarza)=Początek_tygodnia_wartość,CONCATENATE(\"Tydzień \",WEEKNUM(Dzień_kalendarza),\"/Dzień \",Dzień_kalendarza-DATE(YEAR(Dzień_kalendarza),1,0)),CONCATENATE(\"Dzień \",Dzień_kalendarza-DATE(YEAR(Dzień_kalendarza),1,0)))","v":"Dzień 246"},{"$f":"IF(WEEKDAY(Dzień_kalendarza)=Początek_tygodnia_wartość,CONCATENATE(\"Tydzień \",WEEKNUM(Dzień_kalendarza),\"/Dzień \",Dzień_kalendarza-DATE(YEAR(Dzień_kalendarza),1,0)),CONCATENATE(\"Dzień \",Dzień_kalendarza-DATE(YEAR(Dzień_kalendarza),1,0)))","v":"Dzień 247"},{"$f":"IF(WEEKDAY(Dzień_kalendarza)=Początek_tygodnia_wartość,CONCATENATE(\"Tydzień \",WEEKNUM(Dzień_kalendarza),\"/Dzień \",Dzień_kalendarza-DATE(YEAR(Dzień_kalendarza),1,0)),CONCATENATE(\"Dzień \",Dzień_kalendarza-DATE(YEAR(Dzień_kalendarza),1,0)))","v":"Dzień 248"},{"$f":"IF(WEEKDAY(Dzień_kalendarza)=Początek_tygodnia_wartość,CONCATENATE(\"Tydzień \",WEEKNUM(Dzień_kalendarza),\"/Dzień \",Dzień_kalendarza-DATE(YEAR(Dzień_kalendarza),1,0)),CONCATENATE(\"Dzień \",Dzień_kalendarza-DATE(YEAR(Dzień_kalendarza),1,0)))","v":"Dzień 249"},{"$f":"IF(WEEKDAY(Dzień_kalendarza)=Początek_tygodnia_wartość,CONCATENATE(\"Tydzień \",WEEKNUM(Dzień_kalendarza),\"/Dzień \",Dzień_kalendarza-DATE(YEAR(Dzień_kalendarza),1,0)),CONCATENATE(\"Dzień \",Dzień_kalendarza-DATE(YEAR(Dzień_kalendarza),1,0)))","v":"Dzień 250"},{"$f":"IF(WEEKDAY(Dzień_kalendarza)=Początek_tygodnia_wartość,CONCATENATE(\"Tydzień \",WEEKNUM(Dzień_kalendarza),\"/Dzień \",Dzień_kalendarza-DATE(YEAR(Dzień_kalendarza),1,0)),CONCATENATE(\"Dzień \",Dzień_kalendarza-DATE(YEAR(Dzień_kalendarza),1,0)))","v":"Dzień 251"}]
[]
[null,null,{"$f":"Dni_i_tygodnie+DATE(Rok_kalendarzowy,9,1)-WEEKDAY(DATE(Rok_kalendarzowy,9,1),(Początek_tygodnia=\"PON\")+1)+15","v":"2018-09-09"},"2018-09-10","2018-09-11","2018-09-12","2018-09-13","2018-09-14","2018-09-15"]
[null,null,{"$f":"IF(WEEKDAY(Dzień_kalendarza)=Początek_tygodnia_wartość,CONCATENATE(\"Tydzień \",WEEKNUM(Dzień_kalendarza),\"/Dzień \",Dzień_kalendarza-DATE(YEAR(Dzień_kalendarza),1,0)),CONCATENATE(\"Dzień \",Dzień_kalendarza-DATE(YEAR(Dzień_kalendarza),1,0)))","v":"Tydzień 37/Dzień 252"},{"$f":"IF(WEEKDAY(Dzień_kalendarza)=Początek_tygodnia_wartość,CONCATENATE(\"Tydzień \",WEEKNUM(Dzień_kalendarza),\"/Dzień \",Dzień_kalendarza-DATE(YEAR(Dzień_kalendarza),1,0)),CONCATENATE(\"Dzień \",Dzień_kalendarza-DATE(YEAR(Dzień_kalendarza),1,0)))","v":"Dzień 253"},{"$f":"IF(WEEKDAY(Dzień_kalendarza)=Początek_tygodnia_wartość,CONCATENATE(\"Tydzień \",WEEKNUM(Dzień_kalendarza),\"/Dzień \",Dzień_kalendarza-DATE(YEAR(Dzień_kalendarza),1,0)),CONCATENATE(\"Dzień \",Dzień_kalendarza-DATE(YEAR(Dzień_kalendarza),1,0)))","v":"Dzień 254"},{"$f":"IF(WEEKDAY(Dzień_kalendarza)=Początek_tygodnia_wartość,CONCATENATE(\"Tydzień \",WEEKNUM(Dzień_kalendarza),\"/Dzień \",Dzień_kalendarza-DATE(YEAR(Dzień_kalendarza),1,0)),CONCATENATE(\"Dzień \",Dzień_kalendarza-DATE(YEAR(Dzień_kalendarza),1,0)))","v":"Dzień 255"},{"$f":"IF(WEEKDAY(Dzień_kalendarza)=Początek_tygodnia_wartość,CONCATENATE(\"Tydzień \",WEEKNUM(Dzień_kalendarza),\"/Dzień \",Dzień_kalendarza-DATE(YEAR(Dzień_kalendarza),1,0)),CONCATENATE(\"Dzień \",Dzień_kalendarza-DATE(YEAR(Dzień_kalendarza),1,0)))","v":"Dzień 256"},{"$f":"IF(WEEKDAY(Dzień_kalendarza)=Początek_tygodnia_wartość,CONCATENATE(\"Tydzień \",WEEKNUM(Dzień_kalendarza),\"/Dzień \",Dzień_kalendarza-DATE(YEAR(Dzień_kalendarza),1,0)),CONCATENATE(\"Dzień \",Dzień_kalendarza-DATE(YEAR(Dzień_kalendarza),1,0)))","v":"Dzień 257"},{"$f":"IF(WEEKDAY(Dzień_kalendarza)=Początek_tygodnia_wartość,CONCATENATE(\"Tydzień \",WEEKNUM(Dzień_kalendarza),\"/Dzień \",Dzień_kalendarza-DATE(YEAR(Dzień_kalendarza),1,0)),CONCATENATE(\"Dzień \",Dzień_kalendarza-DATE(YEAR(Dzień_kalendarza),1,0)))","v":"Dzień 258"}]
[]
[null,null,{"$f":"Dni_i_tygodnie+DATE(Rok_kalendarzowy,9,1)-WEEKDAY(DATE(Rok_kalendarzowy,9,1),(Początek_tygodnia=\"PON\")+1)+22","v":"2018-09-16"},"2018-09-17","2018-09-18","2018-09-19","2018-09-20","2018-09-21","2018-09-22"]
[null,null,{"$f":"IF(WEEKDAY(Dzień_kalendarza)=Początek_tygodnia_wartość,CONCATENATE(\"Tydzień \",WEEKNUM(Dzień_kalendarza),\"/Dzień \",Dzień_kalendarza-DATE(YEAR(Dzień_kalendarza),1,0)),CONCATENATE(\"Dzień \",Dzień_kalendarza-DATE(YEAR(Dzień_kalendarza),1,0)))","v":"Tydzień 38/Dzień 259"},{"$f":"IF(WEEKDAY(Dzień_kalendarza)=Początek_tygodnia_wartość,CONCATENATE(\"Tydzień \",WEEKNUM(Dzień_kalendarza),\"/Dzień \",Dzień_kalendarza-DATE(YEAR(Dzień_kalendarza),1,0)),CONCATENATE(\"Dzień \",Dzień_kalendarza-DATE(YEAR(Dzień_kalendarza),1,0)))","v":"Dzień 260"},{"$f":"IF(WEEKDAY(Dzień_kalendarza)=Początek_tygodnia_wartość,CONCATENATE(\"Tydzień \",WEEKNUM(Dzień_kalendarza),\"/Dzień \",Dzień_kalendarza-DATE(YEAR(Dzień_kalendarza),1,0)),CONCATENATE(\"Dzień \",Dzień_kalendarza-DATE(YEAR(Dzień_kalendarza),1,0)))","v":"Dzień 261"},{"$f":"IF(WEEKDAY(Dzień_kalendarza)=Początek_tygodnia_wartość,CONCATENATE(\"Tydzień \",WEEKNUM(Dzień_kalendarza),\"/Dzień \",Dzień_kalendarza-DATE(YEAR(Dzień_kalendarza),1,0)),CONCATENATE(\"Dzień \",Dzień_kalendarza-DATE(YEAR(Dzień_kalendarza),1,0)))","v":"Dzień 262"},{"$f":"IF(WEEKDAY(Dzień_kalendarza)=Początek_tygodnia_wartość,CONCATENATE(\"Tydzień \",WEEKNUM(Dzień_kalendarza),\"/Dzień \",Dzień_kalendarza-DATE(YEAR(Dzień_kalendarza),1,0)),CONCATENATE(\"Dzień \",Dzień_kalendarza-DATE(YEAR(Dzień_kalendarza),1,0)))","v":"Dzień 263"},{"$f":"IF(WEEKDAY(Dzień_kalendarza)=Początek_tygodnia_wartość,CONCATENATE(\"Tydzień \",WEEKNUM(Dzień_kalendarza),\"/Dzień \",Dzień_kalendarza-DATE(YEAR(Dzień_kalendarza),1,0)),CONCATENATE(\"Dzień \",Dzień_kalendarza-DATE(YEAR(Dzień_kalendarza),1,0)))","v":"Dzień 264"},{"$f":"IF(WEEKDAY(Dzień_kalendarza)=Początek_tygodnia_wartość,CONCATENATE(\"Tydzień \",WEEKNUM(Dzień_kalendarza),\"/Dzień \",Dzień_kalendarza-DATE(YEAR(Dzień_kalendarza),1,0)),CONCATENATE(\"Dzień \",Dzień_kalendarza-DATE(YEAR(Dzień_kalendarza),1,0)))","v":"Dzień 265"}]
[]
[null,null,{"$f":"Dni_i_tygodnie+DATE(Rok_kalendarzowy,9,1)-WEEKDAY(DATE(Rok_kalendarzowy,9,1),(Początek_tygodnia=\"PON\")+1)+29","v":"2018-09-23"},"2018-09-24","2018-09-25","2018-09-26","2018-09-27","2018-09-28","2018-09-29"]
[null,null,{"$f":"IF(WEEKDAY(Dzień_kalendarza)=Początek_tygodnia_wartość,CONCATENATE(\"Tydzień \",WEEKNUM(Dzień_kalendarza),\"/Dzień \",Dzień_kalendarza-DATE(YEAR(Dzień_kalendarza),1,0)),CONCATENATE(\"Dzień \",Dzień_kalendarza-DATE(YEAR(Dzień_kalendarza),1,0)))","v":"Tydzień 39/Dzień 266"},{"$f":"IF(WEEKDAY(Dzień_kalendarza)=Początek_tygodnia_wartość,CONCATENATE(\"Tydzień \",WEEKNUM(Dzień_kalendarza),\"/Dzień \",Dzień_kalendarza-DATE(YEAR(Dzień_kalendarza),1,0)),CONCATENATE(\"Dzień \",Dzień_kalendarza-DATE(YEAR(Dzień_kalendarza),1,0)))","v":"Dzień 267"},{"$f":"IF(WEEKDAY(Dzień_kalendarza)=Początek_tygodnia_wartość,CONCATENATE(\"Tydzień \",WEEKNUM(Dzień_kalendarza),\"/Dzień \",Dzień_kalendarza-DATE(YEAR(Dzień_kalendarza),1,0)),CONCATENATE(\"Dzień \",Dzień_kalendarza-DATE(YEAR(Dzień_kalendarza),1,0)))","v":"Dzień 268"},{"$f":"IF(WEEKDAY(Dzień_kalendarza)=Początek_tygodnia_wartość,CONCATENATE(\"Tydzień \",WEEKNUM(Dzień_kalendarza),\"/Dzień \",Dzień_kalendarza-DATE(YEAR(Dzień_kalendarza),1,0)),CONCATENATE(\"Dzień \",Dzień_kalendarza-DATE(YEAR(Dzień_kalendarza),1,0)))","v":"Dzień 269"},{"$f":"IF(WEEKDAY(Dzień_kalendarza)=Początek_tygodnia_wartość,CONCATENATE(\"Tydzień \",WEEKNUM(Dzień_kalendarza),\"/Dzień \",Dzień_kalendarza-DATE(YEAR(Dzień_kalendarza),1,0)),CONCATENATE(\"Dzień \",Dzień_kalendarza-DATE(YEAR(Dzień_kalendarza),1,0)))","v":"Dzień 270"},{"$f":"IF(WEEKDAY(Dzień_kalendarza)=Początek_tygodnia_wartość,CONCATENATE(\"Tydzień \",WEEKNUM(Dzień_kalendarza),\"/Dzień \",Dzień_kalendarza-DATE(YEAR(Dzień_kalendarza),1,0)),CONCATENATE(\"Dzień \",Dzień_kalendarza-DATE(YEAR(Dzień_kalendarza),1,0)))","v":"Dzień 271"},{"$f":"IF(WEEKDAY(Dzień_kalendarza)=Początek_tygodnia_wartość,CONCATENATE(\"Tydzień \",WEEKNUM(Dzień_kalendarza),\"/Dzień \",Dzień_kalendarza-DATE(YEAR(Dzień_kalendarza),1,0)),CONCATENATE(\"Dzień \",Dzień_kalendarza-DATE(YEAR(Dzień_kalendarza),1,0)))","v":"Dzień 272"}]
[{"$nulls":4},"NOTATKI"]
[]
[null,null,{"$f":"Dni_i_tygodnie+DATE(Rok_kalendarzowy,9,1)-WEEKDAY(DATE(Rok_kalendarzowy,9,1),(Początek_tygodnia=\"PON\")+1)+36","v":"2018-09-30"},"2018-10-01"]
[null,null,{"$f":"IF(WEEKDAY(Dzień_kalendarza)=Początek_tygodnia_wartość,CONCATENATE(\"Tydzień \",WEEKNUM(Dzień_kalendarza),\"/Dzień \",Dzień_kalendarza-DATE(YEAR(Dzień_kalendarza),1,0)),CONCATENATE(\"Dzień \",Dzień_kalendarza-DATE(YEAR(Dzień_kalendarza),1,0)))","v":"Tydzień 40/Dzień 273"},{"$f":"IF(WEEKDAY(Dzień_kalendarza)=Początek_tygodnia_wartość,CONCATENATE(\"Tydzień \",WEEKNUM(Dzień_kalendarza),\"/Dzień \",Dzień_kalendarza-DATE(YEAR(Dzień_kalendarza),1,0)),CONCATENATE(\"Dzień \",Dzień_kalendarza-DATE(YEAR(Dzień_kalendarza),1,0)))","v":"Dzień 274"}]

{"sheet":"PAŹ","index":9,"n_rows":20,"n_cols":9,"rows_kept":20,"merged":[[16,2,17,2],[17,4,19,8]]}
[null,"PAŹ",{"$f":"UPPER(TEXT(Początek_tygodnia,\"ddd\"))","v":"NIEDZ"},{"$f":"UPPER(TEXT(D3,\"aaa\"))","v":"PON"},"WT","ŚR","CZW","PT","SOB"]
[null,{"$f":"Rok_kalendarzowy","v":2018}]
[null,null,{"$f":"Dni_i_tygodnie+DATE(Rok_kalendarzowy,10,1)-WEEKDAY(DATE(Rok_kalendarzowy,10,1),(Początek_tygodnia=\"PON\")+1)+1","v":"2018-09-30"},"2018-10-01","2018-10-02","2018-10-03","2018-10-04","2018-10-05","2018-10-06"]
[null,null,{"$f":"IF(DAY(Dzień_kalendarza)=1,CONCATENATE(\"Tydzień \",WEEKNUM(Dzień_kalendarza),\"/Dzień \",Dzień_kalendarza-DATE(YEAR(Dzień_kalendarza),1,0)),CONCATENATE(\"Dzień \",Dzień_kalendarza-DATE(YEAR(Dzień_kalendarza),1,0)))","v":"Dzień 273"},"Tydzień 40/Dzień 274","Dzień 275","Dzień 276","Dzień 277","Dzień 278","Dzień 279"]
[]
[null,null,{"$f":"Dni_i_tygodnie+DATE(Rok_kalendarzowy,10,1)-WEEKDAY(DATE(Rok_kalendarzowy,10,1),(Początek_tygodnia=\"PON\")+1)+8","v":"2018-10-07"},"2018-10-08","2018-10-09","2018-10-10","2018-10-11","2018-10-12","2018-10-13"]
[null,null,{"$f":"IF(WEEKDAY(Dzień_kalendarza)=Początek_tygodnia_wartość,CONCATENATE(\"Tydzień \",WEEKNUM(Dzień_kalendarza),\"/Dzień \",Dzień_kalendarza-DATE(YEAR(Dzień_kalendarza),1,0)),CONCATENATE(\"Dzień \",Dzień_kalendarza-DATE(YEAR(Dzień_kalendarza),1,0)))","v":"Tydzień 41/Dzień 280"},{"$f":"IF(WEEKDAY(Dzień_kalendarza)=Początek_tygodnia_wartość,CONCATENATE(\"Tydzień \",WEEKNUM(Dzień_kalendarza),\"/Dzień \",Dzień_kalendarza-DATE(YEAR(Dzień_kalendarza),1,0)),CONCATENATE(\"Dzień \",Dzień_kalendarza-DATE(YEAR(Dzień_kalendarza),1,0)))","v":"Dzień 281"},{"$f":"IF(WEEKDAY(Dzień_kalendarza)=Początek_tygodnia_wartość,CONCATENATE(\"Tydzień \",WEEKNUM(Dzień_kalendarza),\"/Dzień \",Dzień_kalendarza-DATE(YEAR(Dzień_kalendarza),1,0)),CONCATENATE(\"Dzień \",Dzień_kalendarza-DATE(YEAR(Dzień_kalendarza),1,0)))","v":"Dzień 282"},{"$f":"IF(WEEKDAY(Dzień_kalendarza)=Początek_tygodnia_wartość,CONCATENATE(\"Tydzień \",WEEKNUM(Dzień_kalendarza),\"/Dzień \",Dzień_kalendarza-DATE(YEAR(Dzień_kalendarza),1,0)),CONCATENATE(\"Dzień \",Dzień_kalendarza-DATE(YEAR(Dzień_kalendarza),1,0)))","v":"Dzień 283"},{"$f":"IF(WEEKDAY(Dzień_kalendarza)=Początek_tygodnia_wartość,CONCATENATE(\"Tydzień \",WEEKNUM(Dzień_kalendarza),\"/Dzień \",Dzień_kalendarza-DATE(YEAR(Dzień_kalendarza),1,0)),CONCATENATE(\"Dzień \",Dzień_kalendarza-DATE(YEAR(Dzień_kalendarza),1,0)))","v":"Dzień 284"},{"$f":"IF(WEEKDAY(Dzień_kalendarza)=Początek_tygodnia_wartość,CONCATENATE(\"Tydzień \",WEEKNUM(Dzień_kalendarza),\"/Dzień \",Dzień_kalendarza-DATE(YEAR(Dzień_kalendarza),1,0)),CONCATENATE(\"Dzień \",Dzień_kalendarza-DATE(YEAR(Dzień_kalendarza),1,0)))","v":"Dzień 285"},{"$f":"IF(WEEKDAY(Dzień_kalendarza)=Początek_tygodnia_wartość,CONCATENATE(\"Tydzień \",WEEKNUM(Dzień_kalendarza),\"/Dzień \",Dzień_kalendarza-DATE(YEAR(Dzień_kalendarza),1,0)),CONCATENATE(\"Dzień \",Dzień_kalendarza-DATE(YEAR(Dzień_kalendarza),1,0)))","v":"Dzień 286"}]
[]
[null,null,{"$f":"Dni_i_tygodnie+DATE(Rok_kalendarzowy,10,1)-WEEKDAY(DATE(Rok_kalendarzowy,10,1),(Początek_tygodnia=\"PON\")+1)+15","v":"2018-10-14"},"2018-10-15","2018-10-16","2018-10-17","2018-10-18","2018-10-19","2018-10-20"]
[null,null,{"$f":"IF(WEEKDAY(Dzień_kalendarza)=Początek_tygodnia_wartość,CONCATENATE(\"Tydzień \",WEEKNUM(Dzień_kalendarza),\"/Dzień \",Dzień_kalendarza-DATE(YEAR(Dzień_kalendarza),1,0)),CONCATENATE(\"Dzień \",Dzień_kalendarza-DATE(YEAR(Dzień_kalendarza),1,0)))","v":"Tydzień 42/Dzień 287"},{"$f":"IF(WEEKDAY(Dzień_kalendarza)=Początek_tygodnia_wartość,CONCATENATE(\"Tydzień \",WEEKNUM(Dzień_kalendarza),\"/Dzień \",Dzień_kalendarza-DATE(YEAR(Dzień_kalendarza),1,0)),CONCATENATE(\"Dzień \",Dzień_kalendarza-DATE(YEAR(Dzień_kalendarza),1,0)))","v":"Dzień 288"},{"$f":"IF(WEEKDAY(Dzień_kalendarza)=Początek_tygodnia_wartość,CONCATENATE(\"Tydzień \",WEEKNUM(Dzień_kalendarza),\"/Dzień \",Dzień_kalendarza-DATE(YEAR(Dzień_kalendarza),1,0)),CONCATENATE(\"Dzień \",Dzień_kalendarza-DATE(YEAR(Dzień_kalendarza),1,0)))","v":"Dzień 289"},{"$f":"IF(WEEKDAY(Dzień_kalendarza)=Początek_tygodnia_wartość,CONCATENATE(\"Tydzień \",WEEKNUM(Dzień_kalendarza),\"/Dzień \",Dzień_kalendarza-DATE(YEAR(Dzień_kalendarza),1,0)),CONCATENATE(\"Dzień \",Dzień_kalendarza-DATE(YEAR(Dzień_kalendarza),1,0)))","v":"Dzień 290"},{"$f":"IF(WEEKDAY(Dzień_kalendarza)=Początek_tygodnia_wartość,CONCATENATE(\"Tydzień \",WEEKNUM(Dzień_kalendarza),\"/Dzień \",Dzień_kalendarza-DATE(YEAR(Dzień_kalendarza),1,0)),CONCATENATE(\"Dzień \",Dzień_kalendarza-DATE(YEAR(Dzień_kalendarza),1,0)))","v":"Dzień 291"},{"$f":"IF(WEEKDAY(Dzień_kalendarza)=Początek_tygodnia_wartość,CONCATENATE(\"Tydzień \",WEEKNUM(Dzień_kalendarza),\"/Dzień \",Dzień_kalendarza-DATE(YEAR(Dzień_kalendarza),1,0)),CONCATENATE(\"Dzień \",Dzień_kalendarza-DATE(YEAR(Dzień_kalendarza),1,0)))","v":"Dzień 292"},{"$f":"IF(WEEKDAY(Dzień_kalendarza)=Początek_tygodnia_wartość,CONCATENATE(\"Tydzień \",WEEKNUM(Dzień_kalendarza),\"/Dzień \",Dzień_kalendarza-DATE(YEAR(Dzień_kalendarza),1,0)),CONCATENATE(\"Dzień \",Dzień_kalendarza-DATE(YEAR(Dzień_kalendarza),1,0)))","v":"Dzień 293"}]
[]
[null,null,{"$f":"Dni_i_tygodnie+DATE(Rok_kalendarzowy,10,1)-WEEKDAY(DATE(Rok_kalendarzowy,10,1),(Początek_tygodnia=\"PON\")+1)+22","v":"2018-10-21"},"2018-10-22","2018-10-23","2018-10-24","2018-10-25","2018-10-26","2018-10-27"]
[null,null,{"$f":"IF(WEEKDAY(Dzień_kalendarza)=Początek_tygodnia_wartość,CONCATENATE(\"Tydzień \",WEEKNUM(Dzień_kalendarza),\"/Dzień \",Dzień_kalendarza-DATE(YEAR(Dzień_kalendarza),1,0)),CONCATENATE(\"Dzień \",Dzień_kalendarza-DATE(YEAR(Dzień_kalendarza),1,0)))","v":"Tydzień 43/Dzień 294"},{"$f":"IF(WEEKDAY(Dzień_kalendarza)=Początek_tygodnia_wartość,CONCATENATE(\"Tydzień \",WEEKNUM(Dzień_kalendarza),\"/Dzień \",Dzień_kalendarza-DATE(YEAR(Dzień_kalendarza),1,0)),CONCATENATE(\"Dzień \",Dzień_kalendarza-DATE(YEAR(Dzień_kalendarza),1,0)))","v":"Dzień 295"},{"$f":"IF(WEEKDAY(Dzień_kalendarza)=Początek_tygodnia_wartość,CONCATENATE(\"Tydzień \",WEEKNUM(Dzień_kalendarza),\"/Dzień \",Dzień_kalendarza-DATE(YEAR(Dzień_kalendarza),1,0)),CONCATENATE(\"Dzień \",Dzień_kalendarza-DATE(YEAR(Dzień_kalendarza),1,0)))","v":"Dzień 296"},{"$f":"IF(WEEKDAY(Dzień_kalendarza)=Początek_tygodnia_wartość,CONCATENATE(\"Tydzień \",WEEKNUM(Dzień_kalendarza),\"/Dzień \",Dzień_kalendarza-DATE(YEAR(Dzień_kalendarza),1,0)),CONCATENATE(\"Dzień \",Dzień_kalendarza-DATE(YEAR(Dzień_kalendarza),1,0)))","v":"Dzień 297"},{"$f":"IF(WEEKDAY(Dzień_kalendarza)=Początek_tygodnia_wartość,CONCATENATE(\"Tydzień \",WEEKNUM(Dzień_kalendarza),\"/Dzień \",Dzień_kalendarza-DATE(YEAR(Dzień_kalendarza),1,0)),CONCATENATE(\"Dzień \",Dzień_kalendarza-DATE(YEAR(Dzień_kalendarza),1,0)))","v":"Dzień 298"},{"$f":"IF(WEEKDAY(Dzień_kalendarza)=Początek_tygodnia_wartość,CONCATENATE(\"Tydzień \",WEEKNUM(Dzień_kalendarza),\"/Dzień \",Dzień_kalendarza-DATE(YEAR(Dzień_kalendarza),1,0)),CONCATENATE(\"Dzień \",Dzień_kalendarza-DATE(YEAR(Dzień_kalendarza),1,0)))","v":"Dzień 299"},{"$f":"IF(WEEKDAY(Dzień_kalendarza)=Początek_tygodnia_wartość,CONCATENATE(\"Tydzień \",WEEKNUM(Dzień_kalendarza),\"/Dzień \",Dzień_kalendarza-DATE(YEAR(Dzień_kalendarza),1,0)),CONCATENATE(\"Dzień \",Dzień_kalendarza-DATE(YEAR(Dzień_kalendarza),1,0)))","v":"Dzień 300"}]
[]
[null,null,{"$f":"Dni_i_tygodnie+DATE(Rok_kalendarzowy,10,1)-WEEKDAY(DATE(Rok_kalendarzowy,10,1),(Początek_tygodnia=\"PON\")+1)+29","v":"2018-10-28"},"2018-10-29","2018-10-30","2018-10-31","2018-11-01","2018-11-02","2018-11-03"]
[null,null,{"$f":"IF(WEEKDAY(Dzień_kalendarza)=Początek_tygodnia_wartość,CONCATENATE(\"Tydzień \",WEEKNUM(Dzień_kalendarza),\"/Dzień \",Dzień_kalendarza-DATE(YEAR(Dzień_kalendarza),1,0)),CONCATENATE(\"Dzień \",Dzień_kalendarza-DATE(YEAR(Dzień_kalendarza),1,0)))","v":"Tydzień 44/Dzień 301"},{"$f":"IF(WEEKDAY(Dzień_kalendarza)=Początek_tygodnia_wartość,CONCATENATE(\"Tydzień \",WEEKNUM(Dzień_kalendarza),\"/Dzień \",Dzień_kalendarza-DATE(YEAR(Dzień_kalendarza),1,0)),CONCATENATE(\"Dzień \",Dzień_kalendarza-DATE(YEAR(Dzień_kalendarza),1,0)))","v":"Dzień 302"},{"$f":"IF(WEEKDAY(Dzień_kalendarza)=Początek_tygodnia_wartość,CONCATENATE(\"Tydzień \",WEEKNUM(Dzień_kalendarza),\"/Dzień \",Dzień_kalendarza-DATE(YEAR(Dzień_kalendarza),1,0)),CONCATENATE(\"Dzień \",Dzień_kalendarza-DATE(YEAR(Dzień_kalendarza),1,0)))","v":"Dzień 303"},{"$f":"IF(WEEKDAY(Dzień_kalendarza)=Początek_tygodnia_wartość,CONCATENATE(\"Tydzień \",WEEKNUM(Dzień_kalendarza),\"/Dzień \",Dzień_kalendarza-DATE(YEAR(Dzień_kalendarza),1,0)),CONCATENATE(\"Dzień \",Dzień_kalendarza-DATE(YEAR(Dzień_kalendarza),1,0)))","v":"Dzień 304"},{"$f":"IF(WEEKDAY(Dzień_kalendarza)=Początek_tygodnia_wartość,CONCATENATE(\"Tydzień \",WEEKNUM(Dzień_kalendarza),\"/Dzień \",Dzień_kalendarza-DATE(YEAR(Dzień_kalendarza),1,0)),CONCATENATE(\"Dzień \",Dzień_kalendarza-DATE(YEAR(Dzień_kalendarza),1,0)))","v":"Dzień 305"},{"$f":"IF(WEEKDAY(Dzień_kalendarza)=Początek_tygodnia_wartość,CONCATENATE(\"Tydzień \",WEEKNUM(Dzień_kalendarza),\"/Dzień \",Dzień_kalendarza-DATE(YEAR(Dzień_kalendarza),1,0)),CONCATENATE(\"Dzień \",Dzień_kalendarza-DATE(YEAR(Dzień_kalendarza),1,0)))","v":"Dzień 306"},{"$f":"IF(WEEKDAY(Dzień_kalendarza)=Początek_tygodnia_wartość,CONCATENATE(\"Tydzień \",WEEKNUM(Dzień_kalendarza),\"/Dzień \",Dzień_kalendarza-DATE(YEAR(Dzień_kalendarza),1,0)),CONCATENATE(\"Dzień \",Dzień_kalendarza-DATE(YEAR(Dzień_kalendarza),1,0)))","v":"Dzień 307"}]
[{"$nulls":4},"NOTATKI"]
[]
[null,null,{"$f":"Dni_i_tygodnie+DATE(Rok_kalendarzowy,10,1)-WEEKDAY(DATE(Rok_kalendarzowy,10,1),(Początek_tygodnia=\"PON\")+1)+36","v":"2018-11-04"},"2018-11-05"]
[null,null,{"$f":"IF(WEEKDAY(Dzień_kalendarza)=Początek_tygodnia_wartość,CONCATENATE(\"Tydzień \",WEEKNUM(Dzień_kalendarza),\"/Dzień \",Dzień_kalendarza-DATE(YEAR(Dzień_kalendarza),1,0)),CONCATENATE(\"Dzień \",Dzień_kalendarza-DATE(YEAR(Dzień_kalendarza),1,0)))","v":"Tydzień 45/Dzień 308"},{"$f":"IF(WEEKDAY(Dzień_kalendarza)=Początek_tygodnia_wartość,CONCATENATE(\"Tydzień \",WEEKNUM(Dzień_kalendarza),\"/Dzień \",Dzień_kalendarza-DATE(YEAR(Dzień_kalendarza),1,0)),CONCATENATE(\"Dzień \",Dzień_kalendarza-DATE(YEAR(Dzień_kalendarza),1,0)))","v":"Dzień 309"}]

{"sheet":"LIS","index":10,"n_rows":20,"n_cols":9,"rows_kept":20,"merged":[[16,2,17,2],[17,4,19,8]]}
[null,"LIS",{"$f":"UPPER(TEXT(Początek_tygodnia,\"ddd\"))","v":"NIEDZ"},{"$f":"UPPER(TEXT(D3,\"aaa\"))","v":"PON"},"WT","ŚR","CZW","PT","SOB"]
[null,{"$f":"Rok_kalendarzowy","v":2018}]
[null,null,{"$f":"Dni_i_tygodnie+DATE(Rok_kalendarzowy,11,1)-WEEKDAY(DATE(Rok_kalendarzowy,11,1),(Początek_tygodnia=\"PON\")+1)+1","v":"2018-10-28"},"2018-10-29","2018-10-30","2018-10-31","2018-11-01","2018-11-02","2018-11-03"]
[null,null,{"$f":"IF(DAY(Dzień_kalendarza)=1,CONCATENATE(\"Tydzień \",WEEKNUM(Dzień_kalendarza),\"/Dzień \",Dzień_kalendarza-DATE(YEAR(Dzień_kalendarza),1,0)),CONCATENATE(\"Dzień \",Dzień_kalendarza-DATE(YEAR(Dzień_kalendarza),1,0)))","v":"Dzień 301"},"Dzień 302","Dzień 303","Dzień 304","Tydzień 44/Dzień 305","Dzień 306","Dzień 307"]
[]
[null,null,{"$f":"Dni_i_tygodnie+DATE(Rok_kalendarzowy,11,1)-WEEKDAY(DATE(Rok_kalendarzowy,11,1),(Początek_tygodnia=\"PON\")+1)+8","v":"2018-11-04"},"2018-11-05","2018-11-06","2018-11-07","2018-11-08","2018-11-09","2018-11-10"]
[null,null,{"$f":"IF(WEEKDAY(Dzień_kalendarza)=Początek_tygodnia_wartość,CONCATENATE(\"Tydzień \",WEEKNUM(Dzień_kalendarza),\"/Dzień \",Dzień_kalendarza-DATE(YEAR(Dzień_kalendarza),1,0)),CONCATENATE(\"Dzień \",Dzień_kalendarza-DATE(YEAR(Dzień_kalendarza),1,0)))","v":"Tydzień 45/Dzień 308"},{"$f":"IF(WEEKDAY(Dzień_kalendarza)=Początek_tygodnia_wartość,CONCATENATE(\"Tydzień \",WEEKNUM(Dzień_kalendarza),\"/Dzień \",Dzień_kalendarza-DATE(YEAR(Dzień_kalendarza),1,0)),CONCATENATE(\"Dzień \",Dzień_kalendarza-DATE(YEAR(Dzień_kalendarza),1,0)))","v":"Dzień 309"},{"$f":"IF(WEEKDAY(Dzień_kalendarza)=Początek_tygodnia_wartość,CONCATENATE(\"Tydzień \",WEEKNUM(Dzień_kalendarza),\"/Dzień \",Dzień_kalendarza-DATE(YEAR(Dzień_kalendarza),1,0)),CONCATENATE(\"Dzień \",Dzień_kalendarza-DATE(YEAR(Dzień_kalendarza),1,0)))","v":"Dzień 310"},{"$f":"IF(WEEKDAY(Dzień_kalendarza)=Początek_tygodnia_wartość,CONCATENATE(\"Tydzień \",WEEKNUM(Dzień_kalendarza),\"/Dzień \",Dzień_kalendarza-DATE(YEAR(Dzień_kalendarza),1,0)),CONCATENATE(\"Dzień \",Dzień_kalendarza-DATE(YEAR(Dzień_kalendarza),1,0)))","v":"Dzień 311"},{"$f":"IF(WEEKDAY(Dzień_kalendarza)=Początek_tygodnia_wartość,CONCATENATE(\"Tydzień \",WEEKNUM(Dzień_kalendarza),\"/Dzień \",Dzień_kalendarza-DATE(YEAR(Dzień_kalendarza),1,0)),CONCATENATE(\"Dzień \",Dzień_kalendarza-DATE(YEAR(Dzień_kalendarza),1,0)))","v":"Dzień 312"},{"$f":"IF(WEEKDAY(Dzień_kalendarza)=Początek_tygodnia_wartość,CONCATENATE(\"Tydzień \",WEEKNUM(Dzień_kalendarza),\"/Dzień \",Dzień_kalendarza-DATE(YEAR(Dzień_kalendarza),1,0)),CONCATENATE(\"Dzień \",Dzień_kalendarza-DATE(YEAR(Dzień_kalendarza),1,0)))","v":"Dzień 313"},{"$f":"IF(WEEKDAY(Dzień_kalendarza)=Początek_tygodnia_wartość,CONCATENATE(\"Tydzień \",WEEKNUM(Dzień_kalendarza),\"/Dzień \",Dzień_kalendarza-DATE(YEAR(Dzień_kalendarza),1,0)),CONCATENATE(\"Dzień \",Dzień_kalendarza-DATE(YEAR(Dzień_kalendarza),1,0)))","v":"Dzień 314"}]
[]
[null,null,{"$f":"Dni_i_tygodnie+DATE(Rok_kalendarzowy,11,1)-WEEKDAY(DATE(Rok_kalendarzowy,11,1),(Początek_tygodnia=\"PON\")+1)+15","v":"2018-11-11"},"2018-11-12","2018-11-13","2018-11-14","2018-11-15","2018-11-16","2018-11-17"]
[null,null,{"$f":"IF(WEEKDAY(Dzień_kalendarza)=Początek_tygodnia_wartość,CONCATENATE(\"Tydzień \",WEEKNUM(Dzień_kalendarza),\"/Dzień \",Dzień_kalendarza-DATE(YEAR(Dzień_kalendarza),1,0)),CONCATENATE(\"Dzień \",Dzień_kalendarza-DATE(YEAR(Dzień_kalendarza),1,0)))","v":"Tydzień 46/Dzień 315"},{"$f":"IF(WEEKDAY(Dzień_kalendarza)=Początek_tygodnia_wartość,CONCATENATE(\"Tydzień \",WEEKNUM(Dzień_kalendarza),\"/Dzień \",Dzień_kalendarza-DATE(YEAR(Dzień_kalendarza),1,0)),CONCATENATE(\"Dzień \",Dzień_kalendarza-DATE(YEAR(Dzień_kalendarza),1,0)))","v":"Dzień 316"},{"$f":"IF(WEEKDAY(Dzień_kalendarza)=Początek_tygodnia_wartość,CONCATENATE(\"Tydzień \",WEEKNUM(Dzień_kalendarza),\"/Dzień \",Dzień_kalendarza-DATE(YEAR(Dzień_kalendarza),1,0)),CONCATENATE(\"Dzień \",Dzień_kalendarza-DATE(YEAR(Dzień_kalendarza),1,0)))","v":"Dzień 317"},{"$f":"IF(WEEKDAY(Dzień_kalendarza)=Początek_tygodnia_wartość,CONCATENATE(\"Tydzień \",WEEKNUM(Dzień_kalendarza),\"/Dzień \",Dzień_kalendarza-DATE(YEAR(Dzień_kalendarza),1,0)),CONCATENATE(\"Dzień \",Dzień_kalendarza-DATE(YEAR(Dzień_kalendarza),1,0)))","v":"Dzień 318"},{"$f":"IF(WEEKDAY(Dzień_kalendarza)=Początek_tygodnia_wartość,CONCATENATE(\"Tydzień \",WEEKNUM(Dzień_kalendarza),\"/Dzień \",Dzień_kalendarza-DATE(YEAR(Dzień_kalendarza),1,0)),CONCATENATE(\"Dzień \",Dzień_kalendarza-DATE(YEAR(Dzień_kalendarza),1,0)))","v":"Dzień 319"},{"$f":"IF(WEEKDAY(Dzień_kalendarza)=Początek_tygodnia_wartość,CONCATENATE(\"Tydzień \",WEEKNUM(Dzień_kalendarza),\"/Dzień \",Dzień_kalendarza-DATE(YEAR(Dzień_kalendarza),1,0)),CONCATENATE(\"Dzień \",Dzień_kalendarza-DATE(YEAR(Dzień_kalendarza),1,0)))","v":"Dzień 320"},{"$f":"IF(WEEKDAY(Dzień_kalendarza)=Początek_tygodnia_wartość,CONCATENATE(\"Tydzień \",WEEKNUM(Dzień_kalendarza),\"/Dzień \",Dzień_kalendarza-DATE(YEAR(Dzień_kalendarza),1,0)),CONCATENATE(\"Dzień \",Dzień_kalendarza-DATE(YEAR(Dzień_kalendarza),1,0)))","v":"Dzień 321"}]
[]
[null,null,{"$f":"Dni_i_tygodnie+DATE(Rok_kalendarzowy,11,1)-WEEKDAY(DATE(Rok_kalendarzowy,11,1),(Początek_tygodnia=\"PON\")+1)+22","v":"2018-11-18"},"2018-11-19","2018-11-20","2018-11-21","2018-11-22","2018-11-23","2018-11-24"]
[null,null,{"$f":"IF(WEEKDAY(Dzień_kalendarza)=Początek_tygodnia_wartość,CONCATENATE(\"Tydzień \",WEEKNUM(Dzień_kalendarza),\"/Dzień \",Dzień_kalendarza-DATE(YEAR(Dzień_kalendarza),1,0)),CONCATENATE(\"Dzień \",Dzień_kalendarza-DATE(YEAR(Dzień_kalendarza),1,0)))","v":"Tydzień 47/Dzień 322"},{"$f":"IF(WEEKDAY(Dzień_kalendarza)=Początek_tygodnia_wartość,CONCATENATE(\"Tydzień \",WEEKNUM(Dzień_kalendarza),\"/Dzień \",Dzień_kalendarza-DATE(YEAR(Dzień_kalendarza),1,0)),CONCATENATE(\"Dzień \",Dzień_kalendarza-DATE(YEAR(Dzień_kalendarza),1,0)))","v":"Dzień 323"},{"$f":"IF(WEEKDAY(Dzień_kalendarza)=Początek_tygodnia_wartość,CONCATENATE(\"Tydzień \",WEEKNUM(Dzień_kalendarza),\"/Dzień \",Dzień_kalendarza-DATE(YEAR(Dzień_kalendarza),1,0)),CONCATENATE(\"Dzień \",Dzień_kalendarza-DATE(YEAR(Dzień_kalendarza),1,0)))","v":"Dzień 324"},{"$f":"IF(WEEKDAY(Dzień_kalendarza)=Początek_tygodnia_wartość,CONCATENATE(\"Tydzień \",WEEKNUM(Dzień_kalendarza),\"/Dzień \",Dzień_kalendarza-DATE(YEAR(Dzień_kalendarza),1,0)),CONCATENATE(\"Dzień \",Dzień_kalendarza-DATE(YEAR(Dzień_kalendarza),1,0)))","v":"Dzień 325"},{"$f":"IF(WEEKDAY(Dzień_kalendarza)=Początek_tygodnia_wartość,CONCATENATE(\"Tydzień \",WEEKNUM(Dzień_kalendarza),\"/Dzień \",Dzień_kalendarza-DATE(YEAR(Dzień_kalendarza),1,0)),CONCATENATE(\"Dzień \",Dzień_kalendarza-DATE(YEAR(Dzień_kalendarza),1,0)))","v":"Dzień 326"},{"$f":"IF(WEEKDAY(Dzień_kalendarza)=Początek_tygodnia_wartość,CONCATENATE(\"Tydzień \",WEEKNUM(Dzień_kalendarza),\"/Dzień \",Dzień_kalendarza-DATE(YEAR(Dzień_kalendarza),1,0)),CONCATENATE(\"Dzień \",Dzień_kalendarza-DATE(YEAR(Dzień_kalendarza),1,0)))","v":"Dzień 327"},{"$f":"IF(WEEKDAY(Dzień_kalendarza)=Początek_tygodnia_wartość,CONCATENATE(\"Tydzień \",WEEKNUM(Dzień_kalendarza),\"/Dzień \",Dzień_kalendarza-DATE(YEAR(Dzień_kalendarza),1,0)),CONCATENATE(\"Dzień \",Dzień_kalendarza-DATE(YEAR(Dzień_kalendarza),1,0)))","v":"Dzień 328"}]
[]
[null,null,{"$f":"Dni_i_tygodnie+DATE(Rok_kalendarzowy,11,1)-WEEKDAY(DATE(Rok_kalendarzowy,11,1),(Początek_tygodnia=\"PON\")+1)+29","v":"2018-11-25"},"2018-11-26","2018-11-27","2018-11-28","2018-11-29","2018-11-30","2018-12-01"]
[null,null,{"$f":"IF(WEEKDAY(Dzień_kalendarza)=Początek_tygodnia_wartość,CONCATENATE(\"Tydzień \",WEEKNUM(Dzień_kalendarza),\"/Dzień \",Dzień_kalendarza-DATE(YEAR(Dzień_kalendarza),1,0)),CONCATENATE(\"Dzień \",Dzień_kalendarza-DATE(YEAR(Dzień_kalendarza),1,0)))","v":"Tydzień 48/Dzień 329"},{"$f":"IF(WEEKDAY(Dzień_kalendarza)=Początek_tygodnia_wartość,CONCATENATE(\"Tydzień \",WEEKNUM(Dzień_kalendarza),\"/Dzień \",Dzień_kalendarza-DATE(YEAR(Dzień_kalendarza),1,0)),CONCATENATE(\"Dzień \",Dzień_kalendarza-DATE(YEAR(Dzień_kalendarza),1,0)))","v":"Dzień 330"},{"$f":"IF(WEEKDAY(Dzień_kalendarza)=Początek_tygodnia_wartość,CONCATENATE(\"Tydzień \",WEEKNUM(Dzień_kalendarza),\"/Dzień \",Dzień_kalendarza-DATE(YEAR(Dzień_kalendarza),1,0)),CONCATENATE(\"Dzień \",Dzień_kalendarza-DATE(YEAR(Dzień_kalendarza),1,0)))","v":"Dzień 331"},{"$f":"IF(WEEKDAY(Dzień_kalendarza)=Początek_tygodnia_wartość,CONCATENATE(\"Tydzień \",WEEKNUM(Dzień_kalendarza),\"/Dzień \",Dzień_kalendarza-DATE(YEAR(Dzień_kalendarza),1,0)),CONCATENATE(\"Dzień \",Dzień_kalendarza-DATE(YEAR(Dzień_kalendarza),1,0)))","v":"Dzień 332"},{"$f":"IF(WEEKDAY(Dzień_kalendarza)=Początek_tygodnia_wartość,CONCATENATE(\"Tydzień \",WEEKNUM(Dzień_kalendarza),\"/Dzień \",Dzień_kalendarza-DATE(YEAR(Dzień_kalendarza),1,0)),CONCATENATE(\"Dzień \",Dzień_kalendarza-DATE(YEAR(Dzień_kalendarza),1,0)))","v":"Dzień 333"},{"$f":"IF(WEEKDAY(Dzień_kalendarza)=Początek_tygodnia_wartość,CONCATENATE(\"Tydzień \",WEEKNUM(Dzień_kalendarza),\"/Dzień \",Dzień_kalendarza-DATE(YEAR(Dzień_kalendarza),1,0)),CONCATENATE(\"Dzień \",Dzień_kalendarza-DATE(YEAR(Dzień_kalendarza),1,0)))","v":"Dzień 334"},{"$f":"IF(WEEKDAY(Dzień_kalendarza)=Początek_tygodnia_wartość,CONCATENATE(\"Tydzień \",WEEKNUM(Dzień_kalendarza),\"/Dzień \",Dzień_kalendarza-DATE(YEAR(Dzień_kalendarza),1,0)),CONCATENATE(\"Dzień \",Dzień_kalendarza-DATE(YEAR(Dzień_kalendarza),1,0)))","v":"Dzień 335"}]
[{"$nulls":4},"NOTATKI"]
[]
[null,null,{"$f":"Dni_i_tygodnie+DATE(Rok_kalendarzowy,11,1)-WEEKDAY(DATE(Rok_kalendarzowy,11,1),(Początek_tygodnia=\"PON\")+1)+36","v":"2018-12-02"},"2018-12-03"]
[null,null,{"$f":"IF(WEEKDAY(Dzień_kalendarza)=Początek_tygodnia_wartość,CONCATENATE(\"Tydzień \",WEEKNUM(Dzień_kalendarza),\"/Dzień \",Dzień_kalendarza-DATE(YEAR(Dzień_kalendarza),1,0)),CONCATENATE(\"Dzień \",Dzień_kalendarza-DATE(YEAR(Dzień_kalendarza),1,0)))","v":"Tydzień 49/Dzień 336"},{"$f":"IF(WEEKDAY(Dzień_kalendarza)=Początek_tygodnia_wartość,CONCATENATE(\"Tydzień \",WEEKNUM(Dzień_kalendarza),\"/Dzień \",Dzień_kalendarza-DATE(YEAR(Dzień_kalendarza),1,0)),CONCATENATE(\"Dzień \",Dzień_kalendarza-DATE(YEAR(Dzień_kalendarza),1,0)))","v":"Dzień 337"}]

{"sheet":"GRU","index":11,"n_rows":20,"n_cols":9,"rows_kept":20,"merged":[[16,2,17,2],[17,4,19,8]]}
[null,"GRU",{"$f":"UPPER(TEXT(Początek_tygodnia,\"ddd\"))","v":"NIEDZ"},{"$f":"UPPER(TEXT(D3,\"aaa\"))","v":"PON"},"WT","ŚR","CZW","PT","SOB"]
[null,{"$f":"Rok_kalendarzowy","v":2018}]
[null,null,{"$f":"Dni_i_tygodnie+DATE(Rok_kalendarzowy,12,1)-WEEKDAY(DATE(Rok_kalendarzowy,12,1),(Początek_tygodnia=\"PON\")+1)+1","v":"2018-11-25"},"2018-11-26","2018-11-27","2018-11-28","2018-11-29","2018-11-30","2018-12-01"]
[null,null,{"$f":"IF(DAY(Dzień_kalendarza)=1,CONCATENATE(\"Tydzień \",WEEKNUM(Dzień_kalendarza),\"/Dzień \",Dzień_kalendarza-DATE(YEAR(Dzień_kalendarza),1,0)),CONCATENATE(\"Dzień \",Dzień_kalendarza-DATE(YEAR(Dzień_kalendarza),1,0)))","v":"Dzień 329"},"Dzień 330","Dzień 331","Dzień 332","Dzień 333","Dzień 334","Tydzień 48/Dzień 335"]
[]
[null,null,{"$f":"Dni_i_tygodnie+DATE(Rok_kalendarzowy,12,1)-WEEKDAY(DATE(Rok_kalendarzowy,12,1),(Początek_tygodnia=\"PON\")+1)+8","v":"2018-12-02"},"2018-12-03","2018-12-04","2018-12-05","2018-12-06","2018-12-07","2018-12-08"]
[null,null,{"$f":"IF(WEEKDAY(Dzień_kalendarza)=Początek_tygodnia_wartość,CONCATENATE(\"Tydzień \",WEEKNUM(Dzień_kalendarza),\"/Dzień \",Dzień_kalendarza-DATE(YEAR(Dzień_kalendarza),1,0)),CONCATENATE(\"Dzień \",Dzień_kalendarza-DATE(YEAR(Dzień_kalendarza),1,0)))","v":"Tydzień 49/Dzień 336"},{"$f":"IF(WEEKDAY(Dzień_kalendarza)=Początek_tygodnia_wartość,CONCATENATE(\"Tydzień \",WEEKNUM(Dzień_kalendarza),\"/Dzień \",Dzień_kalendarza-DATE(YEAR(Dzień_kalendarza),1,0)),CONCATENATE(\"Dzień \",Dzień_kalendarza-DATE(YEAR(Dzień_kalendarza),1,0)))","v":"Dzień 337"},{"$f":"IF(WEEKDAY(Dzień_kalendarza)=Początek_tygodnia_wartość,CONCATENATE(\"Tydzień \",WEEKNUM(Dzień_kalendarza),\"/Dzień \",Dzień_kalendarza-DATE(YEAR(Dzień_kalendarza),1,0)),CONCATENATE(\"Dzień \",Dzień_kalendarza-DATE(YEAR(Dzień_kalendarza),1,0)))","v":"Dzień 338"},{"$f":"IF(WEEKDAY(Dzień_kalendarza)=Początek_tygodnia_wartość,CONCATENATE(\"Tydzień \",WEEKNUM(Dzień_kalendarza),\"/Dzień \",Dzień_kalendarza-DATE(YEAR(Dzień_kalendarza),1,0)),CONCATENATE(\"Dzień \",Dzień_kalendarza-DATE(YEAR(Dzień_kalendarza),1,0)))","v":"Dzień 339"},{"$f":"IF(WEEKDAY(Dzień_kalendarza)=Początek_tygodnia_wartość,CONCATENATE(\"Tydzień \",WEEKNUM(Dzień_kalendarza),\"/Dzień \",Dzień_kalendarza-DATE(YEAR(Dzień_kalendarza),1,0)),CONCATENATE(\"Dzień \",Dzień_kalendarza-DATE(YEAR(Dzień_kalendarza),1,0)))","v":"Dzień 340"},{"$f":"IF(WEEKDAY(Dzień_kalendarza)=Początek_tygodnia_wartość,CONCATENATE(\"Tydzień \",WEEKNUM(Dzień_kalendarza),\"/Dzień \",Dzień_kalendarza-DATE(YEAR(Dzień_kalendarza),1,0)),CONCATENATE(\"Dzień \",Dzień_kalendarza-DATE(YEAR(Dzień_kalendarza),1,0)))","v":"Dzień 341"},{"$f":"IF(WEEKDAY(Dzień_kalendarza)=Początek_tygodnia_wartość,CONCATENATE(\"Tydzień \",WEEKNUM(Dzień_kalendarza),\"/Dzień \",Dzień_kalendarza-DATE(YEAR(Dzień_kalendarza),1,0)),CONCATENATE(\"Dzień \",Dzień_kalendarza-DATE(YEAR(Dzień_kalendarza),1,0)))","v":"Dzień 342"}]
[]
[null,null,{"$f":"Dni_i_tygodnie+DATE(Rok_kalendarzowy,12,1)-WEEKDAY(DATE(Rok_kalendarzowy,12,1),(Początek_tygodnia=\"PON\")+1)+15","v":"2018-12-09"},"2018-12-10","2018-12-11","2018-12-12","2018-12-13","2018-12-14","2018-12-15"]
[null,null,{"$f":"IF(WEEKDAY(Dzień_kalendarza)=Początek_tygodnia_wartość,CONCATENATE(\"Tydzień \",WEEKNUM(Dzień_kalendarza),\"/Dzień \",Dzień_kalendarza-DATE(YEAR(Dzień_kalendarza),1,0)),CONCATENATE(\"Dzień \",Dzień_kalendarza-DATE(YEAR(Dzień_kalendarza),1,0)))","v":"Tydzień 50/Dzień 343"},{"$f":"IF(WEEKDAY(Dzień_kalendarza)=Początek_tygodnia_wartość,CONCATENATE(\"Tydzień \",WEEKNUM(Dzień_kalendarza),\"/Dzień \",Dzień_kalendarza-DATE(YEAR(Dzień_kalendarza),1,0)),CONCATENATE(\"Dzień \",Dzień_kalendarza-DATE(YEAR(Dzień_kalendarza),1,0)))","v":"Dzień 344"},{"$f":"IF(WEEKDAY(Dzień_kalendarza)=Początek_tygodnia_wartość,CONCATENATE(\"Tydzień \",WEEKNUM(Dzień_kalendarza),\"/Dzień \",Dzień_kalendarza-DATE(YEAR(Dzień_kalendarza),1,0)),CONCATENATE(\"Dzień \",Dzień_kalendarza-DATE(YEAR(Dzień_kalendarza),1,0)))","v":"Dzień 345"},{"$f":"IF(WEEKDAY(Dzień_kalendarza)=Początek_tygodnia_wartość,CONCATENATE(\"Tydzień \",WEEKNUM(Dzień_kalendarza),\"/Dzień \",Dzień_kalendarza-DATE(YEAR(Dzień_kalendarza),1,0)),CONCATENATE(\"Dzień \",Dzień_kalendarza-DATE(YEAR(Dzień_kalendarza),1,0)))","v":"Dzień 346"},{"$f":"IF(WEEKDAY(Dzień_kalendarza)=Początek_tygodnia_wartość,CONCATENATE(\"Tydzień \",WEEKNUM(Dzień_kalendarza),\"/Dzień \",Dzień_kalendarza-DATE(YEAR(Dzień_kalendarza),1,0)),CONCATENATE(\"Dzień \",Dzień_kalendarza-DATE(YEAR(Dzień_kalendarza),1,0)))","v":"Dzień 347"},{"$f":"IF(WEEKDAY(Dzień_kalendarza)=Początek_tygodnia_wartość,CONCATENATE(\"Tydzień \",WEEKNUM(Dzień_kalendarza),\"/Dzień \",Dzień_kalendarza-DATE(YEAR(Dzień_kalendarza),1,0)),CONCATENATE(\"Dzień \",Dzień_kalendarza-DATE(YEAR(Dzień_kalendarza),1,0)))","v":"Dzień 348"},{"$f":"IF(WEEKDAY(Dzień_kalendarza)=Początek_tygodnia_wartość,CONCATENATE(\"Tydzień \",WEEKNUM(Dzień_kalendarza),\"/Dzień \",Dzień_kalendarza-DATE(YEAR(Dzień_kalendarza),1,0)),CONCATENATE(\"Dzień \",Dzień_kalendarza-DATE(YEAR(Dzień_kalendarza),1,0)))","v":"Dzień 349"}]
[]
[null,null,{"$f":"Dni_i_tygodnie+DATE(Rok_kalendarzowy,12,1)-WEEKDAY(DATE(Rok_kalendarzowy,12,1),(Początek_tygodnia=\"PON\")+1)+22","v":"2018-12-16"},"2018-12-17","2018-12-18","2018-12-19","2018-12-20","2018-12-21","2018-12-22"]
[null,null,{"$f":"IF(WEEKDAY(Dzień_kalendarza)=Początek_tygodnia_wartość,CONCATENATE(\"Tydzień \",WEEKNUM(Dzień_kalendarza),\"/Dzień \",Dzień_kalendarza-DATE(YEAR(Dzień_kalendarza),1,0)),CONCATENATE(\"Dzień \",Dzień_kalendarza-DATE(YEAR(Dzień_kalendarza),1,0)))","v":"Tydzień 51/Dzień 350"},{"$f":"IF(WEEKDAY(Dzień_kalendarza)=Początek_tygodnia_wartość,CONCATENATE(\"Tydzień \",WEEKNUM(Dzień_kalendarza),\"/Dzień \",Dzień_kalendarza-DATE(YEAR(Dzień_kalendarza),1,0)),CONCATENATE(\"Dzień \",Dzień_kalendarza-DATE(YEAR(Dzień_kalendarza),1,0)))","v":"Dzień 351"},{"$f":"IF(WEEKDAY(Dzień_kalendarza)=Początek_tygodnia_wartość,CONCATENATE(\"Tydzień \",WEEKNUM(Dzień_kalendarza),\"/Dzień \",Dzień_kalendarza-DATE(YEAR(Dzień_kalendarza),1,0)),CONCATENATE(\"Dzień \",Dzień_kalendarza-DATE(YEAR(Dzień_kalendarza),1,0)))","v":"Dzień 352"},{"$f":"IF(WEEKDAY(Dzień_kalendarza)=Początek_tygodnia_wartość,CONCATENATE(\"Tydzień \",WEEKNUM(Dzień_kalendarza),\"/Dzień \",Dzień_kalendarza-DATE(YEAR(Dzień_kalendarza),1,0)),CONCATENATE(\"Dzień \",Dzień_kalendarza-DATE(YEAR(Dzień_kalendarza),1,0)))","v":"Dzień 353"},{"$f":"IF(WEEKDAY(Dzień_kalendarza)=Początek_tygodnia_wartość,CONCATENATE(\"Tydzień \",WEEKNUM(Dzień_kalendarza),\"/Dzień \",Dzień_kalendarza-DATE(YEAR(Dzień_kalendarza),1,0)),CONCATENATE(\"Dzień \",Dzień_kalendarza-DATE(YEAR(Dzień_kalendarza),1,0)))","v":"Dzień 354"},{"$f":"IF(WEEKDAY(Dzień_kalendarza)=Początek_tygodnia_wartość,CONCATENATE(\"Tydzień \",WEEKNUM(Dzień_kalendarza),\"/Dzień \",Dzień_kalendarza-DATE(YEAR(Dzień_kalendarza),1,0)),CONCATENATE(\"Dzień \",Dzień_kalendarza-DATE(YEAR(Dzień_kalendarza),1,0)))","v":"Dzień 355"},{"$f":"IF(WEEKDAY(Dzień_kalendarza)=Początek_tygodnia_wartość,CONCATENATE(\"Tydzień \",WEEKNUM(Dzień_kalendarza),\"/Dzień \",Dzień_kalendarza-DATE(YEAR(Dzień_kalendarza),1,0)),CONCATENATE(\"Dzień \",Dzień_kalendarza-DATE(YEAR(Dzień_kalendarza),1,0)))","v":"Dzień 356"}]
[]
[null,null,{"$f":"Dni_i_tygodnie+DATE(Rok_kalendarzowy,12,1)-WEEKDAY(DATE(Rok_kalendarzowy,12,1),(Początek_tygodnia=\"PON\")+1)+29","v":"2018-12-23"},"2018-12-24","2018-12-25","2018-12-26","2018-12-27","2018-12-28","2018-12-29"]
[null,null,{"$f":"IF(WEEKDAY(Dzień_kalendarza)=Początek_tygodnia_wartość,CONCATENATE(\"Tydzień \",WEEKNUM(Dzień_kalendarza),\"/Dzień \",Dzień_kalendarza-DATE(YEAR(Dzień_kalendarza),1,0)),CONCATENATE(\"Dzień \",Dzień_kalendarza-DATE(YEAR(Dzień_kalendarza),1,0)))","v":"Tydzień 52/Dzień 357"},{"$f":"IF(WEEKDAY(Dzień_kalendarza)=Początek_tygodnia_wartość,CONCATENATE(\"Tydzień \",WEEKNUM(Dzień_kalendarza),\"/Dzień \",Dzień_kalendarza-DATE(YEAR(Dzień_kalendarza),1,0)),CONCATENATE(\"Dzień \",Dzień_kalendarza-DATE(YEAR(Dzień_kalendarza),1,0)))","v":"Dzień 358"},{"$f":"IF(WEEKDAY(Dzień_kalendarza)=Początek_tygodnia_wartość,CONCATENATE(\"Tydzień \",WEEKNUM(Dzień_kalendarza),\"/Dzień \",Dzień_kalendarza-DATE(YEAR(Dzień_kalendarza),1,0)),CONCATENATE(\"Dzień \",Dzień_kalendarza-DATE(YEAR(Dzień_kalendarza),1,0)))","v":"Dzień 359"},{"$f":"IF(WEEKDAY(Dzień_kalendarza)=Początek_tygodnia_wartość,CONCATENATE(\"Tydzień \",WEEKNUM(Dzień_kalendarza),\"/Dzień \",Dzień_kalendarza-DATE(YEAR(Dzień_kalendarza),1,0)),CONCATENATE(\"Dzień \",Dzień_kalendarza-DATE(YEAR(Dzień_kalendarza),1,0)))","v":"Dzień 360"},{"$f":"IF(WEEKDAY(Dzień_kalendarza)=Początek_tygodnia_wartość,CONCATENATE(\"Tydzień \",WEEKNUM(Dzień_kalendarza),\"/Dzień \",Dzień_kalendarza-DATE(YEAR(Dzień_kalendarza),1,0)),CONCATENATE(\"Dzień \",Dzień_kalendarza-DATE(YEAR(Dzień_kalendarza),1,0)))","v":"Dzień 361"},{"$f":"IF(WEEKDAY(Dzień_kalendarza)=Początek_tygodnia_wartość,CONCATENATE(\"Tydzień \",WEEKNUM(Dzień_kalendarza),\"/Dzień \",Dzień_kalendarza-DATE(YEAR(Dzień_kalendarza),1,0)),CONCATENATE(\"Dzień \",Dzień_kalendarza-DATE(YEAR(Dzień_kalendarza),1,0)))","v":"Dzień 362"},{"$f":"IF(WEEKDAY(Dzień_kalendarza)=Początek_tygodnia_wartość,CONCATENATE(\"Tydzień \",WEEKNUM(Dzień_kalendarza),\"/Dzień \",Dzień_kalendarza-DATE(YEAR(Dzień_kalendarza),1,0)),CONCATENATE(\"Dzień \",Dzień_kalendarza-DATE(YEAR(Dzień_kalendarza),1,0)))","v":"Dzień 363"}]
[{"$nulls":4},"NOTATKI"]
[]
[null,null,{"$f":"Dni_i_tygodnie+DATE(Rok_kalendarzowy,12,1)-WEEKDAY(DATE(Rok_kalendarzowy,12,1),(Początek_tygodnia=\"PON\")+1)+36","v":"2018-12-30"},"2018-12-31"]
[null,null,{"$f":"IF(WEEKDAY(Dzień_kalendarza)=Początek_tygodnia_wartość,CONCATENATE(\"Tydzień \",WEEKNUM(Dzień_kalendarza),\"/Dzień \",Dzień_kalendarza-DATE(YEAR(Dzień_kalendarza),1,0)),CONCATENATE(\"Dzień \",Dzień_kalendarza-DATE(YEAR(Dzień_kalendarza),1,0)))","v":"Tydzień 53/Dzień 364"},{"$f":"IF(WEEKDAY(Dzień_kalendarza)=Początek_tygodnia_wartość,CONCATENATE(\"Tydzień \",WEEKNUM(Dzień_kalendarza),\"/Dzień \",Dzień_kalendarza-DATE(YEAR(Dzień_kalendarza),1,0)),CONCATENATE(\"Dzień \",Dzień_kalendarza-DATE(YEAR(Dzień_kalendarza),1,0)))","v":"Dzień 365"}]